{"text_format":"1","workbook":"xlsx","n_sheets":9,"sheets":["Front Page","Status of Teachers","Class Needs","Teachers Timetables","Summary Sheet","Reduction of Units","Reduction of SMAs","Reduction of MMAs","Sheet1"],"not_rendered":{"charts":0,"images":0,"macros":0,"external_links":0,"defined_names":2,"comments":0,"pivot_tables":0},"unopened":[],"bounds":{"document_bytes":16777216,"sheet_cells":100000,"rows_first":2000,"rows_last":500,"rows_between":2000,"halvings":0,"cell_chars":16384,"cell_head_chars":4096},"cells_cut":0,"cells_raw":0,"read":"whole","date_system":"1900"}

{"sheet":"Front Page","index":0,"n_rows":55,"n_cols":7,"rows_kept":55,"cut":false,"hidden":false,"merged":[[58,0,58,1],[31,0,31,1],[34,0,34,1],[36,0,36,1],[56,0,56,1],[46,0,46,1],[55,0,55,2],[45,0,45,1],[37,0,37,1],[39,0,39,1],[40,0,40,1],[2,0,2,6],[57,0,57,1],[6,3,7,4],[6,5,7,6],[8,3,9,3],[8,6,9,6],[8,4,9,4],[8,5,9,5],[29,3,29,5],[30,3,30,5],[31,3,31,5],[35,3,35,5],[32,3,32,5],[33,3,33,5],[34,3,34,5],[40,3,40,4]]}
[null,"",null,"Page 1"]
[null,""]
["CURRICULUM AND PASTORAL NEEDS ANALYSIS"]
["Part A"]
["SCHOOL",null,null,null,""]
["",null,null,null,""]
["Information as at:",null,null,"Foreign Fee Paying Students",null,"Students in Trade Academies"]
[" ","",""]
["YEAR","THIS YEAR","NEXT YEAR'S ESTIMATE","This Year","Next Year","This Year","Next Year"]
[" ","March 2022 Confirmation","2023 Provisional Staffing"]
[7,null,null," "]
[8,null,null," "]
[9,null,null," "]
[10,null,null," "]
[11]
[12]
["13-15"]
["TOTAL",{"$f":"SUM(B11:B17)","v":0},0,0,0,0,0]
[null,"",""]
["Part B"]
["TIMETABLE STRUCTURE"]
[]
["     The  cycle of days for this school is",null,null,"Days"]
["     The Periods are consistently of",null,null,"Minutes"]
["     The periods vary in length by up to",null,null,"Minutes"]
["     Number of periods to a full time teacher ",null,null,"Periods",""]
[null,"",null,null,""]
["CONVERSION FACTOR (FTTE:PERIODS)",null,{"$f":"C26/1","v":0},null,""]
["Part C",null,null,null,""]
["STAFFING COMPARISON",null,"March 1 Confirmation","Provisional Staffing Notice"]
[null,"","2022 Entitlement","Provisional 2023 Estimate"]
["ENTITLEMENT",null,"FTTE","FTTE"]
["Staffing Entitlement","",0,0]
[]
["EXTRA Staffing and Allowances",null,{"$f":"C36-C33","v":0},{"$f":"D36-D33","v":0}]
["TOTAL","",0,0]
["Current Actual MOE-Funded FTTE",null,{"$f":"C36","v":0},null,""]
["Current actual MOE-FUNDED USAGE PERIODS",null,{"$f":"C37*C28","v":0}]
[]
["Total reduction required",null,{"$f":"C36-D36","v":0},"FTTE"]
[null,null,{"$f":"C40*C28","v":0},"PERIODS"]
[]
["Reduction in Staffing Entitlement the MOE may support",null,{"$f":"C33-D33","v":0},"FTTE",""]
["(Confirm figure with MOE) "]
["Reduction school required to manage",null,{"$f":"C40-C43","v":0},"FTTE"]
["Any Board - funded staffing reduction? =",null,0,"FTTE",""]
["Part  D fills automatically, do not touch - check at completion of document"]
["Part D",null,null,null,""]
["BOARD FUNDED","PERIODS","FTTE"]
["Current total actual",{"$f":"'Summary Sheet'!B62","v":0},{"$f":"B50/C28","v":{"$error":"#DIV/0!"}}]
["MOE Funded usage",{"$f":"C36*C28","v":0},{"$f":"B51/C28","v":{"$error":"#DIV/0!"}}]
["BOT- Funded",{"$f":"B50-B51","v":0},{"$f":"C50-C51","v":{"$error":"#DIV/0!"}}]
[null,null,null,null,""]
["(Formulae locked - password - capna)",null,null,null,""]
[null,null,null,null,""]

{"sheet":"Status of Teachers","index":1,"n_rows":100,"n_cols":11,"rows_kept":100,"cut":false,"hidden":false,"merged":[]}
[null,null,null,"STATUS OF TEACHERS",null,null,null,null,"Page 2"]
[null,null,null,"",null,null,null,null,""]
["STATUS OF FULL TIME PERMANENT STAFF",null,null,null,null,"NUMBERS","CAPNA",null,"PART TIME STAFF"]
[null,null,null,null,null,null,"Code",null,"School","Perm. Hours","Non-permanent"]
["PRINCIPAL",null,null,null,null,null,"P",null,"Code",null,"Hours"]
["U10"]
["U9"]
["U8"]
["U7"]
["U6"]
["U5"]
["U4"]
["U3"]
["U2"]
["U1"]
["FTU2"]
["FTU1"]
["FULL TIME BASE SCALE TEACHERS"]
["PERMANENT PART-TIME",null,null,null,null,null,"PPT"]
["PART TIME",null,null,null,null,null,"PT"]
["ITINERANT MUSIC TEACHERS",null,null,null,null,null,"ITM"]
[]
["OTHERS eg Attached units"]
["BEGINNING TEACHERS: (Year 1)",null,null,null,null,null,"BT1"]
["BEGINNING TEACHERS: (Year 2)",null,null,null,null,null,"BT2"]
["        OTHER STAFF",null,null,null,null,"NUMBERS"]
["LONG TERM RELIEVERS",null,null,null,null,null,"LTR"]
["FIXED TERM APPOINTMENTS",null,null,null,null,null,"FTA",null,"Please use CAPNA Codes (LEFT)"]
["OTHERS",null,null,null,null,null,null,null,"to identify those specific POSITIONS"]
[null,null,null,null,null,null,null,null,"on pages 11 to 26 of this document"]
[]
[]
["PROTECTED POSITIONS"]
["HOLDERS OF PROTECTED UNITS",null,null,null,"Expiry"]
[]
[]
[]
[]
[]
[]
[]
[]
[]
[]
["SUPERNUMERARY TEACHERS"]
["Names",null,"Expiry Dates"]
["",null,"of Supernum-"]
[null,null,"erary Status"]
[null,"",null,""]
["","",null,""]
["","",null,""]
["","",null,""]
["","",null,""]
["","",null,""]
[]
[]
[]
[]
[null,null,null,null,null,null,null,null,"Page 2a"]
["RELIEVING TEACHERS"]
["Relievers' names","",null,"Names","of teachers",null,"","","Date of return"]
["","",null,"being relieved",null,"","",""]
[" ",null,null," ",null,null,null,""," "]
[null,null,null,null,null,null,null,""]
["",null,null,null,null,null,null,""]
["",null,null,null,null,null,null,"",""]
["",null,null,null,null,null,null,"",""]
["",null,null,null,null,null,null,"",""]
["","",null,"",null,"","","",""]
[]
[]
[]
[]
[]
[]
[]
[]
[]
[]
[]
[]
[]
[]
[]
[]
[]
[]
[]
[]
[]
[]
[]
[]
[]
[]
[]
[]
["FIXED-TERM POSITIONS"]
[]
["NAME(S) of LTR POSITION HOLDER(S)",null,null,"DATE OF TERMINATION OF POSITION",null,null,null,null,"REASON FOR NON-PERMANENT POSITION"]

{"sheet":"Class Needs","index":2,"n_rows":54,"n_cols":72,"rows_kept":54,"cut":false,"hidden":false,"merged":[[1,4,1,6]]}
[null,null,null,"CLASS NEEDS",null,null,null,"PAGE 3",null,null,null,null,"CLASS NEEDS",null,null,null,"PAGE 4",null,null,null,null,"CLASS NEEDS",null,null,null,"PAGE 5",null,null,null,null,"CLASS NEEDS",null,null,null,"PAGE 6",null,null,null,null,"CLASS NEEDS",null,null,null,"PAGE 7",null,null,null,null,"CLASS NEEDS",null,null,null,"PAGE 8",null,null,null,null,"CLASS NEEDS",null,null,null,"PAGE 9",null,null,null,null,"CLASS NEEDS SUMMARY",null,null,null,"PAGE 10"," "]
[null,"",2022,null,2023,null,null,"Period",null,null,"",{"$f":"C2","v":2022},"","",{"$f":"E2","v":2023},"","Period",null,null,"",{"$f":"C2","v":2022},"","",{"$f":"E2","v":2023},"","Period",null,null,"",{"$f":"C2","v":2022},"","",{"$f":"E2","v":2023},"","Period",null,null,"",{"$f":"C2","v":2022},"","",{"$f":"E2","v":2023},"","Period",null,null,"",{"$f":"C2","v":2022},"","",{"$f":"E2","v":2023},"","Period",null,null,"",{"$f":"C2","v":2022},"","",{"$f":"E2","v":2023},"","Period","     ",null,"",{"$f":"C2","v":2022},"","",{"$f":"E2","v":2023},null,"Period"]
["YEAR 7","No of","No of","No of","No of","No of","No of","DIFF",null,"Year 8","No of","No of","No of","No of","No of","No of","DIFF",null,"YEAR 9","No of","No of","No of","No of","No of","No of","DIFF",null,"YEAR 10","No of","No of","No of","No of","No of","No of","DIFF",null,"YEAR 11","No of","No of","No of","No of","No of","No of","DIFF",null,"YEAR 12","No of","No of","No of","No of","No of","No of","DIFF",null,"YEAR 13","No of","No of","No of","No of","No of","No of","DIFF",null,null,"No of","No of","No of","No of","No of","No of","DIFF"]
["SUBJECT","STUDENTS","CLASSES","PERIODS","STUDENTS","CLASSES","PERIODS","",null,"SUBJECT","STUDENTS","CLASSES","PERIODS","STUDENTS","CLASSES","PERIODS","",null,"SUBJECT","STUDENTS","CLASSES","PERIODS","STUDENTS","CLASSES","PERIODS","",null,"SUBJECT","STUDENTS","CLASSES","PERIODS","STUDENTS","CLASSES","PERIODS","",null,"SUBJECT","STUDENTS","CLASSES","PERIODS","STUDENTS","CLASSES","PERIODS","",null,"SUBJECT","STUDENTS","CLASSES","PERIODS","STUDENTS","CLASSES","PERIODS","",null,"SUBJECT","STUDENTS","CLASSES","PERIODS","STUDENTS","CLASSES","PERIODS","",null,"SUBJECT","STUDENTS","CLASSES","PERIODS","STUDENTS","CLASSES","PERIODS",""]
[null,null,null,null,null,null,null,{"$f":"G5-D5","v":0},null,{"$f":"A5","v":0},null,null,null,null,null,null,{"$f":"P5-M5","v":0},null,{"$f":"A5","v":0},null,null,null,null,null,null,{"$f":"Y5-V5","v":0},null,{"$f":"A5","v":0},null,null,null,null,null,null,{"$f":"AH5-AE5","v":0},null,{"$f":"A5","v":0},null,null,null,null,null,null,{"$f":"AQ5-AN5","v":0},null,{"$f":"A5","v":0},null,null,null,null,null,null,{"$f":"AZ5-AW5","v":0},null,{"$f":"A5","v":0},null,null,null,null,null,null,{"$f":"BI5-BF5","v":0},null,{"$f":"A5","v":0},{"$f":"B5+K5+T5+AC5+AL5+AU5+BD5","v":0},0,0,0,0,0,0]
[null,null,null,null,null,null,null,0,null,{"$f":"A6","v":0},null,null,null,null,null,null,0,null,{"$f":"A6","v":0},null,null,null,null,null,null,0,null,0,null,null,null,null,null,null,0,null,0,null,null,null,null,null,null,0,null,0,null,null,null,null,null,null,0,null,0,null,null,null,null,null,null,0,null,0,{"$f":"B6+K6+T6+AC6+AL6+AU6+BD6","v":0},{"$f":"C6+L6+U6+AD6+AM6+AV6+BE6","v":0},{"$f":"D6+M6+V6+AE6+AN6+AW6+BF6","v":0},{"$f":"E6+N6+W6+AF6+AO6+AX6+BG6","v":0},{"$f":"F6+O6+X6+AG6+AP6+AY6+BH6","v":0},{"$f":"G6+P6+Y6+AH6+AQ6+AZ6+BI6","v":0},{"$f":"H6+Q6+Z6+AI6+AR6+BA6+BJ6","v":0}]
[null,null,null,null,null,null,null,0,null,0,null,null,null,null,null,null,0,null,0,null,null,null,null,null,null,0,null,0,null,null,null,null,null,null,0,null,0,null,null,null,null,null,null,0,null,0,null,null,null,null,null,null,0,null,0,null,null,null,null,null,null,0,null,0,0,0,0,0,0,0,0]
[null,null,null,null,null,null,null,0,null,0,null,null,null,null,null,null,0,null,0,null,null,null,null,null,null,0,null,0,null,null,null,null,null,null,0,null,0,null,null,null,null,null,null,0,null,0,null,null,null,null,null,null,0,null,0,null,null,null,null,null,null,0,null,0,0,0,0,0,0,0,0]
[null,null,null,null,null,null,null,0,null,0,null,null,null,null,null,null,{"$f":"P9-M9","v":0},null,0,null,null,null,null,null,null,0,null,0,null,null,null,null,null,null,0,null,0,null,null,null,null,null,null,0,null,0,null,null,null,null,null,null,0,null,0,null,null,null,null,null,null,0,null,0,0,0,0,0,0,0,0]
[null,null,null,null,null,null,null,0,null,0,null,null,null,null,null,null,0,null,0,null,null,null,null,null,null,0,null,0,null,null,null,null,null,null,0,null,0,null,null,null,null,null,null,0,null,0,null,null,null,null,null,null,0,null,0,null,null,null,null,null,null,0,null,0,0,0,0,0,0,0,0]
[null,null,null,null,null,null,null,0,null,0,null,null,null,null,null,null,0,null,0,null,null,null,null,null,null,0,null,0,null,null,null,null,null,null,0,null,0,null,null,null,null,null,null,0,null,0,null,null,null,null,null,null,0,null,0,null,null,null,null,null,null,0,null,0,0,0,0,0,0,0,0]
[null,null,null,null,null,null,null,0,null,0,null,null,null,null,null,null,0,null,0,null,null,null,null,null,null,0,null,0,null,null,null,null,null,null,0,null,0,null,null,null,null,null,null,0,null,0,null,null,null,null,null,null,0,null,0,null,null,null,null,null,null,0,null,0,0,0,0,0,0,0,0]
[null,null,null,null,null,null,null,0,null,0,null,null,null,null,null,null,0,null,0,null,null,null,null,null,null,0,null,0,null,null,null,null,null,null,0,null,0,null,null,null,null,null,null,0,null,0,null,null,null,null,null,null,0,null,0,null,null,null,null,null,null,0,null,0,0,0,0,0,0,0,0]
[null,null,null,null,null,null,null,0,null,0,null,null,null,null,null,null,0,null,0,null,null,null,null,null,null,0,null,0,null,null,null,null,null,null,0,null,0,null,null,null,null,null,null,0,null,0,null,null,null,null,null,null,0,null,0,null,null,null,null,null,null,0,null,0,0,0,0,0,0,0,0]
[null,null,null,null,null,null,null,0,null,0,null,null,null,null,null,null,0,null,0,null,null,null,null,null,null,0,null,0,null,null,null,null,null,null,0,null,0,null,null,null,null,null,null,0,null,0,null,null,null,null,null,null,0,null,0,null,null,null,null,null,null,0,null,0,0,0,0,0,0,0,0]
[null,null,null,null,null,null,null,0,null,0,null,null,null,null,null,null,0,null,0,null,null,null,null,null,null,0,null,0,null,null,null,null,null,null,0,null,0,null,null,null,null,null,null,0,null,0,null,null,null,null,null,null,0,null,0,null,null,null,null,null,null,0,null,0,0,0,0,0,0,0,0]
[null,null,null,null,null,null,null,0,null,0,null,null,null,null,null,null,0,null,0,null,null,null,null,null,null,0,null,0,null,null,null,null,null,null,0,null,0,null,null,null,null,null,null,0,null,0,null,null,null,null,null,null,0,null,0,null,null,null,null,null,null,0,null,0,0,0,0,0,0,0,0]
[null,null,null,null,null,null,null,0,null,0,null,null,null,null,null,null,0,null,0,null,null,null,null,null,null,0,null,0,null,null,null,null,null,null,0,null,0,null,null,null,null,null,null,0,null,0,null,null,null,null,null,null,0,null,0,null,null,null,null,null,null,0,null,0,0,0,0,0,0,0,0]
[null,null,null,null,null,null,null,0,null,0,null,null,null,null,null,null,0,null,0,null,null,null,null,null,null,0,null,0,null,null,null,null,null,null,0,null,0,null,null,null,null,null,null,0,null,0,null,null,null,null,null,null,0,null,0,null,null,null,null,null,null,0,null,0,0,0,0,0,0,0,0]
[null,null,null,null,null,null,null,0,null,0,null,null,null,null,null,null,0,null,0,null,null,null,null,null,null,0,null,0,null,null,null,null,null,null,0,null,0,null,null,null,null,null,null,0,null,0,null,null,null,null,null,null,0,null,0,null,null,null,null,null,null,0,null,0,0,0,0,0,0,0,0]
[null,null,null,null,null,null,null,0,null,0,null,null,null,null,null,null,0,null,0,null,null,null,null,null,null,0,null,0,null,null,null,null,null,null,0,null,0,null,null,null,null,null,null,0,null,0,null,null,null,null,null,null,0,null,0,null,null,null,null,null,null,0,null,0,0,0,0,0,0,0,0]
[null,null,null,null,null,null,null,0,null,0,null,null,null,null,null,null,0,null,0,null,null,null,null,null,null,0,null,0,null,null,null,null,null,null,0,null,0,null,null,null,null,null,null,0,null,0,null,null,null,null,null,null,0,null,0,null,null,null,null,null,null,0,null,0,0,0,0,0,0,0,0]
[null,null,null,null,null,null,null,0,null,0,null,null,null,null,null,null,0,null,0,null,null,null,null,null,null,0,null,0,null,null,null,null,null,null,0,null,0,null,null,null,null,null,null,0,null,0,null,null,null,null,null,null,0,null,0,null,null,null,null,null,null,0,null,0,0,0,0,0,0,0,0]
[null,null,null,null,null,null,null,0,null,0,null,null,null,null,null,null,0,null,0,null,null,null,null,null,null,0,null,0,null,null,null,null,null,null,0,null,0,null,null,null,null,null,null,0,null,0,null,null,null,null,null,null,0,null,0,null,null,null,null,null,null,0,null,0,0,0,0,0,0,0,0]
[null,null,null,null,null,null,null,0,null,0,null,null,null,null,null,null,0,null,0,null,null,null,null,null,null,0,null,0,null,null,null,null,null,null,0,null,0,null,null,null,null,null,null,0,null,0,null,null,null,null,null,null,0,null,0,null,null,null,null,null,null,0,null,0,0,0,0,0,0,0,0]
[null,null,null,null,null,null,null,0,null,0,null,null,null,null,null,null,0,null,0,null,null,null,null,null,null,0,null,0,null,null,null,null,null,null,0,null,0,null,null,null,null,null,null,0,null,0,null,null,null,null,null,null,0,null,0,null,null,null,null,null,null,0,null,0,0,0,0,0,0,0,0]
[null,null,null,null,null,null,null,0,null,0,null,null,null,null,null,null,0,null,0,null,null,null,null,null,null,0,null,0,null,null,null,null,null,null,0,null,0,null,null,null,null,null,null,0,null,0,null,null,null,null,null,null,0,null,0,null,null,null,null,null,null,0,null,0,0,0,0,0,0,0,0]
[null,null,null,null,null,null,null,0,null,0,null,null,null,null,null,null,0,null,0,null,null,null,null,null,null,0,null,0,null,null,null,null,null,null,0,null,0,null,null,null,null,null,null,0,null,0,null,null,null,null,null,null,0,null,0,null,null,null,null,null,null,0,null,0,0,0,0,0,0,0,0]
[null,null,null,null,null,null,null,0,null,0,null,null,null,null,null,null,0,null,0,null,null,null,null,null,null,0,null,0,null,null,null,null,null,null,0,null,0,null,null,null,null,null,null,0,null,0,null,null,null,null,null,null,0,null,0,null,null,null,null,null,null,0,null,0,0,0,0,0,0,0,0]
[null,null,null,null,null,null,null,0,null,0,null,null,null,null,null,null,0,null,0,null,null,null,null,null,null,0,null,0,null,null,null,null,null,null,0,null,0,null,null,null,null,null,null,0,null,0,null,null,null,null,null,null,0,null,0,null,null,null,null,null,null,0,null,0,0,0,0,0,0,0,0]
[null,null,null,null,null,null,null,0,null,0,null,null,null,null,null,null,0,null,0,null,null,null,null,null,null,0,null,0,null,null,null,null,null,null,0,null,0,null,null,null,null,null,null,0,null,0,null,null,null,null,null,null,0,null,0,null,null,null,null,null,null,0,null,0,0,0,0,0,0,0,0]
[null,null,null,null,null,null,null,0,null,0,null,null,null,null,null,null,0,null,0,null,null,null,null,null,null,0,null,0,null,null,null,null,null,null,0,null,0,null,null,null,null,null,null,0,null,0,null,null,null,null,null,null,0,null,0,null,null,null,null,null,null,0,null,0,0,0,0,0,0,0,0]
[null,null,null,null,null,null,null,0,null,0,null,null,null,null,null,null,0,null,0,null,null,null,null,null,null,0,null,0,null,null,null,null,null,null,0,null,0,null,null,null,null,null,null,0,null,0,null,null,null,null,null,null,0,null,0,null,null,null,null,null,null,0,null,0,0,0,0,0,0,0,0]
[null,null,null,null,null,null,null,0,null,0,null,null,null,null,null,null,0,null,0,null,null,null,null,null,null,0,null,0,null,null,null,null,null,null,0,null,0,null,null,null,null,null,null,0,null,0,null,null,null,null,null,null,0,null,0,null,null,null,null,null,null,0,null,0,0,0,0,0,0,0,0]
[null,null,null,null,null,null,null,0,null,0,null,null,null,null,null,null,0,null,0,null,null,null,null,null,null,0,null,0,null,null,null,null,null,null,0,null,0,null,null,null,null,null,null,0,null,0,null,null,null,null,null,null,0,null,0,null,null,null,null,null,null,0,null,0,0,0,0,0,0,0,0]
[null,null,null,null,null,null,null,0,null,0,null,null,null,null,null,null,0,null,0,null,null,null,null,null,null,0,null,0,null,null,null,null,null,null,0,null,0,null,null,null,null,null,null,0,null,0,null,null,null,null,null,null,0,null,0,null,null,null,null,null,null,0,null,0,0,0,0,0,0,0,0]
[null,null,null,null,null,null,null,0,null,0,null,null,null,null,null,null,0,null,0,null,null,null,null,null,null,0,null,0,null,null,null,null,null,null,0,null,0,null,null,null,null,null,null,0,null,0,null,null,null,null,null,null,0,null,0,null,null,null,null,null,null,0,null,0,0,0,0,0,0,0,0]
[null,null,null,null,null,null,null,0,null,0,null,null,null,null,null,null,0,null,0,null,null,null,null,null,null,0,null,0,null,null,null,null,null,null,0,null,0,null,null,null,null,null,null,0,null,0,null,null,null,null,null,null,0,null,0,null,null,null,null,null,null,0,null,0,0,0,0,0,0,0,0]
[null,null,null,null,null,null,null,0,null,0,null,null,null,null,null,null,0,null,0,null,null,null,null,null,null,0,null,0,null,null,null,null,null,null,0,null,0,null,null,null,null,null,null,0,null,0,null,null,null,null,null,null,0,null,0,null,null,null,null,null,null,0,null,0,0,0,0,0,0,0,0]
[null,null,null,null,null,null,null,0,null,0,null,null,null,null,null,null,0,null,0,null,null,null,null,null,null,0,null,0,null,null,null,null,null,null,0,null,0,null,null,null,null,null,null,0,null,0,null,null,null,null,null,null,0,null,0,null,null,null,null,null,null,0,null,0,0,0,0,0,0,0,0]
[null,null,null,null,null,null,null,0,null,0,null,null,null,null,null,null,0,null,0,null,null,null,null,null,null,0,null,0,null,null,null,null,null,null,0,null,0,null,null,null,null,null,null,0,null,0,null,null,null,null,null,null,0,null,0,null,null,null,null,null,null,{"$f":"BI41-BF41","v":0},null,0,0,0,0,0,{"$f":"F41+O41+X41+AG41+AP41+AY41+BH41","v":0},0,0]
[null,null,null,null,null,null,null,0,null,0,null,null,null,null,null,null,0,null,0,null,null,null,null,null,null,0,null,0,null,null,null,null,null,null,0,null,0,null,null,null,null,null,null,0,null,0,null,null,null,null,null,null,0,null,0,null,null,null,null,null,null,{"$f":"BI42-BF42","v":0},null,0,0,0,0,0,0,0,0]
[null,null,null,null,null,null,null,0,null,0,null,null,null,null,null,null,0,null,0,null,null,null,null,null,null,0,null,0,null,null,null,null,null,null,0,null,0,null,null,null,null,null,null,0,null,0,null,null,null,null,null,null,0,null,0,null,null,null,null,null,null,0,null,0,0,0,0,0,0,0,0]
[null,null,null,null,null,null,null,0,null,0,null,null,null,null,null,null,0,null,0,null,null,null,null,null,null,0,null,0,null,null,null,null,null,null,0,null,0,null,null,null,null,null,null,0,null,0,null,null,null,null,null,null,0,null,0,null,null,null,null,null,null,0,null,0,0,0,0,0,0,0,0]
[null,null,null,null,null,null,null,0,null,0,null,null,null,null,null,null,0,null,0,null,null,null,null,null,null,0,null,0,null,null,null,null,null,null,0,null,0,null,null,null,null,null,null,0,null,0,null,null,null,null,null,null,0,null,0,null,null,null,null,null,null,0,null,0,0,0,0,0,0,0,0]
[null,null,null,null,null,null,null,0,null,0,null,null,null,null,null,null,0,null,0,null,null,null,null,null,null,0,null,0,null,null,null,null,null,null,0,null,0,null,null,null,null,null,null,0,null,0,null,null,null,null,null,null,0,null,0,null,null,null,null,null,null,0,null,0,0,0,0,0,0,0,0]
[null,null,null,null,null,null,null,0,null,0,null,null,null,null,null,null,0,null,0,null,null,null,null,null,null,0,null,0,null,null,null,null,null,null,0,null,0,null,null,null,null,null,null,0,null,0,null,null,null,null,null,null,0,null,0,null,null,null,null,null,null,0,null,0,0,0,0,0,0,0,0]
[null,null,null,null,null,null,null,0,null,0,null,null,null,null,null,null,0,null,0,null,null,null,null,null,null,0,null,0,null,null,null,null,null,null,0,null,0,null,null,null,null,null,null,0,null,0,null,null,null,null,null,null,0,null,0,null,null,null,null,null,null,0,null,0,0,0,0,0,0,0,0]
[null,null,null,null,null,null,null,0,null,0,null,null,null,null,null,null,0,null,0,null,null,null,null,null,null,0,null,0,null,null,null,null,null,null,0,null,0,null,null,null,null,null,null,0,null,0,null,null,null,null,null,null,0,null,0,null,null,null,null,null,null,0,null,0,0,0,0,0,0,0,0]
[null,null,null,null,null,null,null,0,null,0,null,null,null,null,null,null,0,null,0,null,null,null,null,null,null,0,null,0,null,null,null,null,null,null,0,null,0,null,null,null,null,null,null,0,null,0,null,null,null,null,null,null,0,null,0,null,null,null,null,null,null,0,null,0,0,0,0,0,0,0,0]
[null,null,null,null,null,null,null,0,null,0,null,null,null,null,null,null,0,null,0,null,null,null,null,null,null,0,null,0,null,null,null,null,null,null,0,null,0,null,null,null,null,null,null,0,null,0,null,null,null,null,null,null,0,null,0,null,null,null,null,null,null,0,null,0,0,0,0,0,0,0,0]
["TOTAL",{"$f":"SUM(B5:B51)","v":0},0,0,0,0,0,0,null,"TOTAL",{"$f":"SUM(K5:K51)","v":0},0,0,0,0,0,0,null,"TOTAL",{"$f":"SUM(T5:T51)","v":0},0,0,0,0,0,0,null,"TOTAL",{"$f":"SUM(AC5:AC51)","v":0},0,0,0,0,0,0,null,"TOTAL",{"$f":"SUM(AL5:AL51)","v":0},0,0,0,0,0,0,null,"TOTAL",{"$f":"SUM(AU5:AU51)","v":0},0,0,0,0,0,0,null,"TOTAL",{"$f":"SUM(BD5:BD51)","v":0},0,0,0,0,0,0,null,"TOTAL",{"$f":"SUM(BM5:BM51)","v":0},0,0,0,0,0,0]
[]
[null,"Notes on Foreign fee paying students:",null,null,null,null,null,null,null,null,"Notes on Foreign fee paying students:",null,null,null,null,null,null,null,null,"Notes on Foreign fee paying students:",null,null,null,null,null,null,null,null,"Notes on Foreign fee paying students:",null,null,null,null,null,null,null,null,"Notes on Foreign fee paying students:",null,null,null,null,null,null,null,null,"Notes on Foreign fee paying students:",null,null,null,null,null,null,null,null,"Notes on Foreign fee paying students:"]

{"sheet":"Teachers Timetables","index":3,"n_rows":61,"n_cols":239,"rows_kept":61,"cut":false,"hidden":false,"merged":[]}
[null,null,null,null,null,"TEACHER TIMETABLES",null,null,null,null,null,null,"PAGE 11",null,null,null,null,null,null,null,"TEACHER TIMETABLES",null,null,null,null,null,null,"PAGE 12",null,null,null,null,null,null,null,"TEACHER TIMETABLES",null,null,null,null,null,null,"PAGE 13",null,null,null,null,null,null,null,"TEACHER TIMETABLES",null,null,null,null,null,null,"PAGE 14",null,null,null,null,null,null,null,"TEACHER TIMETABLES",null,null,null,null,null,null,"PAGE 15",null,null,null,null,null,null,null,"TEACHER TIMETABLES",null,null,null,null,null,null,"PAGE 16",null,null,null,null,null,null,null,"TEACHER TIMETABLES",null,null,null,null,null,null,"PAGE 17",null,null,null,null,null,null,null,"TEACHER TIMETABLES",null,null,null,null,null,null,"PAGE 18",null,null,null,null,null,null,null,"TEACHER TIMETABLES",null,null,null,null,null,null,"PAGE 19",null,null,null,null,null,null,null,"TEACHER TIMETABLES",null,null,null,null,null,null,"PAGE 20",null,null,null,null,null,null,null,"TEACHER TIMETABLES",null,null,null,null,null,null,"PAGE 21",null,null,null,null,null,null,null,"TEACHER TIMETABLES",null,null,null,null,null,null,"PAGE 22",null,null,null,null,null,null,null,"TEACHER TIMETABLES",null,null,null,null,null,null,"PAGE 23",null,null,null,null,null,null,null,"TEACHER TIMETABLES",null,null,null,null,null,null,"PAGE 24",null,null,null,null,null,null,null,"TEACHER TIMETABLES",null,null,null,null,null,null,"PAGE 25",null,null,null,null,null,null,null,"TEACHER TIMETABLES",null,null,null,null,null,null,"PAGE 26"]
["TEACHER'S CODE","XX","XX","XX","XX","XX","XX","XX","XX","XX","XX","XX","XX","XX",null,{"$f":"A2","v":"TEACHER'S CODE"},"XX","XX","XX","XX","XX","XX","XX","XX","XX","XX","XX","XX","XX",null,{"$f":"A2","v":"TEACHER'S CODE"},"XX","XX","XX","XX","XX","XX","XX","XX","XX","XX","XX","XX","XX",null,{"$f":"A2","v":"TEACHER'S CODE"},"XX","XX","XX","XX","XX","XX","XX","XX","XX","XX","XX","XX","XX",null,{"$f":"A2","v":"TEACHER'S CODE"},"XX","XX","XX","XX","XX","XX","XX","XX","XX","XX","XX","XX","XX",null,{"$f":"A2","v":"TEACHER'S CODE"},"XX","XX","XX","XX","XX","XX","XX","XX","XX","XX","XX","XX","XX",null,{"$f":"A2","v":"TEACHER'S CODE"},"XX","XX","XX","XX","XX","XX","XX","XX","XX","XX","XX","XX","XX",null,{"$f":"A2","v":"TEACHER'S CODE"},"XX","XX","XX","XX","XX","XX","XX","XX","XX","XX","XX","XX","XX",null,{"$f":"A2","v":"TEACHER'S CODE"},"XX","XX","XX","XX","XX","XX","XX","XX","XX","XX","XX","XX","XX",null,{"$f":"A2","v":"TEACHER'S CODE"},"XX","XX","XX","XX","XX","XX","XX","XX","XX","XX","XX","XX","XX",null,{"$f":"A2","v":"TEACHER'S CODE"},"XX","XX","XX","XX","XX","XX","XX","XX","XX","XX","XX","XX","XX",null,{"$f":"A2","v":"TEACHER'S CODE"},"XX","XX","XX","XX","XX","XX","XX","XX","XX","XX","XX","XX","XX",null,{"$f":"A2","v":"TEACHER'S CODE"},"XX","XX","XX","XX","XX","XX","XX","XX","XX","XX","XX","XX","XX",null,{"$f":"A2","v":"TEACHER'S CODE"},"XX","XX","XX","XX","XX","XX","XX","XX","XX","XX","XX","XX","XX",null,{"$f":"A2","v":"TEACHER'S CODE"},"XX","XX","XX","XX","XX","XX","XX","XX","XX","XX","XX","XX","XX",null,{"$f":"A2","v":"TEACHER'S CODE"},"XX","XX","XX","XX","XX","XX","XX","XX","XX","XX","XX","XX","XX"]
["POSITION",null,null,null,null,null,null,null,null,null,null,null,null,null,null,"POSITION",null,null,null,null,null,null,null,null,null,null,null,null,null,null,"POSITION",null,null,null,null,null,null,null,null,null,null,null,null,null,null,"POSITION",null,null,null,null,null,null,null,null,null,null,null,null,null,null,"POSITION",null,null,null,null,null,null,null,null,null,null,null,null,null,null,"POSITION",null,null,null,null,null,null,null,null,null,null,null,null,null,null,"POSITION",null,null,null,null,null,null,null,null,null,null,null,null,null,null,"POSITION",null,null,null,null,null,null,null,null,null,null,null,null,null,null,"POSITION",null,null,null,null,null,null,null,null,null,null,null,null,null,null,"POSITION",null,null,null,null,null,null,null,null,null,null,null,null,null,null,"POSITION",null,null,null,null,null,null,null,null,null,null,null,null,null,null,"POSITION",null,null,null,null,null,null,null,null,null,null,null,null,null,null,"POSITION",null,null,null,null,null,null,null,null,null,null,null,null,null,null,"POSITION",null,null,null,null,null,null,null,null,null,null,null,null,null,null,"POSITION",null,null,null,null,null,null,null,null,null,null,null,null,null,null,"POSITION"]
["SUBJECT",null,null,null,null,null,null,null,null,null,null,null,null,null,null,"SUBJECT",null,null,null,null,null,null,null,null,null,null,null,null,"",null,"SUBJECT",null,null,null,null,null,null,null,null,null,null,null,null,null,null,"SUBJECT",null,null,null,null,null,null,null,null,"","","","","",null,"SUBJECT","","","","","","","","","","","","","",null,"SUBJECT","","","","","","","","","","","","","",null,"SUBJECT","","","","","","","","","","","","","",null,"SUBJECT","","","","","","","","","","","","","",null,"SUBJECT",null,"",null,"","","","","","","","","","",null,"SUBJECT","","","","","","","","","","","","","",null,"SUBJECT","","","","","","","","","","","","","",null,"SUBJECT","","","","","","","","","","","","","",null,"SUBJECT","","","","","","","","","","","","","",null,"SUBJECT","","","","","","","","","","","","","",null,"SUBJECT","","","","","","","","","","","","","",null,"SUBJECT","","","","","","","","","","","","",""]
[{"$f":"'Class Needs'!A5","v":0},null,null,null,null,null,null,null,null,null,null,null,null,null,null,{"$f":"'Class Needs'!A5","v":0},null,null,null,null,null,null,null,null,null,null,null,null,null,null,{"$f":"'Class Needs'!A5","v":0},null,null,null,null,null,null,null,null,null,null,null,null,null,null,{"$f":"'Class Needs'!A5","v":0},null,null,null,null,null,null,null,null,null,null,"","","",null,{"$f":"'Class Needs'!A5","v":0},"","","","","","","","","","","","","",null,{"$f":"'Class Needs'!A5","v":0},"","","","","","","","","","","","","",null,{"$f":"'Class Needs'!A5","v":0},"","","","","","","","","","","","","",null,{"$f":"'Class Needs'!A5","v":0},"","","","","","","","","","",null,"","",null,{"$f":"'Class Needs'!A5","v":0},null,null,null,null,null,null,null,null,null,null,null,null,null,null,{"$f":"'Class Needs'!A5","v":0},"","","","","","","","","","","","","",null,{"$f":"'Class Needs'!A5","v":0},null,null,null,null,null,null,null,null,null,null,null,null,null,null,{"$f":"'Class Needs'!A5","v":0},null,null,null,null,null,"","","","","","","","",null,{"$f":"'Class Needs'!A5","v":0},"","","","","","","","","","","","","",null,{"$f":"'Class Needs'!A5","v":0},"","","","","","","","","","","","","",null,{"$f":"'Class Needs'!A5","v":0},"","","","","","","","","","","","","",null,{"$f":"'Class Needs'!A5","v":0},"","","","","","","","","","",null,"",""]
[{"$f":"'Class Needs'!A6","v":0},null,null,null,null,null,null,null,null,null,null,null,null,null,null,{"$f":"'Class Needs'!A6","v":0},null,null,null,null,null,null,null,null,null,null,null,null,null,null,{"$f":"'Class Needs'!A6","v":0},null,null,null,null,null,null,null,null,null,null,null,null,null,null,{"$f":"'Class Needs'!A6","v":0},null,null,null,null,null,null,null,null,null,null,"","","",null,{"$f":"'Class Needs'!A6","v":0},"","","","","","","","","","","","","",null,{"$f":"'Class Needs'!A6","v":0},"","","","","","","","","","","","","",null,{"$f":"'Class Needs'!A6","v":0},"","","","","","","","","","","","","",null,{"$f":"'Class Needs'!A6","v":0},"","","","","","","","","","","","","",null,{"$f":"'Class Needs'!A6","v":0},null,null,null,null,null,null,null,null,null,null,null,null,null,null,{"$f":"'Class Needs'!A6","v":0},null,null,null,null,null,null,null,null,null,null,null,null,null,null,{"$f":"'Class Needs'!A6","v":0},null,null,null,null,null,null,null,null,null,null,null,null,null,null,{"$f":"'Class Needs'!A6","v":0},null,null,null,null,null,"","","","","","","","",null,{"$f":"'Class Needs'!A6","v":0},"","","","","","","","","","","","","",null,{"$f":"'Class Needs'!A6","v":0},"","","","","","","","","","","","","",null,{"$f":"'Class Needs'!A6","v":0},"","","","","","","","","","","","","",null,{"$f":"'Class Needs'!A6","v":0},"","","","","","","","","","","","",""]
[{"$f":"'Class Needs'!A7","v":0},null,null,null,null,null,null,null,null,null,null,null,null,null,null,{"$f":"'Class Needs'!A7","v":0},null,null,null,null,null,null,null,null,null,null,null,null,null,null,{"$f":"'Class Needs'!A7","v":0},null,null,null,null,null,null,null,null,null,null,null,null,null,null,{"$f":"'Class Needs'!A7","v":0},null,null,null,null,null,null,null,null,null,null,"","","",null,{"$f":"'Class Needs'!A7","v":0},"","","","","","","","","","","","","",null,{"$f":"'Class Needs'!A7","v":0},"","","","","","","","","","","","","",null,{"$f":"'Class Needs'!A7","v":0},"","","","","","","","","","","","","",null,{"$f":"'Class Needs'!A7","v":0},"","","","","","","","","","","","","",null,{"$f":"'Class Needs'!A7","v":0},null,null,null,null,null,null,null,null,null,null,null,null,null,null,{"$f":"'Class Needs'!A7","v":0},null,null,null,null,null,null,null,null,null,null,null,null,null,null,{"$f":"'Class Needs'!A7","v":0},null,null,null,null,null,null,null,null,null,null,null,null,null,null,{"$f":"'Class Needs'!A7","v":0},null,null,null,null,null,"","","","","","","","",null,{"$f":"'Class Needs'!A7","v":0},"","","","","","","","","","","","","",null,{"$f":"'Class Needs'!A7","v":0},"","","","","","","","","","","","","",null,{"$f":"'Class Needs'!A7","v":0},"","","","","","","","","","","","","",null,{"$f":"'Class Needs'!A7","v":0},"","","","","","","","","","","","",""]
[{"$f":"'Class Needs'!A8","v":0},null,null,null,null,null,null,null,null,null,null,null,null,null,null,{"$f":"'Class Needs'!A8","v":0},null,null,null,null,null,null,null,null,null,null,null,null,null,null,{"$f":"'Class Needs'!A8","v":0},null,null,null,null,null,null,null,null,null,null,null,null,null,null,{"$f":"'Class Needs'!A8","v":0},null,null,null,null,null,null,null,null,null,null,"","","",null,{"$f":"'Class Needs'!A8","v":0},"","","","","","","","","","","","","",null,{"$f":"'Class Needs'!A8","v":0},"","","","","","","","","","","","","",null,{"$f":"'Class Needs'!A8","v":0},"","","","","","","","","","","","","",null,{"$f":"'Class Needs'!A8","v":0},"","","","","","","","","","","","","",null,{"$f":"'Class Needs'!A8","v":0},null,null,null,null,null,null,null,null,null,null,null,null,null,null,{"$f":"'Class Needs'!A8","v":0},null,null,null,null,null,null,null,null,null,null,null,null,null,null,{"$f":"'Class Needs'!A8","v":0},null,null,null,null,null,null,null,null,null,null,null,null,null,null,{"$f":"'Class Needs'!A8","v":0},null,null,null,null,null,"","","","","","","","",null,{"$f":"'Class Needs'!A8","v":0},"","","","","","","","","","","","","",null,{"$f":"'Class Needs'!A8","v":0},"","","","","","","","","","","","","",null,{"$f":"'Class Needs'!A8","v":0},"","","","","","","","","","","","","",null,{"$f":"'Class Needs'!A8","v":0},"","","","","","","","","","","","",""]
[{"$f":"'Class Needs'!A9","v":0},null,null,null,null,null,null,null,null,null,null,null,null,null,null,{"$f":"'Class Needs'!A9","v":0},null,null,null,null,null,null,null,null,null,null,null,null,null,null,{"$f":"'Class Needs'!A9","v":0},null,null,null,null,null,null,null,null,null,null,null,null,null,null,{"$f":"'Class Needs'!A9","v":0},null,null,null,null,null,null,null,null,null,null,"","","",null,{"$f":"'Class Needs'!A9","v":0},"","","","","","","","","","","","","",null,{"$f":"'Class Needs'!A9","v":0},"","","","","","","","","","","","","",null,{"$f":"'Class Needs'!A9","v":0},"","","","","","","","","","","","","",null,{"$f":"'Class Needs'!A9","v":0},"","","","","","","","","","","","","",null,{"$f":"'Class Needs'!A9","v":0},null,null,null,null,null,null,null,null,null,null,null,null,null,null,{"$f":"'Class Needs'!A9","v":0},null,null,null,null,null,null,null,null,null,null,null,null,null,null,{"$f":"'Class Needs'!A9","v":0},null,null,null,null,null,null,null,null,null,null,null,null,null,null,{"$f":"'Class Needs'!A9","v":0},null,null,null,null,null,"","","","","","","","",null,{"$f":"'Class Needs'!A9","v":0},"","","","","","","","","","","","","",null,{"$f":"'Class Needs'!A9","v":0},"","","","","","","","","","","","","",null,{"$f":"'Class Needs'!A9","v":0},"","","","","","","","","","","","","",null,{"$f":"'Class Needs'!A9","v":0},"","","","","","","","","","","","",""]
[{"$f":"'Class Needs'!A10","v":0},null,null,null,null,null,null,null,null,null,null,null,null,null,null,{"$f":"'Class Needs'!A10","v":0},null,null,null,null,null,null,null,null,null,null,null,null,null,null,{"$f":"'Class Needs'!A10","v":0},null,null,null,null,null,null,null,null,null,null,null,null,null,null,{"$f":"'Class Needs'!A10","v":0},null,null,null,null,null,null,null,null,null,null,"","","",null,{"$f":"'Class Needs'!A10","v":0},"","","","","","","","","","","","","",null,{"$f":"'Class Needs'!A10","v":0},"","","","","","","","","","","","","",null,{"$f":"'Class Needs'!A10","v":0},"","","","","","","","","","","","","",null,{"$f":"'Class Needs'!A10","v":0},"","","","","","","","","","","","","",null,{"$f":"'Class Needs'!A10","v":0},null,null,null,null,null,null,null,null,null,null,null,null,null,null,{"$f":"'Class Needs'!A10","v":0},null,null,null,null,null,null,null,null,null,null,null,null,null,null,{"$f":"'Class Needs'!A10","v":0},null,null,null,null,null,null,null,null,null,null,null,null,null,null,{"$f":"'Class Needs'!A10","v":0},null,null,null,null,null,"","","","","","","","",null,{"$f":"'Class Needs'!A10","v":0},"","","","","","","","","","","","","",null,{"$f":"'Class Needs'!A10","v":0},"","","","","","","","","","","","","",null,{"$f":"'Class Needs'!A10","v":0},"","","","","","","","","","","","","",null,{"$f":"'Class Needs'!A10","v":0},"","","","","","","","","","","","",""]
[{"$f":"'Class Needs'!A11","v":0},null,null,null,null,null,null,null,null,null,null,null,null,null,null,{"$f":"'Class Needs'!A11","v":0},null,null,null,null,null,null,null,null,null,null,null,null,null,null,{"$f":"'Class Needs'!A11","v":0},null,null,null,null,null,null,null,null,null,null,null,null,null,null,{"$f":"'Class Needs'!A11","v":0},null,null,null,null,null,null,null,null,null,null,"","","",null,{"$f":"'Class Needs'!A11","v":0},"","","","","","","","","","","","","",null,{"$f":"'Class Needs'!A11","v":0},"","","","","","","","","","","","","",null,{"$f":"'Class Needs'!A11","v":0},"","","","","","","","","","","","","",null,{"$f":"'Class Needs'!A11","v":0},"","","","","","","","","","","","","",null,{"$f":"'Class Needs'!A11","v":0},null,null,null,null,null,null,null,null,null,null,null,null,null,null,{"$f":"'Class Needs'!A11","v":0},null,null,null,null,null,null,null,null,null,null,null,null,null,null,{"$f":"'Class Needs'!A11","v":0},null,null,null,null,null,null,null,null,null,null,null,null,null,null,{"$f":"'Class Needs'!A11","v":0},null,null,null,null,null,"","","","","","","","",null,{"$f":"'Class Needs'!A11","v":0},"","","","","","","","","","","","","",null,{"$f":"'Class Needs'!A11","v":0},"","","","","","","","","","","","","",null,{"$f":"'Class Needs'!A11","v":0},"","","","","","","","","","","","","",null,{"$f":"'Class Needs'!A11","v":0},"","","","","","","","","","","","",""]
[{"$f":"'Class Needs'!A12","v":0},null,null,null,null,null,null,null,null,null,null,null,null,null,null,{"$f":"'Class Needs'!A12","v":0},null,null,null,null,null,null,null,null,null,null,null,null,null,null,{"$f":"'Class Needs'!A12","v":0},null,null,null,null,null,null,null,null,null,null,null,null,null,null,{"$f":"'Class Needs'!A12","v":0},null,null,null,null,null,null,null,null,null,null,"","","",null,{"$f":"'Class Needs'!A12","v":0},"","","","","","","","","","","","","",null,{"$f":"'Class Needs'!A12","v":0},"","","","","","","","","","","","","",null,{"$f":"'Class Needs'!A12","v":0},"","","","","","","","","","","","","",null,{"$f":"'Class Needs'!A12","v":0},"","","","","","","","","","","","","",null,{"$f":"'Class Needs'!A12","v":0},null,null,null,null,null,null,null,null,null,null,null,null,null,null,{"$f":"'Class Needs'!A12","v":0},null,null,null,null,null,null,null,null,null,null,null,null,null,null,{"$f":"'Class Needs'!A12","v":0},null,null,null,null,null,null,null,null,null,null,null,null,null,null,{"$f":"'Class Needs'!A12","v":0},null,null,null,null,null,"","","","","","","","",null,{"$f":"'Class Needs'!A12","v":0},"","","","","","","","","","","","","",null,{"$f":"'Class Needs'!A12","v":0},"","","","","","","","","","","","","",null,{"$f":"'Class Needs'!A12","v":0},"","","","","","","","","","","","","",null,{"$f":"'Class Needs'!A12","v":0},"","","","","","","","","","","","",""]
[{"$f":"'Class Needs'!A13","v":0},null,null,null,null,null,null,null,null,null,null,null,null,null,null,{"$f":"'Class Needs'!A13","v":0},null,null,null,null,null,null,null,null,null,null,null,null,null,null,{"$f":"'Class Needs'!A13","v":0},null,null,null,null,null,null,null,null,null,null,null,null,null,null,{"$f":"'Class Needs'!A13","v":0},null,null,null,null,null,null,null,null,null,null,"","","",null,{"$f":"'Class Needs'!A13","v":0},"","","","","","","","","","","","","",null,{"$f":"'Class Needs'!A13","v":0},"","","","","","","","","","","","","",null,{"$f":"'Class Needs'!A13","v":0},"","","","","","","","","","","","","",null,{"$f":"'Class Needs'!A13","v":0},"","","","","","","","","","","","","",null,{"$f":"'Class Needs'!A13","v":0},null,null,null,null,null,null,null,null,null,null,null,null,null,null,{"$f":"'Class Needs'!A13","v":0},null,null,null,null,null,null,null,null,null,null,null,null,null,null,{"$f":"'Class Needs'!A13","v":0},null,null,null,null,null,null,null,null,null,null,null,null,null,null,{"$f":"'Class Needs'!A13","v":0},null,null,null,null,null,"","","","","","","","",null,{"$f":"'Class Needs'!A13","v":0},"","","","","","","","","","","","","",null,{"$f":"'Class Needs'!A13","v":0},"","","","","","","","","","","","","",null,{"$f":"'Class Needs'!A13","v":0},"","","","","","","","","","","","","",null,{"$f":"'Class Needs'!A13","v":0},"","","","","","","","","","","","",""]
[{"$f":"'Class Needs'!A14","v":0},null,null,null,null,null,null,null,null,null,null,null,null,null,null,{"$f":"'Class Needs'!A14","v":0},null,null,null,null,null,null,null,null,null,null,null,null,null,null,{"$f":"'Class Needs'!A14","v":0},null,null,null,null,null,null,null,null,null,null,null,null,null,null,{"$f":"'Class Needs'!A14","v":0},null,null,null,null,null,null,null,null,null,null,"","","",null,{"$f":"'Class Needs'!A14","v":0},"","","","","","","","","","","","","",null,{"$f":"'Class Needs'!A14","v":0},"","","","","","","","","","","","","",null,{"$f":"'Class Needs'!A14","v":0},"","","","","","","","","","","","","",null,{"$f":"'Class Needs'!A14","v":0},"","","","","","","","","","","","","",null,{"$f":"'Class Needs'!A14","v":0},null,null,null,null,null,null,null,null,null,null,null,null,null,null,{"$f":"'Class Needs'!A14","v":0},null,null,null,null,null,null,null,null,null,null,null,null,null,null,{"$f":"'Class Needs'!A14","v":0},null,null,null,null,null,null,null,null,null,null,null,null,null,null,{"$f":"'Class Needs'!A14","v":0},null,null,null,null,null,"","","","","","","","",null,{"$f":"'Class Needs'!A14","v":0},"","","","","","","","","","","","","",null,{"$f":"'Class Needs'!A14","v":0},"","","","","","","","","","","","","",null,{"$f":"'Class Needs'!A14","v":0},"","","","","","","","","","","","","",null,{"$f":"'Class Needs'!A14","v":0},"","","","","","","","","","","","",""]
[{"$f":"'Class Needs'!A15","v":0},null,null,null,null,null,null,null,null,null,null,null,null,null,null,{"$f":"'Class Needs'!A15","v":0},null,null,null,null,null,null,null,null,null,null,null,null,null,null,{"$f":"'Class Needs'!A15","v":0},null,null,null,null,null,null,null,null,null,null,null,null,null,null,{"$f":"'Class Needs'!A15","v":0},null,null,null,null,null,null,null,null,null,null,"","","",null,{"$f":"'Class Needs'!A15","v":0},"","","","","","","","","","","","","",null,{"$f":"'Class Needs'!A15","v":0},"","","","","","","","","","","","","",null,{"$f":"'Class Needs'!A15","v":0},"","","","","","","","","","","","","",null,{"$f":"'Class Needs'!A15","v":0},"","","","","","","","","","","","","",null,{"$f":"'Class Needs'!A15","v":0},null,null,null,null,null,null,null,null,null,null,null,null,null,null,{"$f":"'Class Needs'!A15","v":0},null,null,null,null,null,null,null,null,null,null,null,null,null,null,{"$f":"'Class Needs'!A15","v":0},null,null,null,null,null,null,null,null,null,null,null,null,null,null,{"$f":"'Class Needs'!A15","v":0},null,null,null,null,null,"","","","","","","","",null,{"$f":"'Class Needs'!A15","v":0},"","","","","","","","","","","","","",null,{"$f":"'Class Needs'!A15","v":0},"","","","","","","","","","","","","",null,{"$f":"'Class Needs'!A15","v":0},"","","","","","","","","","","","","",null,{"$f":"'Class Needs'!A15","v":0},"","","","","","","","","","","","",""]
[{"$f":"'Class Needs'!A16","v":0},null,null,null,null,null,null,null,null,null,null,null,null,null,null,{"$f":"'Class Needs'!A16","v":0},null,null,null,null,null,null,null,null,null,null,null,null,null,null,{"$f":"'Class Needs'!A16","v":0},null,null,null,null,null,null,null,null,null,null,null,null,null,null,{"$f":"'Class Needs'!A16","v":0},null,null,null,null,null,null,null,null,null,null,"","","",null,{"$f":"'Class Needs'!A16","v":0},"","","","","","","","","","","","","",null,{"$f":"'Class Needs'!A16","v":0},"","","","","","","","","","","","","",null,{"$f":"'Class Needs'!A16","v":0},"","","","","","","","","","","","","",null,{"$f":"'Class Needs'!A16","v":0},"","","","","","","","","","","","","",null,{"$f":"'Class Needs'!A16","v":0},null,null,null,null,null,null,null,null,null,null,null,null,null,null,{"$f":"'Class Needs'!A16","v":0},null,null,null,null,null,null,null,null,null,null,null,null,null,null,{"$f":"'Class Needs'!A16","v":0},null,null,null,null,null,null,null,null,null,null,null,null,null,null,{"$f":"'Class Needs'!A16","v":0},null,null,null,null,null,"","","","","","","","",null,{"$f":"'Class Needs'!A16","v":0},"","","","","","","","","","","","","",null,{"$f":"'Class Needs'!A16","v":0},"","","","","","","","","","","","","",null,{"$f":"'Class Needs'!A16","v":0},"","","","","","","","","","","","","",null,{"$f":"'Class Needs'!A16","v":0},"","","","","","","","","","","","",""]
[{"$f":"'Class Needs'!A17","v":0},null,null,null,null,null,null,null,null,null,null,null,null,null,null,{"$f":"'Class Needs'!A17","v":0},null,null,null,null,null,null,null,null,null,null,null,null,null,null,{"$f":"'Class Needs'!A17","v":0},null,null,null,null,null,null,null,null,null,null,null,null,null,null,{"$f":"'Class Needs'!A17","v":0},null,null,null,null,null,null,null,null,null,null,"","","",null,{"$f":"'Class Needs'!A17","v":0},"","","","","","","","","","","","","",null,{"$f":"'Class Needs'!A17","v":0},"","","","","","","","","","","","","",null,{"$f":"'Class Needs'!A17","v":0},"","","","","","","","","","","","","",null,{"$f":"'Class Needs'!A17","v":0},"","","","","","","","","","","","","",null,{"$f":"'Class Needs'!A17","v":0},null,null,null,null,null,null,null,null,null,null,null,null,null,null,{"$f":"'Class Needs'!A17","v":0},null,null,null,null,null,null,null,null,null,null,null,null,null,null,{"$f":"'Class Needs'!A17","v":0},null,null,null,null,null,null,null,null,null,null,null,null,null,null,{"$f":"'Class Needs'!A17","v":0},null,null,null,null,null,"","","","","","","","",null,{"$f":"'Class Needs'!A17","v":0},"","","","","","","","","","","","","",null,{"$f":"'Class Needs'!A17","v":0},"","","","","","","","","","","","","",null,{"$f":"'Class Needs'!A17","v":0},"","","","","","","","","","","","","",null,{"$f":"'Class Needs'!A17","v":0},"","","","","","","","","","","","",""]
[{"$f":"'Class Needs'!A18","v":0},null,null,null,null,null,null,null,null,null,null,null,null,null,null,{"$f":"'Class Needs'!A18","v":0},null,null,null,null,null,null,null,null,null,null,null,null,null,null,{"$f":"'Class Needs'!A18","v":0},null,null,null,null,null,null,null,null,null,null,null,null,null,null,{"$f":"'Class Needs'!A18","v":0},null,null,null,null,null,null,null,null,null,null,"","","",null,{"$f":"'Class Needs'!A18","v":0},"","","","","","","","","","","","","",null,{"$f":"'Class Needs'!A18","v":0},"","","","","","","","","","","","","",null,{"$f":"'Class Needs'!A18","v":0},"","","","","","","","","","","","","",null,{"$f":"'Class Needs'!A18","v":0},"","","","","","","","","","","","","",null,{"$f":"'Class Needs'!A18","v":0},null,null,null,null,null,null,null,null,null,null,null,null,null,null,{"$f":"'Class Needs'!A18","v":0},null,null,null,null,null,null,null,null,null,null,null,null,null,null,{"$f":"'Class Needs'!A18","v":0},null,null,null,null,null,null,null,null,null,null,null,null,null,null,{"$f":"'Class Needs'!A18","v":0},null,null,null,null,null,"","","","","","","","",null,{"$f":"'Class Needs'!A18","v":0},"","","","","","","","","","","","","",null,{"$f":"'Class Needs'!A18","v":0},"","","","","","","","","","","","","",null,{"$f":"'Class Needs'!A18","v":0},"","","","","","","","","","","","","",null,{"$f":"'Class Needs'!A18","v":0},"","","","","","","","","","","","",""]
[{"$f":"'Class Needs'!A19","v":0},null,null,null,null,null,null,null,null,null,null,null,null,null,null,{"$f":"'Class Needs'!A19","v":0},null,null,null,null,null,null,null,null,null,null,null,null,null,null,{"$f":"'Class Needs'!A19","v":0},null,null,null,null,null,null,null,null,null,null,null,null,null,null,{"$f":"'Class Needs'!A19","v":0},null,null,null,null,null,null,null,null,null,null,"","","",null,{"$f":"'Class Needs'!A19","v":0},"","","","","","","","","","","","","",null,{"$f":"'Class Needs'!A19","v":0},"","","","","","","","","","","","","",null,{"$f":"'Class Needs'!A19","v":0},"","","","","","","","","","","","","",null,{"$f":"'Class Needs'!A19","v":0},"","","","","","","","","","","","","",null,{"$f":"'Class Needs'!A19","v":0},"","","","","","","","","","","","","",null,{"$f":"'Class Needs'!A19","v":0},null,null,null,null,null,null,null,null,null,null,null,null,null,null,{"$f":"'Class Needs'!A19","v":0},null,null,null,null,null,null,null,null,null,null,null,null,null,null,{"$f":"'Class Needs'!A19","v":0},null,null,null,null,null,"","","","","","","","",null,{"$f":"'Class Needs'!A19","v":0},"","","","","","","","","","","","","",null,{"$f":"'Class Needs'!A19","v":0},"","","","","","","","","","","","","",null,{"$f":"'Class Needs'!A19","v":0},"","","","","","","","","","","","","",null,{"$f":"'Class Needs'!A19","v":0},"","","","","","","","","","","","",""]
[{"$f":"'Class Needs'!A20","v":0},null,null,null,null,null,null,null,null,null,null,null,null,null,null,{"$f":"'Class Needs'!A20","v":0},null,null,null,null,null,null,null,null,null,null,null,null,null,null,{"$f":"'Class Needs'!A20","v":0},null,null,null,null,null,null,null,null,null,null,null,null,null,null,{"$f":"'Class Needs'!A20","v":0},null,null,null,null,null,null,null,null,null,null,"","","",null,{"$f":"'Class Needs'!A20","v":0},"","","","","","","","","","","","","",null,{"$f":"'Class Needs'!A20","v":0},"","","","","","","","","","","","","",null,{"$f":"'Class Needs'!A20","v":0},"","","","","","","","","","","","","",null,{"$f":"'Class Needs'!A20","v":0},"","","","","","","","","","","","","",null,{"$f":"'Class Needs'!A20","v":0},"","","","","","","","","","","","","",null,{"$f":"'Class Needs'!A20","v":0},null,null,null,null,null,null,null,null,null,null,null,null,null,null,{"$f":"'Class Needs'!A20","v":0},null,null,null,null,null,null,null,null,null,null,null,null,null,null,{"$f":"'Class Needs'!A20","v":0},null,null,null,null,null,"","","","","","","","",null,{"$f":"'Class Needs'!A20","v":0},"","","","","","","","","","","","","",null,{"$f":"'Class Needs'!A20","v":0},"","","","","","","","","","","","","",null,{"$f":"'Class Needs'!A20","v":0},"","","","","","","","","","","","","",null,{"$f":"'Class Needs'!A20","v":0},"","","","","","","","","","","","",""]
[{"$f":"'Class Needs'!A21","v":0},null,null,null,null,null,null,null,null,null,null,null,null,null,null,{"$f":"'Class Needs'!A21","v":0},null,null,null,null,null,null,null,null,null,null,null,null,null,null,{"$f":"'Class Needs'!A21","v":0},null,null,null,null,null,null,null,null,null,null,null,null,null,null,{"$f":"'Class Needs'!A21","v":0},null,null,null,null,null,null,null,null,null,null,"","","",null,{"$f":"'Class Needs'!A21","v":0},"","","","","","","","","","","","","",null,{"$f":"'Class Needs'!A21","v":0},"","","","","","","","","","","","","",null,{"$f":"'Class Needs'!A21","v":0},"","","","","","","","","","","","","",null,{"$f":"'Class Needs'!A21","v":0},"","","","","","","","","","","","","",null,{"$f":"'Class Needs'!A21","v":0},"","","","","","","","","","","","","",null,{"$f":"'Class Needs'!A21","v":0},null,null,null,null,null,null,null,null,null,null,null,null,null,null,{"$f":"'Class Needs'!A21","v":0},null,null,null,null,null,null,null,null,null,null,null,null,null,null,{"$f":"'Class Needs'!A21","v":0},null,null,null,null,null,"","","","","","","","",null,{"$f":"'Class Needs'!A21","v":0},"","","","","","","","","","","","","",null,{"$f":"'Class Needs'!A21","v":0},"","","","","","","","","","","","","",null,{"$f":"'Class Needs'!A21","v":0},"","","","","","","","","","","","","",null,{"$f":"'Class Needs'!A21","v":0},"","","","","","","","","","","","",""]
[{"$f":"'Class Needs'!A22","v":0},null,null,null,null,null,null,null,null,null,null,null,null,null,null,{"$f":"'Class Needs'!A22","v":0},null,null,null,null,null,null,null,null,null,null,null,null,null,null,{"$f":"'Class Needs'!A22","v":0},null,null,null,null,null,null,null,null,null,null,null,null,null,null,{"$f":"'Class Needs'!A22","v":0},null,null,null,null,null,"","","","","","","","",null,{"$f":"'Class Needs'!A22","v":0},"","","","","","","","","","","","","",null,{"$f":"'Class Needs'!A22","v":0},"","","","","","","","","","","","","",null,{"$f":"'Class Needs'!A22","v":0},"","","","","","","","","","","","","",null,{"$f":"'Class Needs'!A22","v":0},"","","","","","","","","","","","","",null,{"$f":"'Class Needs'!A22","v":0},"","","","","","","","","","","","","",null,{"$f":"'Class Needs'!A22","v":0},null,null,null,null,null,null,null,null,null,null,null,null,null,null,{"$f":"'Class Needs'!A22","v":0},null,null,null,null,null,null,null,null,null,null,null,null,null,null,{"$f":"'Class Needs'!A22","v":0},null,null,null,null,null,"","","","","","","","",null,{"$f":"'Class Needs'!A22","v":0},"","","","","","","","","","","","","",null,{"$f":"'Class Needs'!A22","v":0},"","","","","","","","","","","","","",null,{"$f":"'Class Needs'!A22","v":0},"","","","","","","","","","","","","",null,{"$f":"'Class Needs'!A22","v":0},"","","","","","","","","","","","",""]
[{"$f":"'Class Needs'!A23","v":0},null,null,null,null,null,null,null,null,null,null,null,null,null,null,{"$f":"'Class Needs'!A23","v":0},null,null,null,null,null,null,null,null,null,null,null,null,null,null,{"$f":"'Class Needs'!A23","v":0},null,null,null,null,null,null,null,null,null,null,null,null,null,null,{"$f":"'Class Needs'!A23","v":0},null,null,null,null,null,"","","","","","","","",null,{"$f":"'Class Needs'!A23","v":0},"","","","","","","","","","","","","",null,{"$f":"'Class Needs'!A23","v":0},"","","","","","","","","","","","","",null,{"$f":"'Class Needs'!A23","v":0},"","","","","","","","","","","","","",null,{"$f":"'Class Needs'!A23","v":0},"","","","","","","","","","","","","",null,{"$f":"'Class Needs'!A23","v":0},"","","","","","","","","","","","","",null,{"$f":"'Class Needs'!A23","v":0},null,null,null,null,null,null,null,null,null,null,null,null,null,null,{"$f":"'Class Needs'!A23","v":0},null,null,null,null,null,null,null,null,null,null,null,null,null,null,{"$f":"'Class Needs'!A23","v":0},null,null,null,null,null,"","","","","","","","",null,{"$f":"'Class Needs'!A23","v":0},"","","","","","","","","","","","","",null,{"$f":"'Class Needs'!A23","v":0},"","","","","","","","","","","","","",null,{"$f":"'Class Needs'!A23","v":0},"","","","","","","","","","","","","",null,{"$f":"'Class Needs'!A23","v":0},"","","","","","","","","","","","",""]
[{"$f":"'Class Needs'!A24","v":0},null,null,null,null,null,null,null,null,null,null,null,null,null,null,{"$f":"'Class Needs'!A24","v":0},null,null,null,null,null,null,null,null,null,null,null,null,null,null,{"$f":"'Class Needs'!A24","v":0},null,null,null,null,null,null,null,null,null,null,null,null,null,null,{"$f":"'Class Needs'!A24","v":0},null,null,null,null,null,"","","","","","","","",null,{"$f":"'Class Needs'!A24","v":0},"","","","","","","","","","","","","",null,{"$f":"'Class Needs'!A24","v":0},"","","","","","","","","","","","","",null,{"$f":"'Class Needs'!A24","v":0},"","","","","","","","","","","","","",null,{"$f":"'Class Needs'!A24","v":0},"","","","","","","","","","","","","",null,{"$f":"'Class Needs'!A24","v":0},null,"","","","","","","","","","","","",null,{"$f":"'Class Needs'!A24","v":0},null,null,null,null,null,null,null,null,null,null,null,null,null,null,{"$f":"'Class Needs'!A24","v":0},null,null,null,null,null,null,null,null,null,null,null,null,null,null,{"$f":"'Class Needs'!A24","v":0},null,null,null,null,null,"","","","","","","","",null,{"$f":"'Class Needs'!A24","v":0},"","","","","","","","","","","","","",null,{"$f":"'Class Needs'!A24","v":0},"","","","","","","","","","","","","",null,{"$f":"'Class Needs'!A24","v":0},"","","","","","","","","","","","","",null,{"$f":"'Class Needs'!A24","v":0},"","","","","","","","","","","","",""]
[{"$f":"'Class Needs'!A25","v":0},null,null,null,null,null,null,null,null,null,null,null,null,null,null,{"$f":"'Class Needs'!A25","v":0},null,null,null,null,null,null,null,null,null,null,null,null,null,null,{"$f":"'Class Needs'!A25","v":0},null,null,null,null,null,null,null,null,null,null,null,null,null,null,{"$f":"'Class Needs'!A25","v":0},null,null,null,null,null,"","","","","","","","",null,{"$f":"'Class Needs'!A25","v":0},"","","","","","","","","","","","","",null,{"$f":"'Class Needs'!A25","v":0},"","","","","","","","","","","","","",null,{"$f":"'Class Needs'!A25","v":0},"","","","","","","","","","","","","",null,{"$f":"'Class Needs'!A25","v":0},"","","","","","","","","","","","","",null,{"$f":"'Class Needs'!A25","v":0},"","","","","","","","","","","","","",null,{"$f":"'Class Needs'!A25","v":0},null,null,null,null,null,null,null,null,null,null,null,null,null,null,{"$f":"'Class Needs'!A25","v":0},null,null,null,null,null,null,null,null,null,null,null,null,null,null,{"$f":"'Class Needs'!A25","v":0},null,null,null,null,null,"","","","","","","","",null,{"$f":"'Class Needs'!A25","v":0},"","","","","","","","","","","","","",null,{"$f":"'Class Needs'!A25","v":0},"","","","","","","","","","","","","",null,{"$f":"'Class Needs'!A25","v":0},"","","","","","","","","","","","","",null,{"$f":"'Class Needs'!A25","v":0},"","","","","","","","","","","","",""]
[{"$f":"'Class Needs'!A26","v":0},null,null,null,null,null,null,null,null,null,null,null,null,null,null,{"$f":"'Class Needs'!A26","v":0},null,null,null,null,null,null,null,null,null,null,null,null,null,null,{"$f":"'Class Needs'!A26","v":0},null,null,null,null,null,null,null,null,null,null,null,null,null,null,{"$f":"'Class Needs'!A26","v":0},null,null,null,null,null,"","","","","","","","",null,{"$f":"'Class Needs'!A26","v":0},"","","","","","","","","","","","","",null,{"$f":"'Class Needs'!A26","v":0},"","","","","","","","","","","","","",null,{"$f":"'Class Needs'!A26","v":0},"","","","","","","","","","","","","",null,{"$f":"'Class Needs'!A26","v":0},"","","","","","","","","","","","","",null,{"$f":"'Class Needs'!A26","v":0},"","","","","","","","","","","","","",null,{"$f":"'Class Needs'!A26","v":0},null,null,null,null,null,null,null,null,null,null,null,null,null,null,{"$f":"'Class Needs'!A26","v":0},null,null,null,null,null,null,null,null,null,null,null,null,null,null,{"$f":"'Class Needs'!A26","v":0},null,null,null,null,null,"","","","","","","","",null,{"$f":"'Class Needs'!A26","v":0},"","","","","","","","","","","","","",null,{"$f":"'Class Needs'!A26","v":0},"","","","","","","","","","","","","",null,{"$f":"'Class Needs'!A26","v":0},"","","","","","","","","","","","","",null,{"$f":"'Class Needs'!A26","v":0},"","","","","","","","","","","","",""]
[{"$f":"'Class Needs'!A27","v":0},null,null,null,null,null,null,null,null,null,null,null,null,null,null,{"$f":"'Class Needs'!A27","v":0},null,null,null,null,null,null,null,null,null,null,null,null,null,null,{"$f":"'Class Needs'!A27","v":0},null,null,null,null,null,null,null,null,null,null,null,null,null,null,{"$f":"'Class Needs'!A27","v":0},null,null,null,null,null,"","","","","","","","",null,{"$f":"'Class Needs'!A27","v":0},"","","","","","","","","","","","","",null,{"$f":"'Class Needs'!A27","v":0},"","","","","","","","","","","","","",null,{"$f":"'Class Needs'!A27","v":0},"","","","","","","","","","","","","",null,{"$f":"'Class Needs'!A27","v":0},"","","","","","","","","","","","","",null,{"$f":"'Class Needs'!A27","v":0},"","","","","","","","","","","","","",null,{"$f":"'Class Needs'!A27","v":0},null,null,null,null,null,null,null,null,null,null,null,null,null,null,{"$f":"'Class Needs'!A27","v":0},null,null,null,null,null,null,null,null,null,null,null,null,null,null,{"$f":"'Class Needs'!A27","v":0},null,null,null,null,null,"","","","","","","","",null,{"$f":"'Class Needs'!A27","v":0},"","","","","","","","","","","","","",null,{"$f":"'Class Needs'!A27","v":0},"","","","","","","","","","","","","",null,{"$f":"'Class Needs'!A27","v":0},"","","","","","","","","","","","","",null,{"$f":"'Class Needs'!A27","v":0},"","","","","","","","","","","","",""]
[{"$f":"'Class Needs'!A28","v":0},null,null,null,null,null,null,null,null,null,null,null,null,null,null,{"$f":"'Class Needs'!A28","v":0},null,null,null,null,null,null,null,null,null,null,null,null,null,null,{"$f":"'Class Needs'!A28","v":0},null,null,null,null,null,null,null,null,null,null,null,null,null,null,{"$f":"'Class Needs'!A28","v":0},null,null,null,null,null,"","","","","","","","",null,{"$f":"'Class Needs'!A28","v":0},"","","","","","","","","","","","","",null,{"$f":"'Class Needs'!A28","v":0},"","","","","","","","","","","","","",null,{"$f":"'Class Needs'!A28","v":0},"","","","","","","","","","","","","",null,{"$f":"'Class Needs'!A28","v":0},"","","","","","","","","","","","","",null,{"$f":"'Class Needs'!A28","v":0},"","","","","","","","","","","","","",null,{"$f":"'Class Needs'!A28","v":0},null,null,null,null,null,null,null,null,null,null,null,null,null,null,{"$f":"'Class Needs'!A28","v":0},null,null,null,null,null,null,null,null,null,null,null,null,null,null,{"$f":"'Class Needs'!A28","v":0},null,null,null,null,null,"","","","","","","","",null,{"$f":"'Class Needs'!A28","v":0},"","","","","","","","","","","","","",null,{"$f":"'Class Needs'!A28","v":0},"","","","","","","","","","","","","",null,{"$f":"'Class Needs'!A28","v":0},"","","","","","","","","","","","","",null,{"$f":"'Class Needs'!A28","v":0},"","","","","","","","","","","","",""]
[{"$f":"'Class Needs'!A29","v":0},null,null,null,null,null,null,null,null,null,null,null,null,null,null,{"$f":"'Class Needs'!A29","v":0},null,null,null,null,null,null,null,null,null,null,null,null,null,null,{"$f":"'Class Needs'!A29","v":0},null,null,null,null,null,null,null,null,null,null,null,null,null,null,{"$f":"'Class Needs'!A29","v":0},null,null,null,null,null,"","","","","","","","",null,{"$f":"'Class Needs'!A29","v":0},"","","","","","","","","","","","","",null,{"$f":"'Class Needs'!A29","v":0},"","","","","","","","","","","","","",null,{"$f":"'Class Needs'!A29","v":0},"","","","","","","","","","","","","",null,{"$f":"'Class Needs'!A29","v":0},"","","","","","","","","","","","","",null,{"$f":"'Class Needs'!A29","v":0},"","","","","","","","","","","","","",null,{"$f":"'Class Needs'!A29","v":0},null,null,null,null,null,null,null,null,null,null,null,null,null,null,{"$f":"'Class Needs'!A29","v":0},null,null,null,null,null,null,null,null,null,null,null,null,null,null,{"$f":"'Class Needs'!A29","v":0},null,null,null,null,null,"","","","","","","","",null,{"$f":"'Class Needs'!A29","v":0},"","","","","","","","","","","","","",null,{"$f":"'Class Needs'!A29","v":0},"","","","","","","","","","","","","",null,{"$f":"'Class Needs'!A29","v":0},"","","","","","","","","","","","","",null,{"$f":"'Class Needs'!A29","v":0},"","","","","","","","","","","","",""]
[{"$f":"'Class Needs'!A30","v":0},null,null,null,null,null,null,null,null,null,null,null,null,null,null,{"$f":"'Class Needs'!A30","v":0},null,null,null,null,null,null,null,null,null,null,null,null,null,null,{"$f":"'Class Needs'!A30","v":0},null,null,null,null,null,null,null,null,null,null,null,null,null,null,{"$f":"'Class Needs'!A30","v":0},null,null,null,null,null,"","","","","","","","",null,{"$f":"'Class Needs'!A30","v":0},"","","","","","","","","","","","","",null,{"$f":"'Class Needs'!A30","v":0},"","","","","","","","","","","","","",null,{"$f":"'Class Needs'!A30","v":0},"","","","","","","","","","","","","",null,{"$f":"'Class Needs'!A30","v":0},"","","","","","","","","","","","","",null,{"$f":"'Class Needs'!A30","v":0},"","","","","","","","","","","","","",null,{"$f":"'Class Needs'!A30","v":0},null,null,null,null,null,null,null,null,null,null,null,null,null,null,{"$f":"'Class Needs'!A30","v":0},null,null,null,null,null,null,null,null,null,null,null,null,null,null,{"$f":"'Class Needs'!A30","v":0},null,null,null,null,null,"","","","","","","","",null,{"$f":"'Class Needs'!A30","v":0},"","","","","","","","","","","","","",null,{"$f":"'Class Needs'!A30","v":0},"","","","","","","","","","","","","",null,{"$f":"'Class Needs'!A30","v":0},"","","","","","","","","","","","","",null,{"$f":"'Class Needs'!A30","v":0},"","","","","","","","","","","","",""]
[{"$f":"'Class Needs'!A31","v":0},null,null,null,null,null,null,null,null,null,null,null,null,null,null,{"$f":"'Class Needs'!A31","v":0},null,null,null,null,null,null,null,null,null,null,null,null,null,null,{"$f":"'Class Needs'!A31","v":0},null,null,null,null,null,null,null,null,null,null,null,null,null,null,{"$f":"'Class Needs'!A31","v":0},null,null,null,null,null,"","","","","","","","",null,{"$f":"'Class Needs'!A31","v":0},"","","","","","","","","","","","","",null,{"$f":"'Class Needs'!A31","v":0},"","","","","","","","","","","","","",null,{"$f":"'Class Needs'!A31","v":0},"","","","","","","","","","","","","",null,{"$f":"'Class Needs'!A31","v":0},"","","","","","","","","","","","","",null,{"$f":"'Class Needs'!A31","v":0},"","","","","","","","","","","","","",null,{"$f":"'Class Needs'!A31","v":0},null,null,null,null,null,null,null,null,null,null,null,null,null,null,{"$f":"'Class Needs'!A31","v":0},null,null,null,null,null,null,null,null,null,null,null,null,null,null,{"$f":"'Class Needs'!A31","v":0},null,null,null,null,null,"","","","","","","","",null,{"$f":"'Class Needs'!A31","v":0},"","","","","","","","","","","","","",null,{"$f":"'Class Needs'!A31","v":0},"","","","","","","","","","","","","",null,{"$f":"'Class Needs'!A31","v":0},"","","","","","","","","","","","","",null,{"$f":"'Class Needs'!A31","v":0},"","","","","","","","","","","","",""]
[{"$f":"'Class Needs'!A32","v":0},null,null,null,null,null,null,null,null,null,null,null,null,null,null,{"$f":"'Class Needs'!A32","v":0},null,null,null,null,null,null,null,null,null,null,null,null,null,null,{"$f":"'Class Needs'!A32","v":0},null,null,null,null,null,null,null,null,null,null,null,null,null,null,{"$f":"'Class Needs'!A32","v":0},null,null,null,null,null,"","","","","","","","",null,{"$f":"'Class Needs'!A32","v":0},"","","","","","","","","","","","","",null,{"$f":"'Class Needs'!A32","v":0},"","","","","","","","","","","","","",null,{"$f":"'Class Needs'!A32","v":0},"","","","","","","","","","","","","",null,{"$f":"'Class Needs'!A32","v":0},"","","","","","","","","","","","","",null,{"$f":"'Class Needs'!A32","v":0},"","","","","","","","","","","","","",null,{"$f":"'Class Needs'!A32","v":0},null,null,null,null,null,null,null,null,null,null,null,null,null,null,{"$f":"'Class Needs'!A32","v":0},null,null,null,null,null,null,null,null,null,null,null,null,null,null,{"$f":"'Class Needs'!A32","v":0},null,null,null,null,null,"","","","","","","","",null,{"$f":"'Class Needs'!A32","v":0},"","","","","","","","","","","","","",null,{"$f":"'Class Needs'!A32","v":0},"","","","","","","","","","","","","",null,{"$f":"'Class Needs'!A32","v":0},"","","","","","","","","","","","","",null,{"$f":"'Class Needs'!A32","v":0},"","","","","","","","","","","","",""]
[{"$f":"'Class Needs'!A33","v":0},null,null,null,null,null,null,null,null,null,null,null,null,null,null,{"$f":"'Class Needs'!A33","v":0},null,null,null,null,null,null,null,null,null,null,null,null,null,null,{"$f":"'Class Needs'!A33","v":0},null,null,null,null,null,null,null,null,null,null,null,null,null,null,{"$f":"'Class Needs'!A33","v":0},null,null,null,null,null,"","","","","","","","",null,{"$f":"'Class Needs'!A33","v":0},"","","","","","","","","","","","","",null,{"$f":"'Class Needs'!A33","v":0},"","","","","","","","","","","","","",null,{"$f":"'Class Needs'!A33","v":0},"","","","","","","","","","","","","",null,{"$f":"'Class Needs'!A33","v":0},"","","","","","","","","","","","","",null,{"$f":"'Class Needs'!A33","v":0},"","","","","","","","","","","","","",null,{"$f":"'Class Needs'!A33","v":0},null,null,null,null,null,null,null,null,null,null,null,null,null,null,{"$f":"'Class Needs'!A33","v":0},null,null,null,null,null,null,null,null,null,null,null,null,null,null,{"$f":"'Class Needs'!A33","v":0},null,null,null,null,null,"","","","","","","","",null,{"$f":"'Class Needs'!A33","v":0},"","","","","","","","","","","","","",null,{"$f":"'Class Needs'!A33","v":0},"","","","","","","","","","","","","",null,{"$f":"'Class Needs'!A33","v":0},"","","","","","","","","","","","","",null,{"$f":"'Class Needs'!A33","v":0},"","","","","","","","","","","","",""]
[{"$f":"'Class Needs'!A34","v":0},null,null,null,null,null,null,null,null,null,null,null,null,null,null,{"$f":"'Class Needs'!A34","v":0},null,null,null,null,null,null,null,null,null,null,null,null,null,null,{"$f":"'Class Needs'!A34","v":0},null,null,null,null,null,null,null,null,null,null,null,null,null,null,{"$f":"'Class Needs'!A34","v":0},null,null,null,null,null,"","","","","","","","",null,{"$f":"'Class Needs'!A34","v":0},"","","","","","","","","","","","","",null,{"$f":"'Class Needs'!A34","v":0},"","","","","","","","","","","","","",null,{"$f":"'Class Needs'!A34","v":0},"","","","","","","","","","","","","",null,{"$f":"'Class Needs'!A34","v":0},"","","","","","","","","","","","","",null,{"$f":"'Class Needs'!A34","v":0},null,null,null,null,null,null,null,null,null,null,null,null,null,null,{"$f":"'Class Needs'!A34","v":0},"","","","","","","","","","","","","",null,{"$f":"'Class Needs'!A34","v":0},null,null,null,null,null,null,null,null,null,null,null,null,null,null,{"$f":"'Class Needs'!A34","v":0},null,null,null,null,null,"","","","","","","","",null,{"$f":"'Class Needs'!A34","v":0},"","","","","","","","","","","","","",null,{"$f":"'Class Needs'!A34","v":0},"","","","","","","","","","","","","",null,{"$f":"'Class Needs'!A34","v":0},"","","","","","","","","","","","","",null,{"$f":"'Class Needs'!A34","v":0},"","","","","","","","","","","","",""]
[{"$f":"'Class Needs'!A35","v":0},null,null,null,null,null,null,null,null,null,null,null,null,null,null,{"$f":"'Class Needs'!A35","v":0},null,null,null,null,null,null,null,null,null,null,null,null,null,null,{"$f":"'Class Needs'!A35","v":0},null,null,null,null,null,null,null,null,null,null,null,null,"",null,{"$f":"'Class Needs'!A35","v":0},null,null,null,null,null,"","","","","","","","",null,{"$f":"'Class Needs'!A35","v":0},"","","","","","","","","","","","","",null,{"$f":"'Class Needs'!A35","v":0},"","","","","","","","","","","","","",null,{"$f":"'Class Needs'!A35","v":0},"","","","","","","","","","","","","",null,{"$f":"'Class Needs'!A35","v":0},"","","","","","","","","","","","","",null,{"$f":"'Class Needs'!A35","v":0},null,null,null,null,null,null,null,null,null,null,null,null,null,null,{"$f":"'Class Needs'!A35","v":0},"","","","","","","","","","","","","",null,{"$f":"'Class Needs'!A35","v":0},"","","","","","","","","","","","","",null,{"$f":"'Class Needs'!A35","v":0},null,null,null,null,null,"","","","","","","","",null,{"$f":"'Class Needs'!A35","v":0},"","","","","","","","","","","","","",null,{"$f":"'Class Needs'!A35","v":0},"","","","","","","","","","","","","",null,{"$f":"'Class Needs'!A35","v":0},"","","","","","","","","","","","","",null,{"$f":"'Class Needs'!A35","v":0},"","","","","","","","","","","","",""]
[{"$f":"'Class Needs'!A36","v":0},null,null,null,null,null,null,null,null,null,null,null,null,null,null,{"$f":"'Class Needs'!A36","v":0},null,null,null,null,null,null,null,null,null,null,null,null,null,null,{"$f":"'Class Needs'!A36","v":0},null,null,null,null,null,null,null,null,null,null,null,null,null,null,{"$f":"'Class Needs'!A36","v":0},"","","","","","","","","","","","","",null,{"$f":"'Class Needs'!A36","v":0},"","","","","","","","","","","","","",null,{"$f":"'Class Needs'!A36","v":0},"","","","","","","","","","","","","",null,{"$f":"'Class Needs'!A36","v":0},"","","","","","","","","","","","","",null,{"$f":"'Class Needs'!A36","v":0},"","","","","","","","","","","","","",null,{"$f":"'Class Needs'!A36","v":0},null,null,null,null,null,null,null,null,null,null,null,null,null,null,{"$f":"'Class Needs'!A36","v":0},"","","","","","","","","","","","","",null,{"$f":"'Class Needs'!A36","v":0},null,null,null,null,null,null,null,null,null,null,null,null,null,null,{"$f":"'Class Needs'!A36","v":0},"","","","","","","","","","","","","",null,{"$f":"'Class Needs'!A36","v":0},"","","","","","","","","","","","","",null,{"$f":"'Class Needs'!A36","v":0},"","","","","","","","","","","","","",null,{"$f":"'Class Needs'!A36","v":0},"","","","","","","","","","","","","",null,{"$f":"'Class Needs'!A36","v":0},"","","","","","","","","","","","",""]
[{"$f":"'Class Needs'!A37","v":0},null,null,null,null,null,null,null,null,null,null,null,null,null,null,{"$f":"'Class Needs'!A37","v":0},null,null,null,null,null,null,null,null,null,null,null,null,null,null,{"$f":"'Class Needs'!A37","v":0},null,null,null,null,null,null,null,null,null,null,null,null,null,null,{"$f":"'Class Needs'!A37","v":0},"","","",null,"","","","","","","","","",null,{"$f":"'Class Needs'!A37","v":0},"","","","","","","","","","","","","",null,{"$f":"'Class Needs'!A37","v":0},"","","","","","","","","","","","","",null,{"$f":"'Class Needs'!A37","v":0},"","","","","","","","","","","","","",null,{"$f":"'Class Needs'!A37","v":0},"","","","","","","","","","","","","",null,{"$f":"'Class Needs'!A37","v":0},null,null,null,null,null,null,null,null,null,null,null,null,null,null,{"$f":"'Class Needs'!A37","v":0},"","","","","","","","","","","","","",null,{"$f":"'Class Needs'!A37","v":0},null,null,null,null,null,null,null,null,null,null,null,null,null,null,{"$f":"'Class Needs'!A37","v":0},"","","",null,"","","","","","","","","",null,{"$f":"'Class Needs'!A37","v":0},"","","","","","","","","","","","","",null,{"$f":"'Class Needs'!A37","v":0},"","","","","","","","","","","","","",null,{"$f":"'Class Needs'!A37","v":0},"","","","","","","","","","","","","",null,{"$f":"'Class Needs'!A37","v":0},"","","","","","","","","","","","",""]
[{"$f":"'Class Needs'!A38","v":0},null,null,null,null,null,null,null,null,null,null,null,null,null,null,{"$f":"'Class Needs'!A38","v":0},null,null,null,null,null,null,null,null,null,null,null,null,null,null,{"$f":"'Class Needs'!A38","v":0},null,null,null,null,null,null,null,null,null,null,null,null,null,null,{"$f":"'Class Needs'!A38","v":0},"","","","","","","","","","","","","",null,{"$f":"'Class Needs'!A38","v":0},"","","","","","","","","","","","","",null,{"$f":"'Class Needs'!A38","v":0},"","","","","","","","","","","","","",null,{"$f":"'Class Needs'!A38","v":0},"","","","","","","","","","","","","",null,{"$f":"'Class Needs'!A38","v":0},"","","","","","","","","","","","","",null,{"$f":"'Class Needs'!A38","v":0},null,null,null,null,null,null,null,null,null,null,null,null,null,null,{"$f":"'Class Needs'!A38","v":0},null,null,null,null,null,null,null,null,null,null,null,null,"",null,{"$f":"'Class Needs'!A38","v":0},null,null,null,null,null,null,null,null,null,null,null,null,null,null,{"$f":"'Class Needs'!A38","v":0},"","","","","","","","","","","","","",null,{"$f":"'Class Needs'!A38","v":0},"","","","","","","","","","","","","",null,{"$f":"'Class Needs'!A38","v":0},"","","","","","","","","","","","","",null,{"$f":"'Class Needs'!A38","v":0},"","","","","","","","","","","","","",null,{"$f":"'Class Needs'!A38","v":0},"","","","","","","","","","","","",""]
[{"$f":"'Class Needs'!A39","v":0},null,null,null,null,null,null,null,null,null,null,null,null,null,null,{"$f":"'Class Needs'!A39","v":0},null,null,null,null,null,null,null,null,null,null,null,null,null,null,{"$f":"'Class Needs'!A39","v":0},null,null,null,null,null,null,null,null,null,null,null,null,null,null,{"$f":"'Class Needs'!A39","v":0},"","","","","","","","","","","","","",null,{"$f":"'Class Needs'!A39","v":0},"","","","","","","","","","","","","",null,{"$f":"'Class Needs'!A39","v":0},"","","","","","","","","","","","","",null,{"$f":"'Class Needs'!A39","v":0},"","","","","","","","","","","","","",null,{"$f":"'Class Needs'!A39","v":0},"","","","","","","","","","","","","",null,{"$f":"'Class Needs'!A39","v":0},null,null,null,null,null,null,null,null,null,null,null,null,null,null,{"$f":"'Class Needs'!A39","v":0},null,null,null,null,null,null,null,null,null,null,null,null,"",null,{"$f":"'Class Needs'!A39","v":0},null,null,null,null,null,null,null,null,null,null,null,null,null,null,{"$f":"'Class Needs'!A39","v":0},"","","","","","","","","","","","","",null,{"$f":"'Class Needs'!A39","v":0},"","","","","","","","","","","","","",null,{"$f":"'Class Needs'!A39","v":0},"","","","","","","","","","","","","",null,{"$f":"'Class Needs'!A39","v":0},"","","","","","","","","","","","","",null,{"$f":"'Class Needs'!A39","v":0},"","","","","","","","","","","","",""]
[{"$f":"'Class Needs'!A40","v":0},null,null,null,null,null,null,null,null,null,null,null,null,null,null,{"$f":"'Class Needs'!A40","v":0},null,null,null,null,null,null,null,null,null,null,null,null,null,null,{"$f":"'Class Needs'!A40","v":0},null,null,null,null,null,null,null,null,null,null,null,null,null,null,{"$f":"'Class Needs'!A40","v":0},"","","","","","","","","","","","","",null,{"$f":"'Class Needs'!A40","v":0},"","","","","","","","","","","","","",null,{"$f":"'Class Needs'!A40","v":0},"","","","","","","","","","","","","",null,{"$f":"'Class Needs'!A40","v":0},"","","","","","","","","","","","","",null,{"$f":"'Class Needs'!A40","v":0},"","","","","","","","","","","","","",null,{"$f":"'Class Needs'!A40","v":0},null,null,null,null,null,null,null,null,null,null,null,null,null,null,{"$f":"'Class Needs'!A40","v":0},null,null,null,null,null,null,null,null,null,null,null,null,"",null,{"$f":"'Class Needs'!A40","v":0},null,null,null,null,null,null,null,null,null,null,null,null,null,null,{"$f":"'Class Needs'!A40","v":0},"","","","","","","","","","","","","",null,{"$f":"'Class Needs'!A40","v":0},"","","","","","","","","","","","","",null,{"$f":"'Class Needs'!A40","v":0},"","","","","","","","","","","","","",null,{"$f":"'Class Needs'!A40","v":0},"","","","","","","","","","","","","",null,{"$f":"'Class Needs'!A40","v":0},"","","","","","","","","","","","",""]
[{"$f":"'Class Needs'!A41","v":0},null,null,null,null,null,null,null,null,null,null,null,null,null,null,{"$f":"'Class Needs'!A41","v":0},null,null,null,null,null,null,null,null,null,null,null,null,null,null,{"$f":"'Class Needs'!A41","v":0},null,null,null,null,null,null,null,null,null,null,null,null,null,null,{"$f":"'Class Needs'!A41","v":0},"","","","","","","","","","","","","",null,{"$f":"'Class Needs'!A41","v":0},"","","","","","","","","","","","","",null,{"$f":"'Class Needs'!A41","v":0},"","","","","","","","","","","","","",null,{"$f":"'Class Needs'!A41","v":0},"","","","","","","","","","","","","",null,{"$f":"'Class Needs'!A41","v":0},"","","","","","","","","","","","","",null,{"$f":"'Class Needs'!A41","v":0},null,null,null,null,null,null,null,null,null,null,null,null,null,null,{"$f":"'Class Needs'!A41","v":0},null,null,null,null,null,null,null,null,null,null,null,null,"",null,{"$f":"'Class Needs'!A41","v":0},null,null,null,null,null,null,null,null,null,null,null,null,null,null,{"$f":"'Class Needs'!A41","v":0},"","","","","","","","","","","","","",null,{"$f":"'Class Needs'!A41","v":0},"","","","","","","","","","","","","",null,{"$f":"'Class Needs'!A41","v":0},"","","","","","","","","","","","","",null,{"$f":"'Class Needs'!A41","v":0},"","","","","","","","","","","","","",null,{"$f":"'Class Needs'!A41","v":0},"","","","","","","","","","","","",""]
[{"$f":"'Class Needs'!A42","v":0},null,null,null,null,null,null,null,null,null,null,null,null,null,null,{"$f":"'Class Needs'!A42","v":0},null,null,null,null,null,null,null,null,null,null,null,null,null,null,{"$f":"'Class Needs'!A42","v":0},null,null,null,null,null,null,null,null,null,null,null,null,null,null,{"$f":"'Class Needs'!A42","v":0},"","","","","","","","","","","","","",null,{"$f":"'Class Needs'!A42","v":0},"","","","","","","","","","","","","",null,{"$f":"'Class Needs'!A42","v":0},"","","","","","","","","","","","","",null,{"$f":"'Class Needs'!A42","v":0},"","","","","","","","","","","","","",null,{"$f":"'Class Needs'!A42","v":0},"","","","","","","","","","","","","",null,{"$f":"'Class Needs'!A42","v":0},null,null,null,null,null,null,null,null,null,null,null,null,null,null,{"$f":"'Class Needs'!A42","v":0},"","","","","","","","","","","","","",null,{"$f":"'Class Needs'!A42","v":0},null,null,null,null,null,null,null,null,null,null,null,null,null,null,{"$f":"'Class Needs'!A42","v":0},"","","","","","","","","","","","","",null,{"$f":"'Class Needs'!A42","v":0},"","","","","","","","","","","","","",null,{"$f":"'Class Needs'!A42","v":0},"","","","","","","","","","","","","",null,{"$f":"'Class Needs'!A42","v":0},"","","","","","","","","","","","","",null,{"$f":"'Class Needs'!A42","v":0},"","","","","","","","","","","","",""]
[{"$f":"'Class Needs'!A43","v":0},null,null,null,null,null,null,null,null,null,null,null,null,null,null,{"$f":"'Class Needs'!A43","v":0},null,null,null,null,null,null,null,null,null,null,null,null,null,null,{"$f":"'Class Needs'!A43","v":0},null,null,null,null,null,null,null,null,null,null,null,null,null,null,{"$f":"'Class Needs'!A43","v":0},"","","","","","","","","","","","","",null,{"$f":"'Class Needs'!A43","v":0},"","","","","","","","","","","","","",null,{"$f":"'Class Needs'!A43","v":0},"","","","","","","","","","","","","",null,{"$f":"'Class Needs'!A43","v":0},"","","","","","","","","","","","","",null,{"$f":"'Class Needs'!A43","v":0},"","","","","","","","","","","","","",null,{"$f":"'Class Needs'!A43","v":0},null,null,null,null,null,null,null,null,null,null,null,null,null,null,{"$f":"'Class Needs'!A43","v":0},"","","","","","","","","","","","","",null,{"$f":"'Class Needs'!A43","v":0},null,null,null,null,null,null,null,null,null,null,null,null,null,null,{"$f":"'Class Needs'!A43","v":0},"","","","","","","","","","","","","",null,{"$f":"'Class Needs'!A43","v":0},"","","","","","","","","","","","","",null,{"$f":"'Class Needs'!A43","v":0},"","","","","","","","","","","","","",null,{"$f":"'Class Needs'!A43","v":0},"","","","","","","","","","","","","",null,{"$f":"'Class Needs'!A43","v":0},"","","","","","","","","","","","",""]
[{"$f":"'Class Needs'!A44","v":0},null,null,null,null,null,null,null,null,null,null,null,null,null,null,{"$f":"'Class Needs'!A44","v":0},null,null,null,null,null,null,null,null,null,null,null,null,null,null,{"$f":"'Class Needs'!A44","v":0},null,null,null,null,null,null,null,null,null,null,null,null,null,null,{"$f":"'Class Needs'!A44","v":0},"","","","","","","","","","","","","",null,{"$f":"'Class Needs'!A44","v":0},"","","","","","","","","","","","","",null,{"$f":"'Class Needs'!A44","v":0},"","","","","","","","","","","","","",null,{"$f":"'Class Needs'!A44","v":0},"","","","","","","","","","","","","",null,{"$f":"'Class Needs'!A44","v":0},"","","","","","","","","","","","","",null,{"$f":"'Class Needs'!A44","v":0},null,null,null,null,null,null,null,null,null,null,null,null,null,null,{"$f":"'Class Needs'!A44","v":0},"","","","","","","","","","","","","",null,{"$f":"'Class Needs'!A44","v":0},null,null,null,null,null,null,null,null,null,null,null,null,null,null,{"$f":"'Class Needs'!A44","v":0},"","","","","","","","","","","","","",null,{"$f":"'Class Needs'!A44","v":0},"","","","","","","","","","","","","",null,{"$f":"'Class Needs'!A44","v":0},"","","","","","","","","","","","","",null,{"$f":"'Class Needs'!A44","v":0},"","","","","","","","","","","","","",null,{"$f":"'Class Needs'!A44","v":0},"","","","","","","","","","","","",""]
[{"$f":"'Class Needs'!A45","v":0},null,null,null,null,null,null,null,null,null,null,null,null,null,null,{"$f":"'Class Needs'!A45","v":0},null,null,null,null,null,null,null,null,null,null,null,null,null,null,{"$f":"'Class Needs'!A45","v":0},null,null,null,null,null,null,null,null,null,null,null,null,null,null,{"$f":"'Class Needs'!A45","v":0},null,null,null,null,null,null,null,null,null,null,null,null,null,null,{"$f":"'Class Needs'!A45","v":0},null,null,null,null,null,null,null,null,null,null,null,null,null,null,{"$f":"'Class Needs'!A45","v":0},null,null,null,null,null,null,null,null,null,null,null,null,null,null,{"$f":"'Class Needs'!A45","v":0},null,null,null,null,null,null,null,null,null,null,null,null,null,null,{"$f":"'Class Needs'!A45","v":0},null,null,null,null,null,null,null,null,null,null,null,null,null,null,{"$f":"'Class Needs'!A45","v":0},null,null,null,null,null,null,null,null,null,null,null,null,null,null,{"$f":"'Class Needs'!A45","v":0},null,null,null,null,null,null,null,null,null,null,null,null,null,null,{"$f":"'Class Needs'!A45","v":0},null,null,null,null,null,null,null,null,null,null,null,null,null,null,{"$f":"'Class Needs'!A45","v":0},null,null,null,null,null,null,null,null,null,null,null,null,null,null,{"$f":"'Class Needs'!A45","v":0},null,null,null,null,null,null,null,null,null,null,null,null,null,null,{"$f":"'Class Needs'!A45","v":0},null,null,null,null,null,null,null,null,null,null,null,null,null,null,{"$f":"'Class Needs'!A45","v":0},null,null,null,null,null,null,null,null,null,null,null,null,null,null,{"$f":"'Class Needs'!A45","v":0}]
[{"$f":"'Class Needs'!A46","v":0},null,null,null,null,null,null,null,null,null,null,null,null,null,null,{"$f":"'Class Needs'!A46","v":0},null,null,null,null,null,null,null,null,null,null,null,null,null,null,{"$f":"'Class Needs'!A46","v":0},null,null,null,null,null,null,null,null,null,null,null,null,null,null,{"$f":"'Class Needs'!A46","v":0},null,null,null,null,null,null,null,null,null,null,null,null,null,null,{"$f":"'Class Needs'!A46","v":0},null,null,null,null,null,null,null,null,null,null,null,null,null,null,{"$f":"'Class Needs'!A46","v":0},null,null,null,null,null,null,null,null,null,null,null,null,null,null,{"$f":"'Class Needs'!A46","v":0},null,null,null,null,null,null,null,null,null,null,null,null,null,null,{"$f":"'Class Needs'!A46","v":0},null,null,null,null,null,null,null,null,null,null,null,null,null,null,{"$f":"'Class Needs'!A46","v":0},null,null,null,null,null,null,null,null,null,null,null,null,null,null,{"$f":"'Class Needs'!A46","v":0},null,null,null,null,null,null,null,null,null,null,null,null,null,null,{"$f":"'Class Needs'!A46","v":0},null,null,null,null,null,null,null,null,null,null,null,null,null,null,{"$f":"'Class Needs'!A46","v":0},null,null,null,null,null,null,null,null,null,null,null,null,null,null,{"$f":"'Class Needs'!A46","v":0},null,null,null,null,null,null,null,null,null,null,null,null,null,null,{"$f":"'Class Needs'!A46","v":0},null,null,null,null,null,null,null,null,null,null,null,null,null,null,{"$f":"'Class Needs'!A46","v":0},null,null,null,null,null,null,null,null,null,null,null,null,null,null,{"$f":"'Class Needs'!A46","v":0}]
[{"$f":"'Class Needs'!A47","v":0},null,null,null,null,null,null,null,null,null,null,null,null,null,null,{"$f":"'Class Needs'!A47","v":0},null,null,null,null,null,null,null,null,null,null,null,null,null,null,{"$f":"'Class Needs'!A47","v":0},null,null,null,null,null,null,null,null,null,null,null,null,null,null,{"$f":"'Class Needs'!A47","v":0},null,null,null,null,null,null,null,null,null,null,null,null,null,null,{"$f":"'Class Needs'!A47","v":0},null,null,null,null,null,null,null,null,null,null,null,null,null,null,{"$f":"'Class Needs'!A47","v":0},null,null,null,null,null,null,null,null,null,null,null,null,null,null,{"$f":"'Class Needs'!A47","v":0},null,null,null,null,null,null,null,null,null,null,null,null,null,null,{"$f":"'Class Needs'!A47","v":0},null,null,null,null,null,null,null,null,null,null,null,null,null,null,{"$f":"'Class Needs'!A47","v":0},null,null,null,null,null,null,null,null,null,null,null,null,null,null,{"$f":"'Class Needs'!A47","v":0},null,null,null,null,null,null,null,null,null,null,null,null,null,null,{"$f":"'Class Needs'!A47","v":0},null,null,null,null,null,null,null,null,null,null,null,null,null,null,{"$f":"'Class Needs'!A47","v":0},null,null,null,null,null,null,null,null,null,null,null,null,null,null,{"$f":"'Class Needs'!A47","v":0},null,null,null,null,null,null,null,null,null,null,null,null,null,null,{"$f":"'Class Needs'!A47","v":0},null,null,null,null,null,null,null,null,null,null,null,null,null,null,{"$f":"'Class Needs'!A47","v":0},null,null,null,null,null,null,null,null,null,null,null,null,null,null,{"$f":"'Class Needs'!A47","v":0}]
[{"$f":"'Class Needs'!A48","v":0},null,null,null,null,null,null,null,null,null,null,null,null,null,null,{"$f":"'Class Needs'!A48","v":0},null,null,null,null,null,null,null,null,null,null,null,null,null,null,{"$f":"'Class Needs'!A48","v":0},null,null,null,null,null,null,null,null,null,null,null,null,null,null,{"$f":"'Class Needs'!A48","v":0},null,null,null,null,null,null,null,null,null,null,null,null,null,null,{"$f":"'Class Needs'!A48","v":0},null,null,null,null,null,null,null,null,null,null,null,null,null,null,{"$f":"'Class Needs'!A48","v":0},null,null,null,null,null,null,null,null,null,null,null,null,null,null,{"$f":"'Class Needs'!A48","v":0},null,null,null,null,null,null,null,null,null,null,null,null,null,null,{"$f":"'Class Needs'!A48","v":0},null,null,null,null,null,null,null,null,null,null,null,null,null,null,{"$f":"'Class Needs'!A48","v":0},null,null,null,null,null,null,null,null,null,null,null,null,null,null,{"$f":"'Class Needs'!A48","v":0},null,null,null,null,null,null,null,null,null,null,null,null,null,null,{"$f":"'Class Needs'!A48","v":0},null,null,null,null,null,null,null,null,null,null,null,null,null,null,{"$f":"'Class Needs'!A48","v":0},null,null,null,null,null,null,null,null,null,null,null,null,null,null,{"$f":"'Class Needs'!A48","v":0},null,null,null,null,null,null,null,null,null,null,null,null,null,null,{"$f":"'Class Needs'!A48","v":0},null,null,null,null,null,null,null,null,null,null,null,null,null,null,{"$f":"'Class Needs'!A48","v":0},null,null,null,null,null,null,null,null,null,null,null,null,null,null,{"$f":"'Class Needs'!A48","v":0}]
[{"$f":"'Class Needs'!A49","v":0},null,null,null,null,null,null,null,null,null,null,null,null,null,null,{"$f":"'Class Needs'!A49","v":0},null,null,null,null,null,null,null,null,null,null,null,null,null,null,{"$f":"'Class Needs'!A49","v":0},null,null,null,null,null,null,null,null,null,null,null,null,null,null,{"$f":"'Class Needs'!A49","v":0},null,null,null,null,null,null,null,null,null,null,null,null,null,null,{"$f":"'Class Needs'!A49","v":0},null,null,null,null,null,null,null,null,null,null,null,null,null,null,{"$f":"'Class Needs'!A49","v":0},null,null,null,null,null,null,null,null,null,null,null,null,null,null,{"$f":"'Class Needs'!A49","v":0},null,null,null,null,null,null,null,null,null,null,null,null,null,null,{"$f":"'Class Needs'!A49","v":0},null,null,null,null,null,null,null,null,null,null,null,null,null,null,{"$f":"'Class Needs'!A49","v":0},null,null,null,null,null,null,null,null,null,null,null,null,null,null,{"$f":"'Class Needs'!A49","v":0},null,null,null,null,null,null,null,null,null,null,null,null,null,null,{"$f":"'Class Needs'!A49","v":0},null,null,null,null,null,null,null,null,null,null,null,null,null,null,{"$f":"'Class Needs'!A49","v":0},null,null,null,null,null,null,null,null,null,null,null,null,null,null,{"$f":"'Class Needs'!A49","v":0},null,null,null,null,null,null,null,null,null,null,null,null,null,null,{"$f":"'Class Needs'!A49","v":0},null,null,null,null,null,null,null,null,null,null,null,null,null,null,{"$f":"'Class Needs'!A49","v":0},null,null,null,null,null,null,null,null,null,null,null,null,null,null,{"$f":"'Class Needs'!A49","v":0}]
[{"$f":"'Class Needs'!A50","v":0},null,null,null,null,null,null,null,null,null,null,null,null,null,null,{"$f":"'Class Needs'!A50","v":0},null,null,null,null,null,null,null,null,null,null,null,null,null,null,{"$f":"'Class Needs'!A50","v":0},null,null,null,null,null,null,null,null,null,null,null,null,null,null,{"$f":"'Class Needs'!A50","v":0},null,null,null,null,null,null,null,null,null,null,null,null,null,null,{"$f":"'Class Needs'!A50","v":0},null,null,null,null,null,null,null,null,null,null,null,null,null,null,{"$f":"'Class Needs'!A50","v":0},null,null,null,null,null,null,null,null,null,null,null,null,null,null,{"$f":"'Class Needs'!A50","v":0},null,null,null,null,null,null,null,null,null,null,null,null,null,null,{"$f":"'Class Needs'!A50","v":0},null,null,null,null,null,null,null,null,null,null,null,null,null,null,{"$f":"'Class Needs'!A50","v":0},null,null,null,null,null,null,null,null,null,null,null,null,null,null,{"$f":"'Class Needs'!A50","v":0},null,null,null,null,null,null,null,null,null,null,null,null,null,null,{"$f":"'Class Needs'!A50","v":0},null,null,null,null,null,null,null,null,null,null,null,null,null,null,{"$f":"'Class Needs'!A50","v":0},null,null,null,null,null,null,null,null,null,null,null,null,null,null,{"$f":"'Class Needs'!A50","v":0},null,null,null,null,null,null,null,null,null,null,null,null,null,null,{"$f":"'Class Needs'!A50","v":0},null,null,null,null,null,null,null,null,null,null,null,null,null,null,{"$f":"'Class Needs'!A50","v":0},null,null,null,null,null,null,null,null,null,null,null,null,null,null,{"$f":"'Class Needs'!A50","v":0}]
[{"$f":"'Class Needs'!A51","v":0},null,null,null,null,null,null,null,null,null,null,null,null,null,null,{"$f":"'Class Needs'!A51","v":0},null,null,null,null,null,null,null,null,null,null,null,null,null,null,{"$f":"'Class Needs'!A51","v":0},null,null,null,null,null,null,null,null,null,null,null,null,null,null,{"$f":"'Class Needs'!A51","v":0},null,null,null,null,null,null,null,null,null,null,null,null,null,null,{"$f":"'Class Needs'!A51","v":0},null,null,null,null,null,null,null,null,null,null,null,null,null,null,{"$f":"'Class Needs'!A51","v":0},null,null,null,null,null,null,null,null,null,null,null,null,null,null,{"$f":"'Class Needs'!A51","v":0},null,null,null,null,null,null,null,null,null,null,null,null,null,null,{"$f":"'Class Needs'!A51","v":0},null,null,null,null,null,null,null,null,null,null,null,null,null,null,{"$f":"'Class Needs'!A51","v":0},null,null,null,null,null,null,null,null,null,null,null,null,null,null,{"$f":"'Class Needs'!A51","v":0},null,null,null,null,null,null,null,null,null,null,null,null,null,null,{"$f":"'Class Needs'!A51","v":0},null,null,null,null,null,null,null,null,null,null,null,null,null,null,{"$f":"'Class Needs'!A51","v":0},null,null,null,null,null,null,null,null,null,null,null,null,null,null,{"$f":"'Class Needs'!A51","v":0},null,null,null,null,null,null,null,null,null,null,null,null,null,null,{"$f":"'Class Needs'!A51","v":0},null,null,null,null,null,null,null,null,null,null,null,null,null,null,{"$f":"'Class Needs'!A51","v":0},null,null,null,null,null,null,null,null,null,null,null,null,null,null,{"$f":"'Class Needs'!A51","v":0}]
["NON-CONTACT",null,null,null,null,null,null,null,null,null,null,null,null,null,null,{"$f":"A52","v":"NON-CONTACT"},null,null,null,null,null,null,null,null,null,null,null,null,null,null,{"$f":"A52","v":"NON-CONTACT"},null,null,null,null,null,null,null,null,null,null,null,null,null,null,{"$f":"A52","v":"NON-CONTACT"},null,null,null,null,null,null,null,null,null,null,null,null,null,null,{"$f":"A52","v":"NON-CONTACT"},null,null,null,null,null,null,null,null,null,null,null,null,null,null,{"$f":"A52","v":"NON-CONTACT"},null,null,null,null,null,null,null,null,null,null,null,null,null,null,{"$f":"A52","v":"NON-CONTACT"},null,null,null,null,null,null,null,null,null,null,null,null,null,null,{"$f":"A52","v":"NON-CONTACT"},null,null,null,null,null,null,null,null,null,null,null,null,null,null,{"$f":"A52","v":"NON-CONTACT"},null,null,null,null,null,null,null,null,null,null,null,null,null,null,{"$f":"A52","v":"NON-CONTACT"},null,null,null,null,null,null,null,null,null,null,null,null,null,null,{"$f":"A52","v":"NON-CONTACT"},null,null,null,null,null,null,null,null,null,null,null,null,null,null,{"$f":"A52","v":"NON-CONTACT"},null,null,null,null,null,null,null,null,null,null,null,null,null,null,{"$f":"A52","v":"NON-CONTACT"},null,null,null,null,null,null,null,null,null,null,null,null,null,null,{"$f":"A52","v":"NON-CONTACT"},null,null,null,null,null,null,null,null,null,null,null,null,null,null,{"$f":"A52","v":"NON-CONTACT"},null,null,null,null,null,null,null,null,null,null,null,null,null,null,{"$f":"A52","v":"NON-CONTACT"}]
["DEAN/GUIDANCE",null,null,null,null,null,null,null,null,null,null,null,null,null,null,"DEAN/GUIDANCE",null,null,null,null,null,null,null,null,null,null,null,null,null,null,"DEAN/GUIDANCE",null,null,null,null,null,null,null,null,null,null,null,null,null,null,"DEAN/GUIDANCE",null,null,null,null,null,null,null,null,null,null,null,null,null,null,"DEAN/GUIDANCE",null,null,null,null,null,null,null,null,null,null,null,null,null,null,"DEAN/GUIDANCE",null,null,null,null,null,null,null,null,null,null,null,null,null,null,"DEAN/GUIDANCE",null,null,null,null,null,null,null,null,null,null,null,null,null,null,"DEAN/GUIDANCE",null,null,null,null,null,null,null,null,null,null,null,null,null,null,"DEAN/GUIDANCE",null,null,null,null,null,null,null,null,null,null,null,null,null,null,"DEAN/GUIDANCE",null,null,null,null,null,null,null,null,null,null,null,null,null,null,"DEAN/GUIDANCE",null,null,null,null,null,null,null,null,null,null,null,null,null,null,"DEAN/GUIDANCE",null,null,null,null,null,null,null,null,null,null,null,null,null,null,"DEAN/GUIDANCE",null,null,null,null,null,null,null,null,null,null,null,null,null,null,"DEAN/GUIDANCE",null,null,null,null,null,null,null,null,null,null,null,null,null,null,"DEAN/GUIDANCE",null,null,null,null,null,null,null,null,null,null,null,null,null,null,"DEAN/GUIDANCE"]
["ADMINISTRATION",null,null,null,null,null,null,null,null,null,null,null,null,null,null,"ADMINISTRATION",null,null,null,null,null,null,null,null,null,null,null,null,null,null,"ADMINISTRATION",null,null,null,null,null,null,null,null,null,null,null,null,null,null,"ADMINISTRATION",null,null,null,null,null,null,null,null,null,null,null,null,null,null,"ADMINISTRATION",null,null,null,null,null,null,null,null,null,null,null,null,null,null,"ADMINISTRATION",null,null,null,null,null,null,null,null,null,null,null,null,null,null,"ADMINISTRATION",null,null,null,null,null,null,null,null,null,null,null,null,null,null,"ADMINISTRATION",null,null,null,null,null,null,null,null,null,null,null,null,null,null,"ADMINISTRATION",null,null,null,null,null,null,null,null,null,null,null,null,null,null,"ADMINISTRATION",null,null,null,null,null,null,null,null,null,null,null,null,null,null,"ADMINISTRATION",null,null,null,null,null,null,null,null,null,null,null,null,null,null,"ADMINISTRATION",null,null,null,null,null,null,null,null,null,null,null,null,null,null,"ADMINISTRATION",null,null,null,null,null,null,null,null,null,null,null,null,null,null,"ADMINISTRATION",null,null,null,null,null,null,null,null,null,null,null,null,null,null,"ADMINISTRATION",null,null,null,null,null,null,null,null,null,null,null,null,null,null,"ADMINISTRATION"]
["BEGINNER TEACHER ",null,null,null,null,null,null,null,null,null,null,null,null,null,null,"BEGINNER TEACHER ",null,null,null,null,null,null,null,null,null,null,null,null,null,null,"BEGINNER TEACHER ",null,null,null,null,null,null,null,null,null,null,null,null,null,null,"BEGINNER TEACHER ",null,null,null,null,null,null,null,null,null,null,null,null,null,null,"BEGINNER TEACHER ",null,null,null,null,null,null,null,null,null,null,null,null,null,null,"BEGINNER TEACHER ",null,null,null,null,null,null,null,null,null,null,null,null,null,null,"BEGINNER TEACHER ",null,null,null,null,null,null,null,null,null,null,null,null,null,null,"BEGINNER TEACHER ",null,null,null,null,null,null,null,null,null,null,null,null,null,null,"BEGINNER TEACHER ",null,null,null,null,null,null,null,null,null,null,null,null,null,null,"BEGINNER TEACHER ",null,null,null,null,null,null,null,null,null,null,null,null,null,null,"BEGINNER TEACHER ",null,null,null,null,null,null,null,null,null,null,null,null,null,null,"BEGINNER TEACHER ",null,null,null,null,null,null,null,null,null,null,null,null,null,null,"BEGINNER TEACHER ",null,null,null,null,null,null,null,null,null,null,null,null,null,null,"BEGINNER TEACHER ",null,null,null,null,null,null,null,null,null,null,null,null,null,null,"BEGINNER TEACHER ",null,null,null,null,null,null,null,null,null,null,null,null,null,null,"BEGINNER TEACHER "]
["Specialist Classroom Tchr",null,null,null,null,null,null,null,null,null,null,null,null,null,null,"Specialist Classroom Tchr",null,null,null,null,null,null,null,null,null,null,null,null,null,null,"Specialist Classroom Tchr",null,null,null,null,null,null,null,null,null,null,null,null,null,null,"Specialist Classroom Tchr",null,null,null,null,null,null,null,null,null,null,null,null,null,null,"Specialist Classroom Tchr",null,null,null,null,null,null,null,null,null,null,null,null,null,null,"Specialist Classroom Tchr",null,null,null,null,null,null,null,null,null,null,null,null,null,null,"Specialist Classroom Tchr",null,null,null,null,null,null,null,null,null,null,null,null,null,null,"Specialist Classroom Tchr",null,null,null,null,null,null,null,null,null,null,null,null,null,null,"Specialist Classroom Tchr",null,null,null,null,null,null,null,null,null,null,null,null,null,null,"Specialist Classroom Tchr",null,null,null,null,null,null,null,null,null,null,null,null,null,null,"Specialist Classroom Tchr",null,null,null,null,null,null,null,null,null,null,null,null,null,null,"Specialist Classroom Tchr",null,null,null,null,null,null,null,null,null,null,null,null,null,null,"Specialist Classroom Tchr",null,null,null,null,null,null,null,null,null,null,null,null,null,null,"Specialist Classroom Tchr",null,null,null,null,null,null,null,null,null,null,null,null,null,null,"Specialist Classroom Tchr",null,null,null,null,null,null,null,null,null,null,null,null,null,null,"Specialist Classroom Tchr"]
["Special Needs",null,null,null,null,null,null,null,null,null,null,null,null,null,null,"Special Needs",null,null,null,null,null,null,null,null,null,null,null,null,null,null,"Special Needs",null,null,null,null,null,null,null,null,null,null,null,null,null,null,"Special Needs",null,null,null,null,null,null,null,null,null,null,null,null,null,null,"Special Needs",null,null,null,null,null,null,null,null,null,null,null,null,null,null,"Special Needs",null,null,null,null,null,null,null,null,null,null,null,null,null,null,"Special Needs",null,null,null,null,null,null,null,null,null,null,null,null,null,null,"Special Needs",null,null,null,null,null,null,null,null,null,null,null,null,null,null,"Special Needs",null,null,null,null,null,null,null,null,null,null,null,null,null,null,"Special Needs",null,null,null,null,null,null,null,null,null,null,null,null,null,null,"Special Needs",null,null,null,null,null,null,null,null,null,null,null,null,null,null,"Special Needs",null,null,null,null,null,null,null,null,null,null,null,null,null,null,"Special Needs",null,null,null,null,null,null,null,null,null,null,null,null,null,null,"Special Needs",null,null,null,null,null,null,null,null,null,null,null,null,null,null,"Special Needs",null,null,null,null,null,null,null,null,null,null,null,null,null,null,"Special Needs"]
["HOD Beginning Tchr TA",null,null,null,null,null,null,null,null,null,null,null,null,null,null,"HOD Beginning Tchr TA",null,null,null,null,null,null,null,null,null,null,null,null,null,null,"HOD Beginning Tchr TA",null,null,null,null,null,null,null,null,null,null,null,null,null,null,"HOD Beginning Tchr TA",null,null,null,null,null,null,null,null,null,null,null,null,null,null,"HOD Beginning Tchr TA",null,null,null,null,null,null,null,null,null,null,null,null,null,null,"HOD Beginning Tchr TA",null,null,null,null,null,null,null,null,null,null,null,null,null,null,"HOD Beginning Tchr TA",null,null,null,null,null,null,null,null,null,null,null,null,null,null,"HOD Beginning Tchr TA",null,null,null,null,null,null,null,null,null,null,null,null,null,null,"HOD Beginning Tchr TA",null,null,null,null,null,null,null,null,null,null,null,null,null,null,"HOD Beginning Tchr TA",null,null,null,null,null,null,null,null,null,null,null,null,null,null,"HOD Beginning Tchr TA",null,null,null,null,null,null,null,null,null,null,null,null,null,null,"HOD Beginning Tchr TA",null,null,null,null,null,null,null,null,null,null,null,null,null,null,"HOD Beginning Tchr TA",null,null,null,null,null,null,null,null,null,null,null,null,null,null,"HOD Beginning Tchr TA",null,null,null,null,null,null,null,null,null,null,null,null,null,null,"HOD Beginning Tchr TA",null,null,null,null,null,null,null,null,null,null,null,null,null,null,"HOD Beginning Tchr TA"]
["Kāhui Ako",null,null,null,null,null,null,null,null,null,null,null,null,null,null,"Kāhui Ako",null,null,null,null,null,null,null,null,null,null,null,null,null,null,"Kāhui Ako",null,null,null,null,null,null,null,null,null,null,null,null,null,null,"Kāhui Ako",null,null,null,null,null,null,null,null,null,null,null,null,null,null,"Kāhui Ako",null,null,null,null,null,null,null,null,null,null,null,null,null,null,"Kāhui Ako",null,null,null,null,null,null,null,null,null,null,null,null,null,null,"Kāhui Ako",null,null,null,null,null,null,null,null,null,null,null,null,null,null,"Kāhui Ako",null,null,null,null,null,null,null,null,null,null,null,null,null,null,"Kāhui Ako",null,null,null,null,null,null,null,null,null,null,null,null,null,null,"Kāhui Ako",null,null,null,null,null,null,null,null,null,null,null,null,null,null,"Kāhui Ako",null,null,null,null,null,null,null,null,null,null,null,null,null,null,"Kāhui Ako",null,null,null,null,null,null,null,null,null,null,null,null,null,null,"Kāhui Ako",null,null,null,null,null,null,null,null,null,null,null,null,null,null,"Kāhui Ako",null,null,null,null,null,null,null,null,null,null,null,null,null,null,"Kāhui Ako",null,null,null,null,null,null,null,null,null,null,null,null,null,null,"Kāhui Ako"]
["OTHER",null,null,null,null,null,null,null,null,null,null,null,null,null,null,"OTHER",null,null,null,null,null,null,null,null,null,null,null,null,null,null,"OTHER",null,null,null,null,null,null,null,null,null,null,null,null,null,null,"OTHER",null,null,null,null,null,null,null,null,null,null,null,null,null,null,"OTHER",null,null,null,null,null,null,null,null,null,null,null,null,null,null,"OTHER",null,null,null,null,null,null,null,null,null,null,null,null,null,null,"OTHER",null,null,null,null,null,null,null,null,null,null,null,null,null,null,"OTHER",null,null,null,null,null,null,null,null,null,null,null,null,null,null,"OTHER",null,null,null,null,null,null,null,null,null,null,null,null,null,null,"OTHER",null,null,null,null,null,null,null,null,null,null,null,null,null,null,"OTHER",null,null,null,null,null,null,null,null,null,null,null,null,null,null,"OTHER",null,null,null,null,null,null,null,null,null,null,null,null,null,null,"OTHER",null,null,null,null,null,null,null,null,null,null,null,null,null,null,"OTHER",null,null,null,null,null,null,null,null,null,null,null,null,null,null,"OTHER",null,null,null,null,null,null,null,null,null,null,null,null,null,null,"OTHER"]
["TOTAL USAGE",{"$f":"SUM(B5:B60)","v":0},{"$f":"SUM(C5:C60)","v":0},0,0,0,0,0,0,0,0,0,0,0,null,"TOTAL USAGE",{"$f":"SUM(Q5:Q60)","v":0},0,0,0,0,0,0,0,0,0,0,0,0,null,"TOTAL USAGE",{"$f":"SUM(AF5:AF60)","v":0},0,0,0,0,0,0,0,0,0,0,0,0,null,"TOTAL USAGE",{"$f":"SUM(AU5:AU60)","v":0},0,0,0,0,0,0,0,0,0,0,0,0,null,"TOTAL USAGE",{"$f":"SUM(BJ5:BJ60)","v":0},0,0,0,0,0,0,0,0,0,0,0,0,null,"TOTAL USAGE",{"$f":"SUM(BY5:BY60)","v":0},0,0,0,0,0,0,0,0,0,0,0,0,null,"TOTAL USAGE",{"$f":"SUM(CN5:CN60)","v":0},0,0,0,0,0,0,0,0,0,0,0,0,null,"TOTAL USAGE",{"$f":"SUM(DC5:DC60)","v":0},0,0,0,0,0,0,0,0,0,0,0,0,null,"TOTAL USAGE",{"$f":"SUM(DR5:DR60)","v":0},0,0,0,0,0,0,0,0,0,0,0,0,null,"TOTAL USAGE",{"$f":"SUM(EG5:EG60)","v":0},0,0,0,0,0,0,0,0,0,0,0,0,null,"TOTAL USAGE",{"$f":"SUM(EV5:EV60)","v":0},0,0,0,0,0,0,0,0,0,0,0,0,null,"TOTAL USAGE",{"$f":"SUM(FK5:FK60)","v":0},0,0,0,0,0,0,0,0,0,0,0,0,null,"TOTAL USAGE",{"$f":"SUM(FZ5:FZ60)","v":0},0,0,0,0,0,0,0,0,0,0,0,0,null,"TOTAL USAGE",{"$f":"SUM(GO5:GO60)","v":0},0,0,0,0,0,0,0,0,0,0,0,0,null,"TOTAL USAGE",{"$f":"SUM(HD5:HD60)","v":0},0,0,0,0,0,0,0,0,0,0,0,0,null,"TOTAL USAGE",{"$f":"SUM(HS5:HS60)","v":0},0,0,0,0,0,0,0,0,0,0,0,0]

{"sheet":"Summary Sheet","index":4,"n_rows":62,"n_cols":7,"rows_kept":62,"cut":false,"hidden":false,"merged":[[65,0,65,6],[66,0,66,6],[2,6,3,6]]}
[null,null,"SUMMARY SECTION",null,null,null,"PAGE 27"]
[null,"TOTAL PERIODS","TOTAL PERIODS","APPARENT","TOTAL PERIODS","CURRICULUM","STAFF Movement notes"]
[null,"THIS YEAR","THIS YEAR","ANOMALIES","NEXT YEAR","ADJUSTMENTS","Anomaly notes - column B & C must match, if not explanation required."]
["SUBJECT","TEACHER TIMETABLES","CLASS NEEDS",null,"CLASS NEEDS","INDICATED"]
[{"$f":"'Class Needs'!A5","v":0},{"$f":"SUM('Teachers Timetables'!B5:N5)+ SUM('Teachers Timetables'!Q5:AC5)+ SUM('Teachers Timetables'!AF5:AR5)+ SUM('Teachers Timetables'!AU5:BG5)+ SUM('Teachers Timetables'!BJ5:BV5)+ SUM('Teachers Timetables'!BY5:CK5)+ SUM('Teachers Timetables'!CN5:CZ5)+ SUM('Teachers Timetables'!DC5:DO5)+ SUM('Teachers Timetables'!DR5:ED5)+ SUM('Teachers Timetables'!EG5:ES5)+ SUM('Teachers Timetables'!EV5:FH5)+ SUM('Teachers Timetables'!FK5:FW5)+ SUM('Teachers Timetables'!FZ5:GL5)+ SUM('Teachers Timetables'!GO5:HA5)+ SUM('Teachers Timetables'!HD5:HP5)+ SUM('Teachers Timetables'!HS5:IE5)","v":0},{"$f":"'Class Needs'!BO5","v":0},{"$f":"IF(B5=C5,\" \",\"ANOMALY\")","v":" "},{"$f":"'Class Needs'!BR5","v":0},{"$f":"E5-C5","v":0},""]
[{"$f":"'Class Needs'!A6","v":0},{"$f":"SUM('Teachers Timetables'!B6:N6)+ SUM('Teachers Timetables'!Q6:AC6)+ SUM('Teachers Timetables'!AF6:AR6)+ SUM('Teachers Timetables'!AU6:BG6)+ SUM('Teachers Timetables'!BJ6:BV6)+ SUM('Teachers Timetables'!BY6:CK6)+ SUM('Teachers Timetables'!CN6:CZ6)+ SUM('Teachers Timetables'!DC6:DO6)+ SUM('Teachers Timetables'!DR6:ED6)+ SUM('Teachers Timetables'!EG6:ES6)+ SUM('Teachers Timetables'!EV6:FH6)+ SUM('Teachers Timetables'!FK6:FW6)+ SUM('Teachers Timetables'!FZ6:GL6)+ SUM('Teachers Timetables'!GO6:HA6)+ SUM('Teachers Timetables'!HD6:HP6)+ SUM('Teachers Timetables'!HS6:IE6)","v":0},{"$f":"'Class Needs'!BO6","v":0}," ",{"$f":"'Class Needs'!BR6","v":0},{"$f":"E6-C6","v":0},""]
[{"$f":"'Class Needs'!A7","v":0},{"$f":"SUM('Teachers Timetables'!B7:N7)+ SUM('Teachers Timetables'!Q7:AC7)+ SUM('Teachers Timetables'!AF7:AR7)+ SUM('Teachers Timetables'!AU7:BG7)+ SUM('Teachers Timetables'!BJ7:BV7)+ SUM('Teachers Timetables'!BY7:CK7)+ SUM('Teachers Timetables'!CN7:CZ7)+ SUM('Teachers Timetables'!DC7:DO7)+ SUM('Teachers Timetables'!DR7:ED7)+ SUM('Teachers Timetables'!EG7:ES7)+ SUM('Teachers Timetables'!EV7:FH7)+ SUM('Teachers Timetables'!FK7:FW7)+ SUM('Teachers Timetables'!FZ7:GL7)+ SUM('Teachers Timetables'!GO7:HA7)+ SUM('Teachers Timetables'!HD7:HP7)+ SUM('Teachers Timetables'!HS7:IE7)","v":0},{"$f":"'Class Needs'!BO7","v":0}," ",{"$f":"'Class Needs'!BR7","v":0},0,""]
[{"$f":"'Class Needs'!A8","v":0},{"$f":"SUM('Teachers Timetables'!B8:N8)+ SUM('Teachers Timetables'!Q8:AC8)+ SUM('Teachers Timetables'!AF8:AR8)+ SUM('Teachers Timetables'!AU8:BG8)+ SUM('Teachers Timetables'!BJ8:BV8)+ SUM('Teachers Timetables'!BY8:CK8)+ SUM('Teachers Timetables'!CN8:CZ8)+ SUM('Teachers Timetables'!DC8:DO8)+ SUM('Teachers Timetables'!DR8:ED8)+ SUM('Teachers Timetables'!EG8:ES8)+ SUM('Teachers Timetables'!EV8:FH8)+ SUM('Teachers Timetables'!FK8:FW8)+ SUM('Teachers Timetables'!FZ8:GL8)+ SUM('Teachers Timetables'!GO8:HA8)+ SUM('Teachers Timetables'!HD8:HP8)+ SUM('Teachers Timetables'!HS8:IE8)","v":0},{"$f":"'Class Needs'!BO8","v":0}," ",{"$f":"'Class Needs'!BR8","v":0},0,""]
[{"$f":"'Class Needs'!A9","v":0},{"$f":"SUM('Teachers Timetables'!B9:N9)+ SUM('Teachers Timetables'!Q9:AC9)+ SUM('Teachers Timetables'!AF9:AR9)+ SUM('Teachers Timetables'!AU9:BG9)+ SUM('Teachers Timetables'!BJ9:BV9)+ SUM('Teachers Timetables'!BY9:CK9)+ SUM('Teachers Timetables'!CN9:CZ9)+ SUM('Teachers Timetables'!DC9:DO9)+ SUM('Teachers Timetables'!DR9:ED9)+ SUM('Teachers Timetables'!EG9:ES9)+ SUM('Teachers Timetables'!EV9:FH9)+ SUM('Teachers Timetables'!FK9:FW9)+ SUM('Teachers Timetables'!FZ9:GL9)+ SUM('Teachers Timetables'!GO9:HA9)+ SUM('Teachers Timetables'!HD9:HP9)+ SUM('Teachers Timetables'!HS9:IE9)","v":0},{"$f":"'Class Needs'!BO9","v":0}," ",{"$f":"'Class Needs'!BR9","v":0},0,""]
[{"$f":"'Class Needs'!A10","v":0},{"$f":"SUM('Teachers Timetables'!B10:N10)+ SUM('Teachers Timetables'!Q10:AC10)+ SUM('Teachers Timetables'!AF10:AR10)+ SUM('Teachers Timetables'!AU10:BG10)+ SUM('Teachers Timetables'!BJ10:BV10)+ SUM('Teachers Timetables'!BY10:CK10)+ SUM('Teachers Timetables'!CN10:CZ10)+ SUM('Teachers Timetables'!DC10:DO10)+ SUM('Teachers Timetables'!DR10:ED10)+ SUM('Teachers Timetables'!EG10:ES10)+ SUM('Teachers Timetables'!EV10:FH10)+ SUM('Teachers Timetables'!FK10:FW10)+ SUM('Teachers Timetables'!FZ10:GL10)+ SUM('Teachers Timetables'!GO10:HA10)+ SUM('Teachers Timetables'!HD10:HP10)+ SUM('Teachers Timetables'!HS10:IE10)","v":0},{"$f":"'Class Needs'!BO10","v":0}," ",{"$f":"'Class Needs'!BR10","v":0},0,""]
[{"$f":"'Class Needs'!A11","v":0},{"$f":"SUM('Teachers Timetables'!B11:N11)+ SUM('Teachers Timetables'!Q11:AC11)+ SUM('Teachers Timetables'!AF11:AR11)+ SUM('Teachers Timetables'!AU11:BG11)+ SUM('Teachers Timetables'!BJ11:BV11)+ SUM('Teachers Timetables'!BY11:CK11)+ SUM('Teachers Timetables'!CN11:CZ11)+ SUM('Teachers Timetables'!DC11:DO11)+ SUM('Teachers Timetables'!DR11:ED11)+ SUM('Teachers Timetables'!EG11:ES11)+ SUM('Teachers Timetables'!EV11:FH11)+ SUM('Teachers Timetables'!FK11:FW11)+ SUM('Teachers Timetables'!FZ11:GL11)+ SUM('Teachers Timetables'!GO11:HA11)+ SUM('Teachers Timetables'!HD11:HP11)+ SUM('Teachers Timetables'!HS11:IE11)","v":0},{"$f":"'Class Needs'!BO11","v":0}," ",{"$f":"'Class Needs'!BR11","v":0},0,""]
[{"$f":"'Class Needs'!A12","v":0},{"$f":"SUM('Teachers Timetables'!B12:N12)+ SUM('Teachers Timetables'!Q12:AC12)+ SUM('Teachers Timetables'!AF12:AR12)+ SUM('Teachers Timetables'!AU12:BG12)+ SUM('Teachers Timetables'!BJ12:BV12)+ SUM('Teachers Timetables'!BY12:CK12)+ SUM('Teachers Timetables'!CN12:CZ12)+ SUM('Teachers Timetables'!DC12:DO12)+ SUM('Teachers Timetables'!DR12:ED12)+ SUM('Teachers Timetables'!EG12:ES12)+ SUM('Teachers Timetables'!EV12:FH12)+ SUM('Teachers Timetables'!FK12:FW12)+ SUM('Teachers Timetables'!FZ12:GL12)+ SUM('Teachers Timetables'!GO12:HA12)+ SUM('Teachers Timetables'!HD12:HP12)+ SUM('Teachers Timetables'!HS12:IE12)","v":0},{"$f":"'Class Needs'!BO12","v":0}," ",{"$f":"'Class Needs'!BR12","v":0},0,""]
[{"$f":"'Class Needs'!A13","v":0},{"$f":"SUM('Teachers Timetables'!B13:N13)+ SUM('Teachers Timetables'!Q13:AC13)+ SUM('Teachers Timetables'!AF13:AR13)+ SUM('Teachers Timetables'!AU13:BG13)+ SUM('Teachers Timetables'!BJ13:BV13)+ SUM('Teachers Timetables'!BY13:CK13)+ SUM('Teachers Timetables'!CN13:CZ13)+ SUM('Teachers Timetables'!DC13:DO13)+ SUM('Teachers Timetables'!DR13:ED13)+ SUM('Teachers Timetables'!EG13:ES13)+ SUM('Teachers Timetables'!EV13:FH13)+ SUM('Teachers Timetables'!FK13:FW13)+ SUM('Teachers Timetables'!FZ13:GL13)+ SUM('Teachers Timetables'!GO13:HA13)+ SUM('Teachers Timetables'!HD13:HP13)+ SUM('Teachers Timetables'!HS13:IE13)","v":0},{"$f":"'Class Needs'!BO13","v":0}," ",{"$f":"'Class Needs'!BR13","v":0},0,""]
[{"$f":"'Class Needs'!A14","v":0},{"$f":"SUM('Teachers Timetables'!B14:N14)+ SUM('Teachers Timetables'!Q14:AC14)+ SUM('Teachers Timetables'!AF14:AR14)+ SUM('Teachers Timetables'!AU14:BG14)+ SUM('Teachers Timetables'!BJ14:BV14)+ SUM('Teachers Timetables'!BY14:CK14)+ SUM('Teachers Timetables'!CN14:CZ14)+ SUM('Teachers Timetables'!DC14:DO14)+ SUM('Teachers Timetables'!DR14:ED14)+ SUM('Teachers Timetables'!EG14:ES14)+ SUM('Teachers Timetables'!EV14:FH14)+ SUM('Teachers Timetables'!FK14:FW14)+ SUM('Teachers Timetables'!FZ14:GL14)+ SUM('Teachers Timetables'!GO14:HA14)+ SUM('Teachers Timetables'!HD14:HP14)+ SUM('Teachers Timetables'!HS14:IE14)","v":0},{"$f":"'Class Needs'!BO14","v":0}," ",{"$f":"'Class Needs'!BR14","v":0},0,""]
[{"$f":"'Class Needs'!A15","v":0},{"$f":"SUM('Teachers Timetables'!B15:N15)+ SUM('Teachers Timetables'!Q15:AC15)+ SUM('Teachers Timetables'!AF15:AR15)+ SUM('Teachers Timetables'!AU15:BG15)+ SUM('Teachers Timetables'!BJ15:BV15)+ SUM('Teachers Timetables'!BY15:CK15)+ SUM('Teachers Timetables'!CN15:CZ15)+ SUM('Teachers Timetables'!DC15:DO15)+ SUM('Teachers Timetables'!DR15:ED15)+ SUM('Teachers Timetables'!EG15:ES15)+ SUM('Teachers Timetables'!EV15:FH15)+ SUM('Teachers Timetables'!FK15:FW15)+ SUM('Teachers Timetables'!FZ15:GL15)+ SUM('Teachers Timetables'!GO15:HA15)+ SUM('Teachers Timetables'!HD15:HP15)+ SUM('Teachers Timetables'!HS15:IE15)","v":0},{"$f":"'Class Needs'!BO15","v":0}," ",{"$f":"'Class Needs'!BR15","v":0},0,""]
[{"$f":"'Class Needs'!A16","v":0},{"$f":"SUM('Teachers Timetables'!B16:N16)+ SUM('Teachers Timetables'!Q16:AC16)+ SUM('Teachers Timetables'!AF16:AR16)+ SUM('Teachers Timetables'!AU16:BG16)+ SUM('Teachers Timetables'!BJ16:BV16)+ SUM('Teachers Timetables'!BY16:CK16)+ SUM('Teachers Timetables'!CN16:CZ16)+ SUM('Teachers Timetables'!DC16:DO16)+ SUM('Teachers Timetables'!DR16:ED16)+ SUM('Teachers Timetables'!EG16:ES16)+ SUM('Teachers Timetables'!EV16:FH16)+ SUM('Teachers Timetables'!FK16:FW16)+ SUM('Teachers Timetables'!FZ16:GL16)+ SUM('Teachers Timetables'!GO16:HA16)+ SUM('Teachers Timetables'!HD16:HP16)+ SUM('Teachers Timetables'!HS16:IE16)","v":0},{"$f":"'Class Needs'!BO16","v":0}," ",{"$f":"'Class Needs'!BR16","v":0},0,""]
[{"$f":"'Class Needs'!A17","v":0},{"$f":"SUM('Teachers Timetables'!B17:N17)+ SUM('Teachers Timetables'!Q17:AC17)+ SUM('Teachers Timetables'!AF17:AR17)+ SUM('Teachers Timetables'!AU17:BG17)+ SUM('Teachers Timetables'!BJ17:BV17)+ SUM('Teachers Timetables'!BY17:CK17)+ SUM('Teachers Timetables'!CN17:CZ17)+ SUM('Teachers Timetables'!DC17:DO17)+ SUM('Teachers Timetables'!DR17:ED17)+ SUM('Teachers Timetables'!EG17:ES17)+ SUM('Teachers Timetables'!EV17:FH17)+ SUM('Teachers Timetables'!FK17:FW17)+ SUM('Teachers Timetables'!FZ17:GL17)+ SUM('Teachers Timetables'!GO17:HA17)+ SUM('Teachers Timetables'!HD17:HP17)+ SUM('Teachers Timetables'!HS17:IE17)","v":0},{"$f":"'Class Needs'!BO17","v":0}," ",{"$f":"'Class Needs'!BR17","v":0},0,""]
[{"$f":"'Class Needs'!A18","v":0},{"$f":"SUM('Teachers Timetables'!B18:N18)+ SUM('Teachers Timetables'!Q18:AC18)+ SUM('Teachers Timetables'!AF18:AR18)+ SUM('Teachers Timetables'!AU18:BG18)+ SUM('Teachers Timetables'!BJ18:BV18)+ SUM('Teachers Timetables'!BY18:CK18)+ SUM('Teachers Timetables'!CN18:CZ18)+ SUM('Teachers Timetables'!DC18:DO18)+ SUM('Teachers Timetables'!DR18:ED18)+ SUM('Teachers Timetables'!EG18:ES18)+ SUM('Teachers Timetables'!EV18:FH18)+ SUM('Teachers Timetables'!FK18:FW18)+ SUM('Teachers Timetables'!FZ18:GL18)+ SUM('Teachers Timetables'!GO18:HA18)+ SUM('Teachers Timetables'!HD18:HP18)+ SUM('Teachers Timetables'!HS18:IE18)","v":0},{"$f":"'Class Needs'!BO18","v":0}," ",{"$f":"'Class Needs'!BR18","v":0},0,""]
[{"$f":"'Class Needs'!A19","v":0},{"$f":"SUM('Teachers Timetables'!B19:N19)+ SUM('Teachers Timetables'!Q19:AC19)+ SUM('Teachers Timetables'!AF19:AR19)+ SUM('Teachers Timetables'!AU19:BG19)+ SUM('Teachers Timetables'!BJ19:BV19)+ SUM('Teachers Timetables'!BY19:CK19)+ SUM('Teachers Timetables'!CN19:CZ19)+ SUM('Teachers Timetables'!DC19:DO19)+ SUM('Teachers Timetables'!DR19:ED19)+ SUM('Teachers Timetables'!EG19:ES19)+ SUM('Teachers Timetables'!EV19:FH19)+ SUM('Teachers Timetables'!FK19:FW19)+ SUM('Teachers Timetables'!FZ19:GL19)+ SUM('Teachers Timetables'!GO19:HA19)+ SUM('Teachers Timetables'!HD19:HP19)+ SUM('Teachers Timetables'!HS19:IE19)","v":0},{"$f":"'Class Needs'!BO19","v":0}," ",{"$f":"'Class Needs'!BR19","v":0},0,""]
[{"$f":"'Class Needs'!A20","v":0},{"$f":"SUM('Teachers Timetables'!B20:N20)+ SUM('Teachers Timetables'!Q20:AC20)+ SUM('Teachers Timetables'!AF20:AR20)+ SUM('Teachers Timetables'!AU20:BG20)+ SUM('Teachers Timetables'!BJ20:BV20)+ SUM('Teachers Timetables'!BY20:CK20)+ SUM('Teachers Timetables'!CN20:CZ20)+ SUM('Teachers Timetables'!DC20:DO20)+ SUM('Teachers Timetables'!DR20:ED20)+ SUM('Teachers Timetables'!EG20:ES20)+ SUM('Teachers Timetables'!EV20:FH20)+ SUM('Teachers Timetables'!FK20:FW20)+ SUM('Teachers Timetables'!FZ20:GL20)+ SUM('Teachers Timetables'!GO20:HA20)+ SUM('Teachers Timetables'!HD20:HP20)+ SUM('Teachers Timetables'!HS20:IE20)","v":0},{"$f":"'Class Needs'!BO20","v":0}," ",{"$f":"'Class Needs'!BR20","v":0},0,""]
[{"$f":"'Class Needs'!A21","v":0},{"$f":"SUM('Teachers Timetables'!B21:N21)+ SUM('Teachers Timetables'!Q21:AC21)+ SUM('Teachers Timetables'!AF21:AR21)+ SUM('Teachers Timetables'!AU21:BG21)+ SUM('Teachers Timetables'!BJ21:BV21)+ SUM('Teachers Timetables'!BY21:CK21)+ SUM('Teachers Timetables'!CN21:CZ21)+ SUM('Teachers Timetables'!DC21:DO21)+ SUM('Teachers Timetables'!DR21:ED21)+ SUM('Teachers Timetables'!EG21:ES21)+ SUM('Teachers Timetables'!EV21:FH21)+ SUM('Teachers Timetables'!FK21:FW21)+ SUM('Teachers Timetables'!FZ21:GL21)+ SUM('Teachers Timetables'!GO21:HA21)+ SUM('Teachers Timetables'!HD21:HP21)+ SUM('Teachers Timetables'!HS21:IE21)","v":0},{"$f":"'Class Needs'!BO21","v":0}," ",{"$f":"'Class Needs'!BR21","v":0},0,""]
[{"$f":"'Class Needs'!A22","v":0},{"$f":"SUM('Teachers Timetables'!B22:N22)+ SUM('Teachers Timetables'!Q22:AC22)+ SUM('Teachers Timetables'!AF22:AR22)+ SUM('Teachers Timetables'!AU22:BG22)+ SUM('Teachers Timetables'!BJ22:BV22)+ SUM('Teachers Timetables'!BY22:CK22)+ SUM('Teachers Timetables'!CN22:CZ22)+ SUM('Teachers Timetables'!DC22:DO22)+ SUM('Teachers Timetables'!DR22:ED22)+ SUM('Teachers Timetables'!EG22:ES22)+ SUM('Teachers Timetables'!EV22:FH22)+ SUM('Teachers Timetables'!FK22:FW22)+ SUM('Teachers Timetables'!FZ22:GL22)+ SUM('Teachers Timetables'!GO22:HA22)+ SUM('Teachers Timetables'!HD22:HP22)+ SUM('Teachers Timetables'!HS22:IE22)","v":0},{"$f":"'Class Needs'!BO22","v":0}," ",{"$f":"'Class Needs'!BR22","v":0},0,""]
[{"$f":"'Class Needs'!A23","v":0},{"$f":"SUM('Teachers Timetables'!B23:N23)+ SUM('Teachers Timetables'!Q23:AC23)+ SUM('Teachers Timetables'!AF23:AR23)+ SUM('Teachers Timetables'!AU23:BG23)+ SUM('Teachers Timetables'!BJ23:BV23)+ SUM('Teachers Timetables'!BY23:CK23)+ SUM('Teachers Timetables'!CN23:CZ23)+ SUM('Teachers Timetables'!DC23:DO23)+ SUM('Teachers Timetables'!DR23:ED23)+ SUM('Teachers Timetables'!EG23:ES23)+ SUM('Teachers Timetables'!EV23:FH23)+ SUM('Teachers Timetables'!FK23:FW23)+ SUM('Teachers Timetables'!FZ23:GL23)+ SUM('Teachers Timetables'!GO23:HA23)+ SUM('Teachers Timetables'!HD23:HP23)+ SUM('Teachers Timetables'!HS23:IE23)","v":0},{"$f":"'Class Needs'!BO23","v":0}," ",{"$f":"'Class Needs'!BR23","v":0},0,""]
[{"$f":"'Class Needs'!A24","v":0},{"$f":"SUM('Teachers Timetables'!B24:N24)+ SUM('Teachers Timetables'!Q24:AC24)+ SUM('Teachers Timetables'!AF24:AR24)+ SUM('Teachers Timetables'!AU24:BG24)+ SUM('Teachers Timetables'!BJ24:BV24)+ SUM('Teachers Timetables'!BY24:CK24)+ SUM('Teachers Timetables'!CN24:CZ24)+ SUM('Teachers Timetables'!DC24:DO24)+ SUM('Teachers Timetables'!DR24:ED24)+ SUM('Teachers Timetables'!EG24:ES24)+ SUM('Teachers Timetables'!EV24:FH24)+ SUM('Teachers Timetables'!FK24:FW24)+ SUM('Teachers Timetables'!FZ24:GL24)+ SUM('Teachers Timetables'!GO24:HA24)+ SUM('Teachers Timetables'!HD24:HP24)+ SUM('Teachers Timetables'!HS24:IE24)","v":0},{"$f":"'Class Needs'!BO24","v":0}," ",{"$f":"'Class Needs'!BR24","v":0},0,""]
[{"$f":"'Class Needs'!A25","v":0},{"$f":"SUM('Teachers Timetables'!B25:N25)+ SUM('Teachers Timetables'!Q25:AC25)+ SUM('Teachers Timetables'!AF25:AR25)+ SUM('Teachers Timetables'!AU25:BG25)+ SUM('Teachers Timetables'!BJ25:BV25)+ SUM('Teachers Timetables'!BY25:CK25)+ SUM('Teachers Timetables'!CN25:CZ25)+ SUM('Teachers Timetables'!DC25:DO25)+ SUM('Teachers Timetables'!DR25:ED25)+ SUM('Teachers Timetables'!EG25:ES25)+ SUM('Teachers Timetables'!EV25:FH25)+ SUM('Teachers Timetables'!FK25:FW25)+ SUM('Teachers Timetables'!FZ25:GL25)+ SUM('Teachers Timetables'!GO25:HA25)+ SUM('Teachers Timetables'!HD25:HP25)+ SUM('Teachers Timetables'!HS25:IE25)","v":0},{"$f":"'Class Needs'!BO25","v":0}," ",{"$f":"'Class Needs'!BR25","v":0},0,""]
[{"$f":"'Class Needs'!A26","v":0},{"$f":"SUM('Teachers Timetables'!B26:N26)+ SUM('Teachers Timetables'!Q26:AC26)+ SUM('Teachers Timetables'!AF26:AR26)+ SUM('Teachers Timetables'!AU26:BG26)+ SUM('Teachers Timetables'!BJ26:BV26)+ SUM('Teachers Timetables'!BY26:CK26)+ SUM('Teachers Timetables'!CN26:CZ26)+ SUM('Teachers Timetables'!DC26:DO26)+ SUM('Teachers Timetables'!DR26:ED26)+ SUM('Teachers Timetables'!EG26:ES26)+ SUM('Teachers Timetables'!EV26:FH26)+ SUM('Teachers Timetables'!FK26:FW26)+ SUM('Teachers Timetables'!FZ26:GL26)+ SUM('Teachers Timetables'!GO26:HA26)+ SUM('Teachers Timetables'!HD26:HP26)+ SUM('Teachers Timetables'!HS26:IE26)","v":0},{"$f":"'Class Needs'!BO26","v":0}," ",{"$f":"'Class Needs'!BR26","v":0},0,""]
[{"$f":"'Class Needs'!A27","v":0},{"$f":"SUM('Teachers Timetables'!B27:N27)+ SUM('Teachers Timetables'!Q27:AC27)+ SUM('Teachers Timetables'!AF27:AR27)+ SUM('Teachers Timetables'!AU27:BG27)+ SUM('Teachers Timetables'!BJ27:BV27)+ SUM('Teachers Timetables'!BY27:CK27)+ SUM('Teachers Timetables'!CN27:CZ27)+ SUM('Teachers Timetables'!DC27:DO27)+ SUM('Teachers Timetables'!DR27:ED27)+ SUM('Teachers Timetables'!EG27:ES27)+ SUM('Teachers Timetables'!EV27:FH27)+ SUM('Teachers Timetables'!FK27:FW27)+ SUM('Teachers Timetables'!FZ27:GL27)+ SUM('Teachers Timetables'!GO27:HA27)+ SUM('Teachers Timetables'!HD27:HP27)+ SUM('Teachers Timetables'!HS27:IE27)","v":0},{"$f":"'Class Needs'!BO27","v":0}," ",{"$f":"'Class Needs'!BR27","v":0},0,""]
[{"$f":"'Class Needs'!A28","v":0},{"$f":"SUM('Teachers Timetables'!B28:N28)+ SUM('Teachers Timetables'!Q28:AC28)+ SUM('Teachers Timetables'!AF28:AR28)+ SUM('Teachers Timetables'!AU28:BG28)+ SUM('Teachers Timetables'!BJ28:BV28)+ SUM('Teachers Timetables'!BY28:CK28)+ SUM('Teachers Timetables'!CN28:CZ28)+ SUM('Teachers Timetables'!DC28:DO28)+ SUM('Teachers Timetables'!DR28:ED28)+ SUM('Teachers Timetables'!EG28:ES28)+ SUM('Teachers Timetables'!EV28:FH28)+ SUM('Teachers Timetables'!FK28:FW28)+ SUM('Teachers Timetables'!FZ28:GL28)+ SUM('Teachers Timetables'!GO28:HA28)+ SUM('Teachers Timetables'!HD28:HP28)+ SUM('Teachers Timetables'!HS28:IE28)","v":0},{"$f":"'Class Needs'!BO28","v":0}," ",{"$f":"'Class Needs'!BR28","v":0},0,""]
[{"$f":"'Class Needs'!A29","v":0},{"$f":"SUM('Teachers Timetables'!B29:N29)+ SUM('Teachers Timetables'!Q29:AC29)+ SUM('Teachers Timetables'!AF29:AR29)+ SUM('Teachers Timetables'!AU29:BG29)+ SUM('Teachers Timetables'!BJ29:BV29)+ SUM('Teachers Timetables'!BY29:CK29)+ SUM('Teachers Timetables'!CN29:CZ29)+ SUM('Teachers Timetables'!DC29:DO29)+ SUM('Teachers Timetables'!DR29:ED29)+ SUM('Teachers Timetables'!EG29:ES29)+ SUM('Teachers Timetables'!EV29:FH29)+ SUM('Teachers Timetables'!FK29:FW29)+ SUM('Teachers Timetables'!FZ29:GL29)+ SUM('Teachers Timetables'!GO29:HA29)+ SUM('Teachers Timetables'!HD29:HP29)+ SUM('Teachers Timetables'!HS29:IE29)","v":0},{"$f":"'Class Needs'!BO29","v":0}," ",{"$f":"'Class Needs'!BR29","v":0},0,""]
[{"$f":"'Class Needs'!A30","v":0},{"$f":"SUM('Teachers Timetables'!B30:N30)+ SUM('Teachers Timetables'!Q30:AC30)+ SUM('Teachers Timetables'!AF30:AR30)+ SUM('Teachers Timetables'!AU30:BG30)+ SUM('Teachers Timetables'!BJ30:BV30)+ SUM('Teachers Timetables'!BY30:CK30)+ SUM('Teachers Timetables'!CN30:CZ30)+ SUM('Teachers Timetables'!DC30:DO30)+ SUM('Teachers Timetables'!DR30:ED30)+ SUM('Teachers Timetables'!EG30:ES30)+ SUM('Teachers Timetables'!EV30:FH30)+ SUM('Teachers Timetables'!FK30:FW30)+ SUM('Teachers Timetables'!FZ30:GL30)+ SUM('Teachers Timetables'!GO30:HA30)+ SUM('Teachers Timetables'!HD30:HP30)+ SUM('Teachers Timetables'!HS30:IE30)","v":0},{"$f":"'Class Needs'!BO30","v":0}," ",{"$f":"'Class Needs'!BR30","v":0},0,""]
[{"$f":"'Class Needs'!A31","v":0},{"$f":"SUM('Teachers Timetables'!B31:N31)+ SUM('Teachers Timetables'!Q31:AC31)+ SUM('Teachers Timetables'!AF31:AR31)+ SUM('Teachers Timetables'!AU31:BG31)+ SUM('Teachers Timetables'!BJ31:BV31)+ SUM('Teachers Timetables'!BY31:CK31)+ SUM('Teachers Timetables'!CN31:CZ31)+ SUM('Teachers Timetables'!DC31:DO31)+ SUM('Teachers Timetables'!DR31:ED31)+ SUM('Teachers Timetables'!EG31:ES31)+ SUM('Teachers Timetables'!EV31:FH31)+ SUM('Teachers Timetables'!FK31:FW31)+ SUM('Teachers Timetables'!FZ31:GL31)+ SUM('Teachers Timetables'!GO31:HA31)+ SUM('Teachers Timetables'!HD31:HP31)+ SUM('Teachers Timetables'!HS31:IE31)","v":0},{"$f":"'Class Needs'!BO31","v":0}," ",{"$f":"'Class Needs'!BR31","v":0},0,""]
[{"$f":"'Class Needs'!A32","v":0},{"$f":"SUM('Teachers Timetables'!B32:N32)+ SUM('Teachers Timetables'!Q32:AC32)+ SUM('Teachers Timetables'!AF32:AR32)+ SUM('Teachers Timetables'!AU32:BG32)+ SUM('Teachers Timetables'!BJ32:BV32)+ SUM('Teachers Timetables'!BY32:CK32)+ SUM('Teachers Timetables'!CN32:CZ32)+ SUM('Teachers Timetables'!DC32:DO32)+ SUM('Teachers Timetables'!DR32:ED32)+ SUM('Teachers Timetables'!EG32:ES32)+ SUM('Teachers Timetables'!EV32:FH32)+ SUM('Teachers Timetables'!FK32:FW32)+ SUM('Teachers Timetables'!FZ32:GL32)+ SUM('Teachers Timetables'!GO32:HA32)+ SUM('Teachers Timetables'!HD32:HP32)+ SUM('Teachers Timetables'!HS32:IE32)","v":0},{"$f":"'Class Needs'!BO32","v":0}," ",{"$f":"'Class Needs'!BR32","v":0},0,""]
[{"$f":"'Class Needs'!A33","v":0},{"$f":"SUM('Teachers Timetables'!B33:N33)+ SUM('Teachers Timetables'!Q33:AC33)+ SUM('Teachers Timetables'!AF33:AR33)+ SUM('Teachers Timetables'!AU33:BG33)+ SUM('Teachers Timetables'!BJ33:BV33)+ SUM('Teachers Timetables'!BY33:CK33)+ SUM('Teachers Timetables'!CN33:CZ33)+ SUM('Teachers Timetables'!DC33:DO33)+ SUM('Teachers Timetables'!DR33:ED33)+ SUM('Teachers Timetables'!EG33:ES33)+ SUM('Teachers Timetables'!EV33:FH33)+ SUM('Teachers Timetables'!FK33:FW33)+ SUM('Teachers Timetables'!FZ33:GL33)+ SUM('Teachers Timetables'!GO33:HA33)+ SUM('Teachers Timetables'!HD33:HP33)+ SUM('Teachers Timetables'!HS33:IE33)","v":0},{"$f":"'Class Needs'!BO33","v":0}," ",{"$f":"'Class Needs'!BR33","v":0},0,""]
[{"$f":"'Class Needs'!A34","v":0},{"$f":"SUM('Teachers Timetables'!B34:N34)+ SUM('Teachers Timetables'!Q34:AC34)+ SUM('Teachers Timetables'!AF34:AR34)+ SUM('Teachers Timetables'!AU34:BG34)+ SUM('Teachers Timetables'!BJ34:BV34)+ SUM('Teachers Timetables'!BY34:CK34)+ SUM('Teachers Timetables'!CN34:CZ34)+ SUM('Teachers Timetables'!DC34:DO34)+ SUM('Teachers Timetables'!DR34:ED34)+ SUM('Teachers Timetables'!EG34:ES34)+ SUM('Teachers Timetables'!EV34:FH34)+ SUM('Teachers Timetables'!FK34:FW34)+ SUM('Teachers Timetables'!FZ34:GL34)+ SUM('Teachers Timetables'!GO34:HA34)+ SUM('Teachers Timetables'!HD34:HP34)+ SUM('Teachers Timetables'!HS34:IE34)","v":0},{"$f":"'Class Needs'!BO34","v":0}," ",{"$f":"'Class Needs'!BR34","v":0},0,""]
[{"$f":"'Class Needs'!A35","v":0},{"$f":"SUM('Teachers Timetables'!B35:N35)+ SUM('Teachers Timetables'!Q35:AC35)+ SUM('Teachers Timetables'!AF35:AR35)+ SUM('Teachers Timetables'!AU35:BG35)+ SUM('Teachers Timetables'!BJ35:BV35)+ SUM('Teachers Timetables'!BY35:CK35)+ SUM('Teachers Timetables'!CN35:CZ35)+ SUM('Teachers Timetables'!DC35:DO35)+ SUM('Teachers Timetables'!DR35:ED35)+ SUM('Teachers Timetables'!EG35:ES35)+ SUM('Teachers Timetables'!EV35:FH35)+ SUM('Teachers Timetables'!FK35:FW35)+ SUM('Teachers Timetables'!FZ35:GL35)+ SUM('Teachers Timetables'!GO35:HA35)+ SUM('Teachers Timetables'!HD35:HP35)+ SUM('Teachers Timetables'!HS35:IE35)","v":0},{"$f":"'Class Needs'!BO35","v":0}," ",{"$f":"'Class Needs'!BR35","v":0},0,""]
[{"$f":"'Class Needs'!A36","v":0},{"$f":"SUM('Teachers Timetables'!B36:N36)+ SUM('Teachers Timetables'!Q36:AC36)+ SUM('Teachers Timetables'!AF36:AR36)+ SUM('Teachers Timetables'!AU36:BG36)+ SUM('Teachers Timetables'!BJ36:BV36)+ SUM('Teachers Timetables'!BY36:CK36)+ SUM('Teachers Timetables'!CN36:CZ36)+ SUM('Teachers Timetables'!DC36:DO36)+ SUM('Teachers Timetables'!DR36:ED36)+ SUM('Teachers Timetables'!EG36:ES36)+ SUM('Teachers Timetables'!EV36:FH36)+ SUM('Teachers Timetables'!FK36:FW36)+ SUM('Teachers Timetables'!FZ36:GL36)+ SUM('Teachers Timetables'!GO36:HA36)+ SUM('Teachers Timetables'!HD36:HP36)+ SUM('Teachers Timetables'!HS36:IE36)","v":0},{"$f":"'Class Needs'!BO36","v":0}," ",{"$f":"'Class Needs'!BR36","v":0},0,""]
[{"$f":"'Class Needs'!A37","v":0},{"$f":"SUM('Teachers Timetables'!B37:N37)+ SUM('Teachers Timetables'!Q37:AC37)+ SUM('Teachers Timetables'!AF37:AR37)+ SUM('Teachers Timetables'!AU37:BG37)+ SUM('Teachers Timetables'!BJ37:BV37)+ SUM('Teachers Timetables'!BY37:CK37)+ SUM('Teachers Timetables'!CN37:CZ37)+ SUM('Teachers Timetables'!DC37:DO37)+ SUM('Teachers Timetables'!DR37:ED37)+ SUM('Teachers Timetables'!EG37:ES37)+ SUM('Teachers Timetables'!EV37:FH37)+ SUM('Teachers Timetables'!FK37:FW37)+ SUM('Teachers Timetables'!FZ37:GL37)+ SUM('Teachers Timetables'!GO37:HA37)+ SUM('Teachers Timetables'!HD37:HP37)+ SUM('Teachers Timetables'!HS37:IE37)","v":0},{"$f":"'Class Needs'!BO37","v":0}," ",{"$f":"'Class Needs'!BR37","v":0},{"$f":"E37-C37","v":0},""]
[{"$f":"'Class Needs'!A38","v":0},{"$f":"SUM('Teachers Timetables'!B38:N38)+ SUM('Teachers Timetables'!Q38:AC38)+ SUM('Teachers Timetables'!AF38:AR38)+ SUM('Teachers Timetables'!AU38:BG38)+ SUM('Teachers Timetables'!BJ38:BV38)+ SUM('Teachers Timetables'!BY38:CK38)+ SUM('Teachers Timetables'!CN38:CZ38)+ SUM('Teachers Timetables'!DC38:DO38)+ SUM('Teachers Timetables'!DR38:ED38)+ SUM('Teachers Timetables'!EG38:ES38)+ SUM('Teachers Timetables'!EV38:FH38)+ SUM('Teachers Timetables'!FK38:FW38)+ SUM('Teachers Timetables'!FZ38:GL38)+ SUM('Teachers Timetables'!GO38:HA38)+ SUM('Teachers Timetables'!HD38:HP38)+ SUM('Teachers Timetables'!HS38:IE38)","v":0},{"$f":"'Class Needs'!BO38","v":0}," ",{"$f":"'Class Needs'!BR38","v":0},0,""]
[{"$f":"'Class Needs'!A39","v":0},{"$f":"SUM('Teachers Timetables'!B39:N39)+ SUM('Teachers Timetables'!Q39:AC39)+ SUM('Teachers Timetables'!AF39:AR39)+ SUM('Teachers Timetables'!AU39:BG39)+ SUM('Teachers Timetables'!BJ39:BV39)+ SUM('Teachers Timetables'!BY39:CK39)+ SUM('Teachers Timetables'!CN39:CZ39)+ SUM('Teachers Timetables'!DC39:DO39)+ SUM('Teachers Timetables'!DR39:ED39)+ SUM('Teachers Timetables'!EG39:ES39)+ SUM('Teachers Timetables'!EV39:FH39)+ SUM('Teachers Timetables'!FK39:FW39)+ SUM('Teachers Timetables'!FZ39:GL39)+ SUM('Teachers Timetables'!GO39:HA39)+ SUM('Teachers Timetables'!HD39:HP39)+ SUM('Teachers Timetables'!HS39:IE39)","v":0},{"$f":"'Class Needs'!BO39","v":0}," ",{"$f":"'Class Needs'!BR39","v":0},0,""]
[{"$f":"'Class Needs'!A40","v":0},{"$f":"SUM('Teachers Timetables'!B40:N40)+ SUM('Teachers Timetables'!Q40:AC40)+ SUM('Teachers Timetables'!AF40:AR40)+ SUM('Teachers Timetables'!AU40:BG40)+ SUM('Teachers Timetables'!BJ40:BV40)+ SUM('Teachers Timetables'!BY40:CK40)+ SUM('Teachers Timetables'!CN40:CZ40)+ SUM('Teachers Timetables'!DC40:DO40)+ SUM('Teachers Timetables'!DR40:ED40)+ SUM('Teachers Timetables'!EG40:ES40)+ SUM('Teachers Timetables'!EV40:FH40)+ SUM('Teachers Timetables'!FK40:FW40)+ SUM('Teachers Timetables'!FZ40:GL40)+ SUM('Teachers Timetables'!GO40:HA40)+ SUM('Teachers Timetables'!HD40:HP40)+ SUM('Teachers Timetables'!HS40:IE40)","v":0},{"$f":"'Class Needs'!BO40","v":0}," ",{"$f":"'Class Needs'!BR40","v":0},0,""]
[{"$f":"'Class Needs'!A41","v":0},{"$f":"SUM('Teachers Timetables'!B41:N41)+ SUM('Teachers Timetables'!Q41:AC41)+ SUM('Teachers Timetables'!AF41:AR41)+ SUM('Teachers Timetables'!AU41:BG41)+ SUM('Teachers Timetables'!BJ41:BV41)+ SUM('Teachers Timetables'!BY41:CK41)+ SUM('Teachers Timetables'!CN41:CZ41)+ SUM('Teachers Timetables'!DC41:DO41)+ SUM('Teachers Timetables'!DR41:ED41)+ SUM('Teachers Timetables'!EG41:ES41)+ SUM('Teachers Timetables'!EV41:FH41)+ SUM('Teachers Timetables'!FK41:FW41)+ SUM('Teachers Timetables'!FZ41:GL41)+ SUM('Teachers Timetables'!GO41:HA41)+ SUM('Teachers Timetables'!HD41:HP41)+ SUM('Teachers Timetables'!HS41:IE41)","v":0},{"$f":"'Class Needs'!BO41","v":0}," ",{"$f":"'Class Needs'!BR41","v":0},0,""]
[{"$f":"'Class Needs'!A42","v":0},{"$f":"SUM('Teachers Timetables'!B42:N42)+ SUM('Teachers Timetables'!Q42:AC42)+ SUM('Teachers Timetables'!AF42:AR42)+ SUM('Teachers Timetables'!AU42:BG42)+ SUM('Teachers Timetables'!BJ42:BV42)+ SUM('Teachers Timetables'!BY42:CK42)+ SUM('Teachers Timetables'!CN42:CZ42)+ SUM('Teachers Timetables'!DC42:DO42)+ SUM('Teachers Timetables'!DR42:ED42)+ SUM('Teachers Timetables'!EG42:ES42)+ SUM('Teachers Timetables'!EV42:FH42)+ SUM('Teachers Timetables'!FK42:FW42)+ SUM('Teachers Timetables'!FZ42:GL42)+ SUM('Teachers Timetables'!GO42:HA42)+ SUM('Teachers Timetables'!HD42:HP42)+ SUM('Teachers Timetables'!HS42:IE42)","v":0},{"$f":"'Class Needs'!BO42","v":0}," ",{"$f":"'Class Needs'!BR42","v":0},0,""]
[{"$f":"'Class Needs'!A43","v":0},{"$f":"SUM('Teachers Timetables'!B43:N43)+ SUM('Teachers Timetables'!Q43:AC43)+ SUM('Teachers Timetables'!AF43:AR43)+ SUM('Teachers Timetables'!AU43:BG43)+ SUM('Teachers Timetables'!BJ43:BV43)+ SUM('Teachers Timetables'!BY43:CK43)+ SUM('Teachers Timetables'!CN43:CZ43)+ SUM('Teachers Timetables'!DC43:DO43)+ SUM('Teachers Timetables'!DR43:ED43)+ SUM('Teachers Timetables'!EG43:ES43)+ SUM('Teachers Timetables'!EV43:FH43)+ SUM('Teachers Timetables'!FK43:FW43)+ SUM('Teachers Timetables'!FZ43:GL43)+ SUM('Teachers Timetables'!GO43:HA43)+ SUM('Teachers Timetables'!HD43:HP43)+ SUM('Teachers Timetables'!HS43:IE43)","v":0},{"$f":"'Class Needs'!BO43","v":0}," ",{"$f":"'Class Needs'!BR43","v":0},0,""]
[{"$f":"'Class Needs'!A44","v":0},{"$f":"SUM('Teachers Timetables'!B44:N44)+ SUM('Teachers Timetables'!Q44:AC44)+ SUM('Teachers Timetables'!AF44:AR44)+ SUM('Teachers Timetables'!AU44:BG44)+ SUM('Teachers Timetables'!BJ44:BV44)+ SUM('Teachers Timetables'!BY44:CK44)+ SUM('Teachers Timetables'!CN44:CZ44)+ SUM('Teachers Timetables'!DC44:DO44)+ SUM('Teachers Timetables'!DR44:ED44)+ SUM('Teachers Timetables'!EG44:ES44)+ SUM('Teachers Timetables'!EV44:FH44)+ SUM('Teachers Timetables'!FK44:FW44)+ SUM('Teachers Timetables'!FZ44:GL44)+ SUM('Teachers Timetables'!GO44:HA44)+ SUM('Teachers Timetables'!HD44:HP44)+ SUM('Teachers Timetables'!HS44:IE44)","v":0},{"$f":"'Class Needs'!BO44","v":0}," ",{"$f":"'Class Needs'!BR44","v":0},0,""]
[{"$f":"'Class Needs'!A45","v":0},{"$f":"SUM('Teachers Timetables'!B45:N45)+ SUM('Teachers Timetables'!Q45:AC45)+ SUM('Teachers Timetables'!AF45:AR45)+ SUM('Teachers Timetables'!AU45:BG45)+ SUM('Teachers Timetables'!BJ45:BV45)+ SUM('Teachers Timetables'!BY45:CK45)+ SUM('Teachers Timetables'!CN45:CZ45)+ SUM('Teachers Timetables'!DC45:DO45)+ SUM('Teachers Timetables'!DR45:ED45)+ SUM('Teachers Timetables'!EG45:ES45)+ SUM('Teachers Timetables'!EV45:FH45)+ SUM('Teachers Timetables'!FK45:FW45)+ SUM('Teachers Timetables'!FZ45:GL45)+ SUM('Teachers Timetables'!GO45:HA45)+ SUM('Teachers Timetables'!HD45:HP45)+ SUM('Teachers Timetables'!HS45:IE45)","v":0},{"$f":"'Class Needs'!BO45","v":0}," ",{"$f":"'Class Needs'!BR45","v":0},0]
[{"$f":"'Class Needs'!A46","v":0},{"$f":"SUM('Teachers Timetables'!B46:N46)+ SUM('Teachers Timetables'!Q46:AC46)+ SUM('Teachers Timetables'!AF46:AR46)+ SUM('Teachers Timetables'!AU46:BG46)+ SUM('Teachers Timetables'!BJ46:BV46)+ SUM('Teachers Timetables'!BY46:CK46)+ SUM('Teachers Timetables'!CN46:CZ46)+ SUM('Teachers Timetables'!DC46:DO46)+ SUM('Teachers Timetables'!DR46:ED46)+ SUM('Teachers Timetables'!EG46:ES46)+ SUM('Teachers Timetables'!EV46:FH46)+ SUM('Teachers Timetables'!FK46:FW46)+ SUM('Teachers Timetables'!FZ46:GL46)+ SUM('Teachers Timetables'!GO46:HA46)+ SUM('Teachers Timetables'!HD46:HP46)+ SUM('Teachers Timetables'!HS46:IE46)","v":0},{"$f":"'Class Needs'!BO46","v":0}," ",{"$f":"'Class Needs'!BR46","v":0},0]
[{"$f":"'Class Needs'!A47","v":0},{"$f":"SUM('Teachers Timetables'!B47:N47)+ SUM('Teachers Timetables'!Q47:AC47)+ SUM('Teachers Timetables'!AF47:AR47)+ SUM('Teachers Timetables'!AU47:BG47)+ SUM('Teachers Timetables'!BJ47:BV47)+ SUM('Teachers Timetables'!BY47:CK47)+ SUM('Teachers Timetables'!CN47:CZ47)+ SUM('Teachers Timetables'!DC47:DO47)+ SUM('Teachers Timetables'!DR47:ED47)+ SUM('Teachers Timetables'!EG47:ES47)+ SUM('Teachers Timetables'!EV47:FH47)+ SUM('Teachers Timetables'!FK47:FW47)+ SUM('Teachers Timetables'!FZ47:GL47)+ SUM('Teachers Timetables'!GO47:HA47)+ SUM('Teachers Timetables'!HD47:HP47)+ SUM('Teachers Timetables'!HS47:IE47)","v":0},{"$f":"'Class Needs'!BO47","v":0}," ",{"$f":"'Class Needs'!BR47","v":0},0]
[{"$f":"'Class Needs'!A48","v":0},{"$f":"SUM('Teachers Timetables'!B48:N48)+ SUM('Teachers Timetables'!Q48:AC48)+ SUM('Teachers Timetables'!AF48:AR48)+ SUM('Teachers Timetables'!AU48:BG48)+ SUM('Teachers Timetables'!BJ48:BV48)+ SUM('Teachers Timetables'!BY48:CK48)+ SUM('Teachers Timetables'!CN48:CZ48)+ SUM('Teachers Timetables'!DC48:DO48)+ SUM('Teachers Timetables'!DR48:ED48)+ SUM('Teachers Timetables'!EG48:ES48)+ SUM('Teachers Timetables'!EV48:FH48)+ SUM('Teachers Timetables'!FK48:FW48)+ SUM('Teachers Timetables'!FZ48:GL48)+ SUM('Teachers Timetables'!GO48:HA48)+ SUM('Teachers Timetables'!HD48:HP48)+ SUM('Teachers Timetables'!HS48:IE48)","v":0},{"$f":"'Class Needs'!BO48","v":0}," ",{"$f":"'Class Needs'!BR48","v":0},0]
[{"$f":"'Class Needs'!A49","v":0},{"$f":"SUM('Teachers Timetables'!B49:N49)+ SUM('Teachers Timetables'!Q49:AC49)+ SUM('Teachers Timetables'!AF49:AR49)+ SUM('Teachers Timetables'!AU49:BG49)+ SUM('Teachers Timetables'!BJ49:BV49)+ SUM('Teachers Timetables'!BY49:CK49)+ SUM('Teachers Timetables'!CN49:CZ49)+ SUM('Teachers Timetables'!DC49:DO49)+ SUM('Teachers Timetables'!DR49:ED49)+ SUM('Teachers Timetables'!EG49:ES49)+ SUM('Teachers Timetables'!EV49:FH49)+ SUM('Teachers Timetables'!FK49:FW49)+ SUM('Teachers Timetables'!FZ49:GL49)+ SUM('Teachers Timetables'!GO49:HA49)+ SUM('Teachers Timetables'!HD49:HP49)+ SUM('Teachers Timetables'!HS49:IE49)","v":0},{"$f":"'Class Needs'!BO49","v":0}," ",{"$f":"'Class Needs'!BR49","v":0},0]
[{"$f":"'Class Needs'!A50","v":0},{"$f":"SUM('Teachers Timetables'!B50:N50)+ SUM('Teachers Timetables'!Q50:AC50)+ SUM('Teachers Timetables'!AF50:AR50)+ SUM('Teachers Timetables'!AU50:BG50)+ SUM('Teachers Timetables'!BJ50:BV50)+ SUM('Teachers Timetables'!BY50:CK50)+ SUM('Teachers Timetables'!CN50:CZ50)+ SUM('Teachers Timetables'!DC50:DO50)+ SUM('Teachers Timetables'!DR50:ED50)+ SUM('Teachers Timetables'!EG50:ES50)+ SUM('Teachers Timetables'!EV50:FH50)+ SUM('Teachers Timetables'!FK50:FW50)+ SUM('Teachers Timetables'!FZ50:GL50)+ SUM('Teachers Timetables'!GO50:HA50)+ SUM('Teachers Timetables'!HD50:HP50)+ SUM('Teachers Timetables'!HS50:IE50)","v":0},{"$f":"'Class Needs'!BO50","v":0}," ",{"$f":"'Class Needs'!BR50","v":0},0]
[{"$f":"'Class Needs'!A51","v":0},{"$f":"SUM('Teachers Timetables'!B51:N51)+ SUM('Teachers Timetables'!Q51:AC51)+ SUM('Teachers Timetables'!AF51:AR51)+ SUM('Teachers Timetables'!AU51:BG51)+ SUM('Teachers Timetables'!BJ51:BV51)+ SUM('Teachers Timetables'!BY51:CK51)+ SUM('Teachers Timetables'!CN51:CZ51)+ SUM('Teachers Timetables'!DC51:DO51)+ SUM('Teachers Timetables'!DR51:ED51)+ SUM('Teachers Timetables'!EG51:ES51)+ SUM('Teachers Timetables'!EV51:FH51)+ SUM('Teachers Timetables'!FK51:FW51)+ SUM('Teachers Timetables'!FZ51:GL51)+ SUM('Teachers Timetables'!GO51:HA51)+ SUM('Teachers Timetables'!HD51:HP51)+ SUM('Teachers Timetables'!HS51:IE51)","v":0},{"$f":"'Class Needs'!BO51","v":0}," ",{"$f":"'Class Needs'!BR51","v":0},0]
["SUB -TOTAL",{"$f":"SUM(B5:B51)","v":0},{"$f":"SUM(C5:C51)","v":0},null,{"$f":"SUM(E5:E51)","v":0},{"$f":"SUM(F5:F51)","v":0}]
[{"$f":"'Teachers Timetables'!A52","v":"NON-CONTACT"},{"$f":"SUM('Teachers Timetables'!B52:N52)+ SUM('Teachers Timetables'!Q52:AC52)+ SUM('Teachers Timetables'!AF52:AR52)+ SUM('Teachers Timetables'!AU52:BG52)+ SUM('Teachers Timetables'!BJ52:BV52)+ SUM('Teachers Timetables'!BY52:CK52)+ SUM('Teachers Timetables'!CN52:CZ52)+ SUM('Teachers Timetables'!DC52:DO52)+ SUM('Teachers Timetables'!DR52:ED52)+ SUM('Teachers Timetables'!EG52:ES52)+ SUM('Teachers Timetables'!EV52:FH52)+ SUM('Teachers Timetables'!FK52:FW52)+ SUM('Teachers Timetables'!FZ52:GL52)+ SUM('Teachers Timetables'!GO52:HA52)+ SUM('Teachers Timetables'!HD52:HP52)+ SUM('Teachers Timetables'!HS52:IE52)","v":0},{"$f":"B53","v":0}," "]
[{"$f":"'Teachers Timetables'!A53","v":"DEAN/GUIDANCE"},{"$f":"SUM('Teachers Timetables'!B53:N53)+ SUM('Teachers Timetables'!Q53:AC53)+ SUM('Teachers Timetables'!AF53:AR53)+ SUM('Teachers Timetables'!AU53:BG53)+ SUM('Teachers Timetables'!BJ53:BV53)+ SUM('Teachers Timetables'!BY53:CK53)+ SUM('Teachers Timetables'!CN53:CZ53)+ SUM('Teachers Timetables'!DC53:DO53)+ SUM('Teachers Timetables'!DR53:ED53)+ SUM('Teachers Timetables'!EG53:ES53)+ SUM('Teachers Timetables'!EV53:FH53)+ SUM('Teachers Timetables'!FK53:FW53)+ SUM('Teachers Timetables'!FZ53:GL53)+ SUM('Teachers Timetables'!GO53:HA53)+ SUM('Teachers Timetables'!HD53:HP53)+ SUM('Teachers Timetables'!HS53:IE53)","v":0},{"$f":"B54","v":0}," "]
[{"$f":"'Teachers Timetables'!A54","v":"ADMINISTRATION"},{"$f":"SUM('Teachers Timetables'!B54:N54)+ SUM('Teachers Timetables'!Q54:AC54)+ SUM('Teachers Timetables'!AF54:AR54)+ SUM('Teachers Timetables'!AU54:BG54)+ SUM('Teachers Timetables'!BJ54:BV54)+ SUM('Teachers Timetables'!BY54:CK54)+ SUM('Teachers Timetables'!CN54:CZ54)+ SUM('Teachers Timetables'!DC54:DO54)+ SUM('Teachers Timetables'!DR54:ED54)+ SUM('Teachers Timetables'!EG54:ES54)+ SUM('Teachers Timetables'!EV54:FH54)+ SUM('Teachers Timetables'!FK54:FW54)+ SUM('Teachers Timetables'!FZ54:GL54)+ SUM('Teachers Timetables'!GO54:HA54)+ SUM('Teachers Timetables'!HD54:HP54)+ SUM('Teachers Timetables'!HS54:IE54)","v":0},0," "]
[{"$f":"'Teachers Timetables'!A55","v":"BEGINNER TEACHER "},{"$f":"SUM('Teachers Timetables'!B55:N55)+ SUM('Teachers Timetables'!Q55:AC55)+ SUM('Teachers Timetables'!AF55:AR55)+ SUM('Teachers Timetables'!AU55:BG55)+ SUM('Teachers Timetables'!BJ55:BV55)+ SUM('Teachers Timetables'!BY55:CK55)+ SUM('Teachers Timetables'!CN55:CZ55)+ SUM('Teachers Timetables'!DC55:DO55)+ SUM('Teachers Timetables'!DR55:ED55)+ SUM('Teachers Timetables'!EG55:ES55)+ SUM('Teachers Timetables'!EV55:FH55)+ SUM('Teachers Timetables'!FK55:FW55)+ SUM('Teachers Timetables'!FZ55:GL55)+ SUM('Teachers Timetables'!GO55:HA55)+ SUM('Teachers Timetables'!HD55:HP55)+ SUM('Teachers Timetables'!HS55:IE55)","v":0},0," "]
[{"$f":"'Teachers Timetables'!A56","v":"Specialist Classroom Tchr"},{"$f":"SUM('Teachers Timetables'!B56:N56)+ SUM('Teachers Timetables'!Q56:AC56)+ SUM('Teachers Timetables'!AF56:AR56)+ SUM('Teachers Timetables'!AU56:BG56)+ SUM('Teachers Timetables'!BJ56:BV56)+ SUM('Teachers Timetables'!BY56:CK56)+ SUM('Teachers Timetables'!CN56:CZ56)+ SUM('Teachers Timetables'!DC56:DO56)+ SUM('Teachers Timetables'!DR56:ED56)+ SUM('Teachers Timetables'!EG56:ES56)+ SUM('Teachers Timetables'!EV56:FH56)+ SUM('Teachers Timetables'!FK56:FW56)+ SUM('Teachers Timetables'!FZ56:GL56)+ SUM('Teachers Timetables'!GO56:HA56)+ SUM('Teachers Timetables'!HD56:HP56)+ SUM('Teachers Timetables'!HS56:IE56)","v":0},0]
[{"$f":"'Teachers Timetables'!A57","v":"Special Needs"},{"$f":"SUM('Teachers Timetables'!B57:N57)+ SUM('Teachers Timetables'!Q57:AC57)+ SUM('Teachers Timetables'!AF57:AR57)+ SUM('Teachers Timetables'!AU57:BG57)+ SUM('Teachers Timetables'!BJ57:BV57)+ SUM('Teachers Timetables'!BY57:CK57)+ SUM('Teachers Timetables'!CN57:CZ57)+ SUM('Teachers Timetables'!DC57:DO57)+ SUM('Teachers Timetables'!DR57:ED57)+ SUM('Teachers Timetables'!EG57:ES57)+ SUM('Teachers Timetables'!EV57:FH57)+ SUM('Teachers Timetables'!FK57:FW57)+ SUM('Teachers Timetables'!FZ57:GL57)+ SUM('Teachers Timetables'!GO57:HA57)+ SUM('Teachers Timetables'!HD57:HP57)+ SUM('Teachers Timetables'!HS57:IE57)","v":0},0]
[{"$f":"'Teachers Timetables'!A58","v":"HOD Beginning Tchr TA"},{"$f":"SUM('Teachers Timetables'!B58:N58)+ SUM('Teachers Timetables'!Q58:AC58)+ SUM('Teachers Timetables'!AF58:AR58)+ SUM('Teachers Timetables'!AU58:BG58)+ SUM('Teachers Timetables'!BJ58:BV58)+ SUM('Teachers Timetables'!BY58:CK58)+ SUM('Teachers Timetables'!CN58:CZ58)+ SUM('Teachers Timetables'!DC58:DO58)+ SUM('Teachers Timetables'!DR58:ED58)+ SUM('Teachers Timetables'!EG58:ES58)+ SUM('Teachers Timetables'!EV58:FH58)+ SUM('Teachers Timetables'!FK58:FW58)+ SUM('Teachers Timetables'!FZ58:GL58)+ SUM('Teachers Timetables'!GO58:HA58)+ SUM('Teachers Timetables'!HD58:HP58)+ SUM('Teachers Timetables'!HS58:IE58)","v":0},0]
[{"$f":"'Teachers Timetables'!A59","v":"Kāhui Ako"},{"$f":"SUM('Teachers Timetables'!B59:N59)+ SUM('Teachers Timetables'!Q59:AC59)+ SUM('Teachers Timetables'!AF59:AR59)+ SUM('Teachers Timetables'!AU59:BG59)+ SUM('Teachers Timetables'!BJ59:BV59)+ SUM('Teachers Timetables'!BY59:CK59)+ SUM('Teachers Timetables'!CN59:CZ59)+ SUM('Teachers Timetables'!DC59:DO59)+ SUM('Teachers Timetables'!DR59:ED59)+ SUM('Teachers Timetables'!EG59:ES59)+ SUM('Teachers Timetables'!EV59:FH59)+ SUM('Teachers Timetables'!FK59:FW59)+ SUM('Teachers Timetables'!FZ59:GL59)+ SUM('Teachers Timetables'!GO59:HA59)+ SUM('Teachers Timetables'!HD59:HP59)+ SUM('Teachers Timetables'!HS59:IE59)","v":0},0," "]
[{"$f":"'Teachers Timetables'!A60","v":"OTHER"},{"$f":"SUM('Teachers Timetables'!B60:N60)+ SUM('Teachers Timetables'!Q60:AC60)+ SUM('Teachers Timetables'!AF60:AR60)+ SUM('Teachers Timetables'!AU60:BG60)+ SUM('Teachers Timetables'!BJ60:BV60)+ SUM('Teachers Timetables'!BY60:CK60)+ SUM('Teachers Timetables'!CN60:CZ60)+ SUM('Teachers Timetables'!DC60:DO60)+ SUM('Teachers Timetables'!DR60:ED60)+ SUM('Teachers Timetables'!EG60:ES60)+ SUM('Teachers Timetables'!EV60:FH60)+ SUM('Teachers Timetables'!FK60:FW60)+ SUM('Teachers Timetables'!FZ60:GL60)+ SUM('Teachers Timetables'!GO60:HA60)+ SUM('Teachers Timetables'!HD60:HP60)+ SUM('Teachers Timetables'!HS60:IE60)","v":0},0]
["TOTAL USAGE",{"$f":"SUM(B52:B61)","v":0},{"$f":"SUM(C52:C61)","v":0}]

{"sheet":"Reduction of Units","index":5,"n_rows":113,"n_cols":23,"rows_kept":113,"cut":false,"hidden":false,"merged":[[53,17,53,21],[111,5,111,9],[111,17,111,21],[55,4,55,8]]}
[null,null,"REDUCTION OF UNITS",null,null,null,null,null,null,"PAGE 28",null,null,null,null,"REDUCTION OF UNITS",null,null,null,null,null,null,"PAGE 30"]
[null,null,null,null,null,null,null,null,null,null,null,null,null,null,null,null,null,null,null,null,"     RESPONSIBLE FOR:"]
["ENTITLEMENT",2022,null,null,null,"UNITS",null,null,null,null,null,null,"AREAS OF RESPONSIBILITY",null,null,null,null,"DATE","","","","",""]
[null,null,null,null,null,null,null,"BOARD FUNDED 'UNITS' /PAYMENTS",null,null,null,null,"CURRICULUM, ADMIN","","Permanent","Fixed-term","Expiry ","OF","GENDER","ETHNIC","No of","No of","No of"]
["USAGE",{"$f":"B3","v":2022},{"$f":"SUM(O111+P111)","v":0},null,null,"UNITS",null,"AND POSITIONS OUTSIDE",null,null,null,null,"AND PASTORAL","CODE","UNITS","UNITS","date(s)","APPT",null,"GROUP","STAFF","PUPILS","CLASSES"]
[null,null,null,null,null,null,null,"ENTITLEMENT",null,null,null,null,"","","",null,null,"","","","","",""]
["ENTITLEMENT",2023,null,null,null,"UNITS",null,{"$f":"B3","v":2022},null,"UNITS",null,null,"","","",null,null,"","","","","",""]
[null,null,null,null,null,null,null,null,null,null,null,null,"","","",null,null,"","","","","",""]
["REQUIRED REDUCTION",{"$f":"B7","v":2023},{"$f":"C3-C7","v":0},null,null,"UNITS",null,{"$f":"B7","v":2023},null,"UNITS",null,null,"","","",null,null,"","","","","",""]
["  (i.e.Reduce now for 2023)",null,null,null,null,null,null,null,null,null,null,null,"","","",null,null,"","","","","",""]
[null,null,null,null,null,null,null,null,null,null,null,null,"","","",null,null,"","","","","",""]
[null,null,null,null,null,null,null,null,null,null,null,null,"","","",null,null,"","","","","",""]
[null,null,null,null,null,null,null,null,null,null,null,null,"","","",null,null,"","","","","",""]
[null,null,null,null,null,null,null,null,null,null,null,null,"","","",null,null,"","","","","",""]
["PRESENT DISTRIBUTION","U1","U2","U3","U4","U5","U6","U7","U8","U9","U10",null,"","","",null,null,"","","","","",""]
["PERMANENT UNIT HOLDERS",0,0,0,0,0,0,0,0,0,0,null,"","","",null,null,"","","","","",""]
["FIXED-TERM UNIT HOLDERS",0,0,0,0,null,null,null,null,null,null,null,"","","",null,null,"","","","","",""]
[null,null,null,null,"ALL PERMANENT UNITS",null,null,{"$f":"(B16+2*C16+3*D16+4*E16+5*F16+6*G16+7*H16+8*I16+9*J16+10*K16)","v":0},null,null,null,null,"","","",null,null,"","","","","",""]
[null,null,null,null,"ALL FIXED-TERM UNITS",null,null,{"$f":"(B17+2*C17+3*D17+4*E17+5*F17+6*G17+7*H17+8*I17+9*J17+10*K17)","v":0},null,null,null,null,"","","",null,null,"","","","","",""]
[null,null,null,null,null,null,null,null,"     RESPONSIBLE FOR:",null,null,null,"","","",null,null,"","","","","",""]
["AREAS OF RESPONSIBILITY",null,null,null,null,"DATE","","","","","",null,"","","",null,null,"","","","","",""]
["CURRICULUM, ADMIN","","Permanent ","Fixed-term","Expiry","OF","GENDER","ETHNIC","No of","No of","No of",null,"","","",null,null,"","","","","",""]
["AND PASTORAL","CODE","UNITS","UNITS","Date(s)","APPT",null,"GROUP","STAFF","PUPILS","CLASSES",null,"","","",null,null,"","","","","",""]
[null,null,null,null,null,null,null,null,null,null,null,null,"","","",null,null,"","","","","",""]
[null,null,null,null,null,null,null,null,null,null,null,null,"","","",null,null,"","","","","",""]
[null,null,null,null,null,null,null,null,null,null,null,null,"","","",null,null,"","","","","",""]
[null,null,null,null,null,null,null,null,null,null,null,null,"","","",null,null,"","","","","",""]
[null,null,null,null,null,null,null,null,null,null,null,null,"","","",null,null,"","","","","",""]
[]
[]
[]
[]
[]
[]
[]
[]
[]
[]
[]
["",null,""]
[]
[]
[]
[]
[]
[]
[]
[]
[]
[]
[]
[]
[null,null,null,null,null,null,null,null,null,null,null,null,"SUMMARY",null,{"$f":"SUM(O6:O52)+C111","v":0},{"$f":"SUM(P6:P52)+D111","v":0}]
[null,null,null,null,null,null,null,null,null,null,null,null,"","","PU","FTU",null,null,null,null,null,null,""]
[]
[]
[]
[]
[null,null,"REDUCTION OF UNITS",null,null,null,null,null,null,"PAGE 29",null,null,null,null,"REDUCTION OF UNITS",null,null,null,null,null,null,"PAGE 31"]
[null,null,null,null,null,null,null,null,"     RESPONSIBLE FOR:",null,null,null,null,null,null,null,null,null,null,null,"     RESPONSIBLE FOR:"]
["AREAS OF RESPONSIBILITY",null,null,null,null,"DATE","","","","","",null,"AREAS OF RESPONSIBILITY",null,null,null,null,"DATE","","","","",""]
["CURRICULUM, ADMIN","","Permanent ","Fixed-term","Expiry","OF","GENDER","ETHNIC","No of","No of","No of",null,"CURRICULUM, ADMIN","","Permanent","Fixed-term","Expiry ","OF","GENDER","ETHNIC","No of","No of","No of"]
["AND PASTORAL","CODE","UNITS","UNITS","Date(s)","APPT",null,"GROUP","STAFF","PUPILS","CLASSES",null,"AND PASTORAL","CODE","UNITS","UNITS","date(s)","APPT",null,"GROUP","STAFF","PUPILS","CLASSES"]
["","",null,null,null,"","","","","","",null,"","","",null,null,"","","","","",""]
[null,null,null,null,null,null,null,null,null,null,null,null,"","","",null,null,"","","","","",""]
[null,null,null,null,null,null,null,null,null,null,null,null,"","","",null,null,"","","","","",""]
[null,null,null,null,null,null,null,null,null,null,null,null,"","","",null,null,"","","","","",""]
[null,null,null,null,null,null,null,null,null,null,null,null,"","","",null,null,"","","","","",""]
[null,null,null,null,null,null,null,null,null,null,null,null,"","","",null,null,"","","","","",""]
[null,null,null,null,null,null,null,null,null,null,null,null,"","","",null,null,"","","","","",""]
[null,null,null,null,null,null,null,null,null,null,null,null,"","","",null,null,"","","","","",""]
[null,null,null,null,null,null,null,null,null,null,null,null,"","","",null,null,"","","","","",""]
[null,null,null,null,null,null,null,null,null,null,null,null,"","","",null,null,"","","","","",""]
[null,null,null,null,null,null,null,null,null,null,null,null,"","","",null,null,"","","","","",""]
[null,null,null,null,null,null,null,null,null,null,null,null,"","","",null,null,"","","","","",""]
[null,null,null,null,null,null,null,null,null,null,null,null,"","","",null,null,"","","","","",""]
[null,null,null,null,null,null,null,null,null,null,null,null,"","","",null,null,"","","","","",""]
[null,null,null,null,null,null,null,null,null,null,null,null,"","","",null,null,"","","","","",""]
[null,null,null,null,null,null,null,null,null,null,null,null,"","","",null,null,"","","","","",""]
[null,null,null,null,null,null,null,null,null,null,null,null,"","","",null,null,"","","","","",""]
[null,null,null,null,null,null,null,null,null,null,null,null,"","","",null,null,"","","","","",""]
[null,null,null,null,null,null,null,null,null,null,null,null,"","","",null,null,"","","","","",""]
[null,null,null,null,null,null,null,null,null,null,null,null,"","","",null,null,"","","","","",""]
["","","",null,null,"","","","","","",null,"","","",null,null,"","","","","",""]
[null,null,null,null,null,null,null,null,null,null,null,null,"","","",null,null,"","","","","",""]
[null,null,null,null,null,null,null,null,null,null,null,null,"","","",null,null,"","","","","",""]
[]
[]
[]
[]
[]
[]
[]
[]
[]
[]
[]
[]
[]
[]
[]
[]
[]
[]
[]
[]
[]
[]
[]
[]
["SUMMARY",null,{"$f":"SUM(C24:C110)","v":0},{"$f":"SUM(D24:D110)","v":0},null,null,null,null,null,null,null,null,"SUMMARY",null,{"$f":"SUM(O64:O110)+O53","v":0},{"$f":"SUM(P64:P110)+P53","v":0}]
["","","PU","FTU",null,null,null,null,null,null,"",null,"","","PU","FTU"]
["","","",null,null,"","","","","",""]

{"sheet":"Reduction of SMAs","index":6,"n_rows":58,"n_cols":11,"rows_kept":58,"cut":false,"hidden":false,"merged":[[57,5,57,9]]}
[null,null,"REDUCTION OF SMAs",null,null,null,null,null,null,"PAGE 32"]
[]
["ENTITLEMENT",2022,null,null,null,"SMAs"]
[null,null,null,null,null,null,null,"BOARD FUNDED 'MMAs' /PAYMENTS"]
["USAGE",{"$f":"B3","v":2022},null,null,null,"SMAs",null,"AND POSITIONS OUTSIDE"]
[null,null,null,null,null,null,null,"ENTITLEMENT"]
["ENTITLEMENT",2023,null,null,null,"SMAs",null,{"$f":"B3","v":2022},null,"SMAs"]
[]
["REQUIRED REDUCTION",{"$f":"B7","v":2023},{"$f":"C3-C7","v":0},null,null,"SMAs",null,{"$f":"B7","v":2023},null,"SMAs"]
["  (i.e. Reduce now for 2023)"]
[]
[]
[]
[]
["PRESENT DISTRIBUTION","SMA 1","SMA 2"]
["PERMANENT SMAs"]
["FIXED-TERM SMAs"]
[null,null,null,null,"ALL PERMANENT SMAs",null,null,{"$f":"(B16+2*C16)","v":0}]
[null,null,null,null,"ALL FIXED-TERM SMAs",null,null,{"$f":"(B17+2*C17)","v":0}]
[null,null,null,null,null,null,null,null,"     RESPONSIBLE FOR:"]
["AREAS OF RESPONSIBILITY",null,null,null,null,"DATE","","","","",""]
["CURRICULUM AND/OR","","Permanent ","Fixed-term","Expiry","OF","GENDER","ETHNIC","No of","No of","No of"]
["PASTORAL","CODE","SMAs","SMAs","Date(s)","APPT",null,"GROUP","STAFF","PUPILS","CLASSES"]
[]
[]
[]
[]
[]
[]
[]
[]
[]
[]
[]
[]
[]
[]
[]
[]
[]
[]
[]
[]
[]
[]
[]
[]
[]
[]
[]
[]
[]
[]
["","",null,null,null,"","","",""]
[]
[]
["SUMMARY",null,{"$f":"SUM(C24:C56)","v":0},{"$f":"SUM(D24:D56)","v":0}]
["","",null,null,null,null,null,null,null,null,""]

{"sheet":"Reduction of MMAs","index":7,"n_rows":114,"n_cols":23,"rows_kept":114,"cut":false,"hidden":false,"merged":[[53,17,53,21],[57,5,57,9],[113,5,113,9],[113,17,113,21]]}
[null,null,"REDUCTION OF MMAs",null,null,null,null,null,null,"PAGE 33",null,null,null,null,"REDUCTION OF MMAs",null,null,null,null,null,null,"PAGE 35"]
[null,null,null,null,null,null,null,null,null,null,null,null,null,null,null,null,null,null,null,null,"     RESPONSIBLE FOR:"]
["ENTITLEMENT",2022,null,null,null,"MMAs",null,null,null,null,null,null,"AREAS OF RESPONSIBILITY",null,null,null,null,"DATE","","","","",""]
[null,null,null,null,null,null,null,"BOARD FUNDED 'MMAs' /PAYMENTS",null,null,null,null,"CURRICULUM AND/OR","","Permanent","Fixed-term","Expiry ","OF","GENDER","ETHNIC","No of","No of","No of"]
["USAGE",{"$f":"B3","v":2022},null,null,null,"MMAs",null,"AND POSITIONS OUTSIDE",null,null,null,null,"PASTORAL","CODE","MMAs","MMAs","date(s)","APPT",null,"GROUP","STAFF","PUPILS","CLASSES"]
[null,null,null,null,null,null,null,"ENTITLEMENT",null,null,null,null,"","","",null,null,"","","","","",""]
["ENTITLEMENT",2023,null,null,null,"MMAs",null,{"$f":"B3","v":2022},null,"MMAs",null,null,"","","",null,null,"","","","","",""]
[null,null,null,null,null,null,null,null,null,null,null,null,"","","",null,null,"","","","","",""]
["REQUIRED REDUCTION",{"$f":"B7","v":2023},{"$f":"C3-C7","v":0},null,null,"MMAs",null,{"$f":"B7","v":2023},null,"MMAs",null,null,"","","",null,null,"","","","","",""]
["  (i.e. Reduce now for 2023)",null,null,null,null,null,null,null,null,null,null,null,"","","",null,null,"","","","","",""]
[null,null,null,null,null,null,null,null,null,null,null,null,"","","",null,null,"","","","","",""]
[null,null,null,null,null,null,null,null,null,null,null,null,"","","",null,null,"","","","","",""]
[null,null,null,null,null,null,null,null,null,null,null,null,"","","",null,null,"","","","","",""]
[null,null,null,null,null,null,null,null,null,null,null,null,"","","",null,null,"","","","","",""]
["PRESENT DISTRIBUTION","MMA 1","MMA 2",null,null,null,null,null,null,null,null,null,"","","",null,null,"","","","","",""]
["PERMANENT MMAs",null,null,null,null,null,null,null,null,null,null,null,"","","",null,null,"","","","","",""]
["FIXED-TERM MMAs",null,null,null,null,null,null,null,null,null,null,null,"","","",null,null,"","","","","",""]
[null,null,null,null,"ALL PERMANENT MMAs",null,null,{"$f":"(B16+2*C16)","v":0},null,null,null,null,"","","",null,null,"","","","","",""]
[null,null,null,null,"ALL FIXED-TERM MMAs",null,null,{"$f":"(B17+2*C17)","v":0},null,null,null,null,"","","",null,null,"","","","","",""]
[null,null,null,null,null,null,null,null,"     RESPONSIBLE FOR:",null,null,null,"","","",null,null,"","","","","",""]
["AREAS OF RESPONSIBILITY",null,null,null,null,"DATE","","","","","",null,"","","",null,null,"","","","","",""]
["CURRICULUM AND/OR","","Permanent ","Fixed-term","Expiry","OF","GENDER","ETHNIC","No of","No of","No of",null,"","","",null,null,"","","","","",""]
["PASTORAL","CODE","MMAs","MMAs","Date(s)","APPT",null,"GROUP","STAFF","PUPILS","CLASSES",null,"","","",null,null,"","","","","",""]
[null,null,null,null,null,null,null,null,null,null,null,null,"","","",null,null,"","","","","",""]
[null,null,null,null,null,null,null,null,null,null,null,null,"","","",null,null,"","","","","",""]
[null,null,null,null,null,null,null,null,null,null,null,null,"","","",null,null,"","","","","",""]
[null,null,null,null,null,null,null,null,null,null,null,null,"","","",null,null,"","","","","",""]
[null,null,null,null,null,null,null,null,null,null,null,null,"","","",null,null,"","","","","",""]
[]
[]
[]
[]
[]
[]
[]
[]
[]
[]
[]
[]
[]
[]
[]
[]
[]
[]
[]
[]
[]
[]
[]
[]
[null,null,null,null,null,null,null,null,null,null,null,null,"SUMMARY",null,{"$f":"SUM(O6:O52)+C113","v":0},{"$f":"SUM(P6:P52)+D113","v":0}]
["","",null,null,null,"","","","",null,null,null,"","",null,null,null,null,null,null,null,null,""]
[]
[]
["SUMMARY",null,{"$f":"SUM(C24:C56)","v":0},{"$f":"SUM(D24:D56)","v":0}]
["","",null,null,null,null,null,null,null,null,""]
[]
[]
[null,null,"REDUCTION OF MMAs",null,null,null,null,null,null,"PAGE 34",null,null,null,null,"REDUCTION OF MMAs",null,null,null,null,null,null,"PAGE 36"]
[null,null,null,null,null,null,null,null,"     RESPONSIBLE FOR:",null,null,null,null,null,null,null,null,null,null,null,"     RESPONSIBLE FOR:"]
["AREAS OF RESPONSIBILITY",null,null,null,null,"DATE","","","","","",null,"AREAS OF RESPONSIBILITY",null,null,null,null,"DATE","","","","",""]
["CURRICULUM AND/OR","","Permanent ","Fixed-term","Expiry","OF","GENDER","ETHNIC","No of","No of","No of",null,"CURRICULUM AND/OR","","Permanent","Fixed-term","Expiry ","OF","GENDER","ETHNIC","No of","No of","No of"]
["PASTORAL","CODE","MMAs","MMAs","Date(s)","APPT",null,"GROUP","STAFF","PUPILS","CLASSES",null,"PASTORAL","CODE","MMAs","MMAs","date(s)","APPT",null,"GROUP","STAFF","PUPILS","CLASSES"]
["","",null,null,null,"","","","","","",null,"","","",null,null,"","","","","",""]
[null,null,null,null,null,null,null,null,null,null,null,null,"","","",null,null,"","","","","",""]
[null,null,null,null,null,null,null,null,null,null,null,null,"","","",null,null,"","","","","",""]
[null,null,null,null,null,null,null,null,null,null,null,null,"","","",null,null,"","","","","",""]
[null,null,null,null,null,null,null,null,null,null,null,null,"","","",null,null,"","","","","",""]
[null,null,null,null,null,null,null,null,null,null,null,null,"","","",null,null,"","","","","",""]
[null,null,null,null,null,null,null,null,null,null,null,null,"","","",null,null,"","","","","",""]
[null,null,null,null,null,null,null,null,null,null,null,null,"","","",null,null,"","","","","",""]
[null,null,null,null,null,null,null,null,null,null,null,null,"","","",null,null,"","","","","",""]
[null,null,null,null,null,null,null,null,null,null,null,null,"","","",null,null,"","","","","",""]
[null,null,null,null,null,null,null,null,null,null,null,null,"","","",null,null,"","","","","",""]
[null,null,null,null,null,null,null,null,null,null,null,null,"","","",null,null,"","","","","",""]
[null,null,null,null,null,null,null,null,null,null,null,null,"","","",null,null,"","","","","",""]
[null,null,null,null,null,null,null,null,null,null,null,null,"","","",null,null,"","","","","",""]
[null,null,null,null,null,null,null,null,null,null,null,null,"","","",null,null,"","","","","",""]
[null,null,null,null,null,null,null,null,null,null,null,null,"","","",null,null,"","","","","",""]
[null,null,null,null,null,null,null,null,null,null,null,null,"","","",null,null,"","","","","",""]
[null,null,null,null,null,null,null,null,null,null,null,null,"","","",null,null,"","","","","",""]
[null,null,null,null,null,null,null,null,null,null,null,null,"","","",null,null,"","","","","",""]
[null,null,null,null,null,null,null,null,"","","",null,"","","",null,null,"","","","","",""]
[null,null,null,null,null,null,null,null,"","","",null,"","","",null,null,"","","","","",""]
[null,null,null,null,null,null,null,null,"","","",null,"","","",null,null,"","","","","",""]
[null,null,null,null,null,null,null,null,"","","",null,"","","",null,null,"","","","","",""]
[]
[]
[]
[]
[]
[]
[]
[]
[]
[]
[]
[]
[]
[]
[]
[]
[]
[]
[]
[]
[]
[]
[]
[]
["SUMMARY",null,{"$f":"SUM(C66:C112)+C57","v":0},{"$f":"SUM(D66:D112)+D57","v":0},null,null,null,null,null,null,null,null,"SUMMARY",null,{"$f":"SUM(O66:O112)+O53","v":0},{"$f":"SUM(P66:P112)+P53","v":0}]
["","",null,null,null,null,null,null,null,null,"",null,"",""]

{"sheet":"Sheet1","index":8,"n_rows":0,"n_cols":0,"rows_kept":0,"cut":false,"hidden":false,"merged":[]}